DIRECTORATE,SECTION,DIVISON,VENDOR_NAME,VENDOR_SITE_ID,PAYMENT_DATE,VOUCHER_NO,AMOUNT,IRRECOVERABLE VATE,PURPOSE_OF_SPEND,PROCUREMENT_CLASSIFICATION
Learning Disability Support,Transitions and Ordinary Lives - Learning Disability Support,Transitions and Ordinary Lives,1ST CALL MOBILITY LTD,1054508,01/10/2019,3280876,"2,275.00",0.00,N/A,N/A
Learning Disability Support,Transitions and Ordinary Lives - Learning Disability Support,Transitions and Ordinary Lives,1ST CALL MOBILITY LTD,1054508,01/10/2019,3280876,885.00,0.00,N/A,N/A
"Environmental Protection, Housing Standards, Licensing, Emergency Planning",Environmental Protection,Public Protection and Streetride,3RG ASSOCIATES LTD,1141489,01/10/2019,3323368,"8,266.68",0.00,N/A,N/A
Highways & Engineering,Highways Maintenance & Street Lighting,"Strategic Partnerships, Planning & Streetpride",AGGREGATE INDUSTRIES UK LTD,117850,01/10/2019,3322148,"1,496.55",0.00,Communities & Place,Building and Construction Machinery and
Highways & Engineering,Highways Maintenance & Street Lighting,"Strategic Partnerships, Planning & Streetpride",AGGREGATE INDUSTRIES UK LTD,117850,01/10/2019,3323385,"1,224.70",0.00,Communities & Place,Building and Construction Machinery and
Highways & Engineering,Highways Maintenance & Street Lighting,"Strategic Partnerships, Planning & Streetpride",AGGREGATE INDUSTRIES UK LTD,117850,01/10/2019,3323386,"2,042.36",0.00,Communities & Place,Building and Construction Machinery and
Highways & Engineering,Highways Maintenance & Street Lighting,"Strategic Partnerships, Planning & Streetpride",AGGREGATE INDUSTRIES UK LTD,117850,01/10/2019,3323386,"1,701.97",0.00,Communities & Place,Building and Construction Machinery and
Highways & Engineering,Highways Maintenance & Street Lighting,"Strategic Partnerships, Planning & Streetpride",AGGREGATE INDUSTRIES UK LTD,117850,01/10/2019,3323389,514.05,0.00,Communities & Place,Building and Construction Machinery and
Highways & Engineering,Highways Maintenance & Street Lighting,"Strategic Partnerships, Planning & Streetpride",AGGREGATE INDUSTRIES UK LTD,117850,01/10/2019,3323391,604.90,0.00,Communities & Place,Building and Construction Machinery and
Highways & Engineering,Highways Maintenance & Street Lighting,"Strategic Partnerships, Planning & Streetpride",AGGREGATE INDUSTRIES UK LTD,117850,01/10/2019,3323382,"1,674.91",0.00,Communities & Place,Building and Construction Machinery and
Highways & Engineering,Highways Maintenance & Street Lighting,"Strategic Partnerships, Planning & Streetpride",AGGREGATE INDUSTRIES UK LTD,117850,01/10/2019,3323400,782.90,0.00,Communities & Place,Building and Construction Machinery and
Highways & Engineering,Highways Maintenance & Street Lighting,"Strategic Partnerships, Planning & Streetpride",AGGREGATE INDUSTRIES UK LTD,117850,01/10/2019,3323402,871.44,0.00,Communities & Place,Building and Construction Machinery and
Highways & Engineering,Highways Maintenance & Street Lighting,"Strategic Partnerships, Planning & Streetpride",AGGREGATE INDUSTRIES UK LTD,117850,01/10/2019,3323403,518.96,0.00,Communities & Place,Building and Construction Machinery and
Grounds Maintenance & Cleansing,Cleansing (inc public conveniences & gullies),"Strategic Partnerships, Planning & Streetpride",AMA SUPPLIES LTD,285,01/10/2019,3324422,625.00,0.00,Communities & Place,Apparel and Luggage and Personal Care Pr
Grounds Maintenance & Cleansing,Cleansing (inc public conveniences & gullies),"Strategic Partnerships, Planning & Streetpride",AMA SUPPLIES LTD,285,01/10/2019,3324431,"1,285.69",0.00,Communities & Place,Apparel and Luggage and Personal Care Pr
Highways & Engineering,Highways Maintenance & Street Lighting,"Strategic Partnerships, Planning & Streetpride",AMA SUPPLIES LTD,285,01/10/2019,3325074,603.28,0.00,Communities & Place,Apparel and Luggage and Personal Care Pr
General,Stores Road Depot & Fleet Management,"Strategic Partnerships, Planning & Streetpride",AMA SUPPLIES LTD,285,01/10/2019,3324397,"4,657.50",0.00,Communities & Place,Apparel and Luggage and Personal Care Pr
Business Support,Business Support,Strategic Services and Organisational Development,ANTALIS LIMITED,1059478,01/10/2019,3325000,"1,302.00",0.00,N/A,N/A
Community Safety,Partnerships,Public Protection and Streetride,ARTCORE,81349,01/10/2019,3325167,"1,000.00",0.00,N/A,N/A
Libraries,Libraries,"Leisure, Culture and Tourism",ASKEWS AND HOLTS LIBRARY SERVICES LTD,876447,01/10/2019,3323338,"1,342.05",0.00,N/A,N/A
Libraries,Libraries,"Leisure, Culture and Tourism",ASKEWS AND HOLTS LIBRARY SERVICES LTD,876447,01/10/2019,3324285,"2,796.40",0.00,N/A,N/A
Integrated Services,Agency Placements,Non-Schools,BARNARDOS,941506,01/10/2019,3272186,"3,401.50",0.00,N/A,N/A
Integrated Services,Agency Placements,Non-Schools,BARNARDOS,941506,01/10/2019,3321455,"2,978.57",0.00,N/A,N/A
Integrated Services,Agency Placements,Non-Schools,BARNARDOS,941506,01/10/2019,3322273,"3,401.50",0.00,N/A,N/A
Integrated Services,Agency Placements,Non-Schools,BARNARDOS,941506,01/10/2019,3322275,"3,401.50",0.00,N/A,N/A
Integrated Services,Agency Placements,Non-Schools,BARNARDOS,941506,01/10/2019,3322276,"3,401.50",0.00,N/A,N/A
Integrated Services,Agency Placements,Non-Schools,BARNARDOS,941506,01/10/2019,3322277,"3,470.89",0.00,N/A,N/A
Integrated Services,Agency Placements,Non-Schools,BARNARDOS,941506,01/10/2019,3322278,"3,401.50",0.00,N/A,N/A
Integrated Services,Agency Placements,Non-Schools,BARNARDOS,941506,01/10/2019,3322279,"3,401.50",0.00,N/A,N/A
Integrated Services,Agency Placements,Non-Schools,BARNARDOS,941506,01/10/2019,3322280,"4,707.79",0.00,N/A,N/A
Integrated Services,Agency Placements,Non-Schools,BARNARDOS,941506,01/10/2019,3322282,"3,001.55",0.00,N/A,N/A
Integrated Services,Agency Placements,Non-Schools,BARNARDOS,941506,01/10/2019,3322284,"3,470.89",0.00,N/A,N/A
Integrated Services,Agency Placements,Non-Schools,BARNARDOS,941506,01/10/2019,3322285,"3,062.80",0.00,N/A,N/A
Refuse & Waste Management,Waste Disposal,"Strategic Partnerships, Planning & Streetpride",BIFFA WASTE SERVICES LTD,485,01/10/2019,3308416,"1,896.55",0.00,Communities & Place,Environmental Services
Refuse & Waste Management,Waste Disposal,"Strategic Partnerships, Planning & Streetpride",BIFFA WASTE SERVICES LTD,485,01/10/2019,3308416,"1,896.55",0.00,Communities & Place,Environmental Services
Culture & Business Development,Culture & Business Development,"Leisure, Culture and Tourism",BOOKERS,516,01/10/2019,3312434,"1,173.67",0.00,Communities & Place,Food Beverage and Tobacco Products
"Information, Computing & Technology","Information, Computing & Technology",Digital Services,BT PLC,1025473,01/10/2019,3321720,"1,337.84",0.00,N/A,N/A
Traffic & Transportation,Traffic & Transportation (inc Integrated Pass Transport),"Strategic Partnerships, Planning & Streetpride",BUCKINGHAMSHIRE COUNTY COUNCIL,17454,01/10/2019,3294871,"6,301.00",0.00,N/A,N/A
Highways & Engineering,Highways Maintenance & Street Lighting,"Strategic Partnerships, Planning & Streetpride",BUILDBASE LTD,424,01/10/2019,3312417,550.00,0.00,Communities & Place,Structures and Building and Construction
Physical Support,Community Support - Physical Support,Community Support,BWA HEALTH AND CARE SERVICE LTD,1089474,01/10/2019,3323688,"1,112.82",0.00,N/A,N/A
Physical Support,Community Support - Physical Support,Community Support,BWA HEALTH AND CARE SERVICE LTD,1089474,01/10/2019,3323609,"1,024.50",0.00,N/A,N/A
Physical Support,Community Support - Physical Support,Community Support,BWA HEALTH AND CARE SERVICE LTD,1089474,01/10/2019,3323900,"1,366.00",0.00,N/A,N/A
Physical Support,Community Support - Physical Support,Community Support,BWA HEALTH AND CARE SERVICE LTD,1089474,01/10/2019,3323815,"1,483.76",0.00,N/A,N/A
Integrated Services,Agency Placements,Non-Schools,BY THE BRIDGE LTD,577451,01/10/2019,3320407,"3,755.87",0.00,N/A,N/A
Integrated Services,Agency Placements,Non-Schools,BY THE BRIDGE LTD,577451,01/10/2019,3320419,"4,291.86",0.00,N/A,N/A
Integrated Services,Agency Placements,Non-Schools,BY THE BRIDGE LTD,577451,01/10/2019,3322197,"3,864.86",0.00,N/A,N/A
Integrated Services,Agency Placements,Non-Schools,BY THE BRIDGE NORTH WEST LTD,471119,01/10/2019,3311065,"4,424.59",0.00,People Services - Children & Young People,Healthcare Services
Integrated Services,Agency Placements,Non-Schools,CALDECOTT FOSTERING LTD,216392,01/10/2019,3322221,"5,314.33",0.00,People Services - Children & Young People,Politics and Civic Affairs Services
Integrated Services,Agency Placements,Non-Schools,CALDECOTT FOSTERING LTD,216392,01/10/2019,3322268,"4,428.66",0.00,People Services - Children & Young People,Politics and Civic Affairs Services
Integrated Services,Agency Placements,Non-Schools,CALDECOTT FOSTERING LTD,216392,01/10/2019,3322288,"4,871.43",0.00,People Services - Children & Young People,Politics and Civic Affairs Services
Integrated Services,Agency Placements,Non-Schools,CAPSTONE CARE PROVIDER LTD,751446,01/10/2019,3322167,"14,390.64",0.00,N/A,N/A
Integrated Services,Agency Placements,Non-Schools,CAPSTONE CARE PROVIDER LTD,751446,01/10/2019,3322294,"14,835.71",0.00,N/A,N/A
Integrated Services,Agency Placements,Non-Schools,CAPSTONE FOSTER CARE,125689,01/10/2019,3322211,"3,428.60",0.00,People Services - Children & Young People,Politics and Civic Affairs Services
Integrated Services,Agency Placements,Non-Schools,CAPSTONE FOSTER CARE,125689,01/10/2019,3322212,"3,535.68",0.00,People Services - Children & Young People,Politics and Civic Affairs Services
Integrated Services,Agency Placements,Non-Schools,CAPSTONE FOSTER CARE,125689,01/10/2019,3322216,"3,292.82",0.00,People Services - Children & Young People,Politics and Civic Affairs Services
Integrated Services,Agency Placements,Non-Schools,CAPSTONE FOSTER CARE,125689,01/10/2019,3322217,"3,337.17",0.00,People Services - Children & Young People,Politics and Civic Affairs Services
Integrated Services,Agency Placements,Non-Schools,CARE 4 CHILDREN RESIDENTIAL SERVICES LIMITED,978474,01/10/2019,3322225,"24,357.01",0.00,N/A,N/A
Mental Health Support,Community Support - Mental Health Support,Community Support,CEDAR HOUSE EXTRA CARE DCS,537474,01/10/2019,3323761,699.16,0.00,N/A,N/A
Regeneration Projects,Regeneration Projects,"Regeneration, Property & Housing",CENTRAL HIGH RISE LTD,187900,01/10/2019,3323575,"4,162.00",0.00,N/A,N/A
Non Delegated Schools Budget,Non Delegated School Expenditure,Schools Block,CER,996468,01/10/2019,3324405,735.00,0.00,N/A,N/A
Non Delegated Schools Budget,Non Delegated School Expenditure,Schools Block,CER,996468,01/10/2019,3324406,525.00,0.00,N/A,N/A
Learning & Inclusion,Quality Standards and Performance,Non-Schools,CHESTERFIELD FOOTBALL CLUB,1049478,01/10/2019,3324396,562.51,0.00,N/A,N/A
Learning & Inclusion,Quality Standards and Performance,Non-Schools,CHESTERFIELD FOOTBALL CLUB,1049478,01/10/2019,3324396,"1,770.83",0.00,N/A,N/A
Integrated Services,Agency Placements,Non-Schools,CHRYSALIS CONSORTIUM,178378,01/10/2019,3322287,"5,314.33",0.00,People Services - Children & Young People,Politics and Civic Affairs Services
Integrated Services,Agency Placements,Non-Schools,CHRYSALIS CONSORTIUM,178378,01/10/2019,3322291,"5,314.33",0.00,People Services - Children & Young People,Politics and Civic Affairs Services
Democracy,Democracy,Governance and Assurance,CIVICA UK LTD,44729,01/10/2019,3325012,"11,310.00",0.00,Organisation & Governance,Engineering and Research and Technology
Democracy,Democracy,Governance and Assurance,CIVICA UK LTD,44729,01/10/2019,3325012,"5,000.00",0.00,Organisation & Governance,Engineering and Research and Technology
Information Systems Support,Information Systems Support,Digital Services,CIVICA UK LTD,44729,01/10/2019,3317419,990.00,0.00,Organisation & Governance,Engineering and Research and Technology
Learning Disability Support,Community Support - Learning Disability Support,Community Support,COMMUNITY LINKS DERBY CIC,868453,01/10/2019,3324536,"1,638.40",0.00,N/A,N/A
Integrated Services,Agency Placements,Non-Schools,COMPASS FOSTERING CENTRAL LTD,194367,01/10/2019,3322160,"2,710.02",0.00,People Services - Children & Young People,Politics and Civic Affairs Services
Integrated Services,Agency Placements,Non-Schools,COMPASS FOSTERING CENTRAL LTD,194367,01/10/2019,3322172,"2,710.02",0.00,People Services - Children & Young People,Politics and Civic Affairs Services
Integrated Services,Agency Placements,Non-Schools,COMPASS FOSTERING CENTRAL LTD,194367,01/10/2019,3322174,"2,984.99",0.00,People Services - Children & Young People,Politics and Civic Affairs Services
Integrated Services,Agency Placements,Non-Schools,COMPASS FOSTERING CENTRAL LTD,194367,01/10/2019,3322175,"3,274.84",0.00,People Services - Children & Young People,Politics and Civic Affairs Services
Integrated Services,Agency Placements,Non-Schools,COMPASS FOSTERING CENTRAL LTD,194367,01/10/2019,3322177,"3,162.00",0.00,People Services - Children & Young People,Politics and Civic Affairs Services
Integrated Services,Agency Placements,Non-Schools,COMPASS FOSTERING CENTRAL LTD,194367,01/10/2019,3322179,"3,274.84",0.00,People Services - Children & Young People,Politics and Civic Affairs Services
Integrated Services,Agency Placements,Non-Schools,COMPASS FOSTERING CENTRAL LTD,194367,01/10/2019,3322180,"3,274.84",0.00,People Services - Children & Young People,Politics and Civic Affairs Services
Integrated Services,Agency Placements,Non-Schools,COMPASS FOSTERING CENTRAL LTD,194367,01/10/2019,3322196,"2,710.02",0.00,People Services - Children & Young People,Politics and Civic Affairs Services
Integrated Services,Agency Placements,Non-Schools,CORA FOUNDATION,469424,01/10/2019,3310959,"86,348.44",0.00,People Services - Children & Young People,Healthcare Services
Integrated Services,Agency Placements,Non-Schools,CREDO CARE LTD,122993,01/10/2019,3323383,"6,634.00",0.00,People Services - Children & Young People,Politics and Civic Affairs Services
Non Delegated Schools Budget,Non Delegated School Expenditure,Schools Block,CURRYS PC WORLD BUSINESS,1147472,01/10/2019,3324411,"1,329.24",0.00,N/A,N/A
General,Stores Road Depot & Fleet Management,"Strategic Partnerships, Planning & Streetpride",DAVENPORT BROTHERS LTD,109248,01/10/2019,3323392,"5,632.00",0.00,Communities & Place,Transportation and Storage and Mail Serv
General,Stores Road Depot & Fleet Management,"Strategic Partnerships, Planning & Streetpride",DERBY AUTO ELECTRICAL SERVICES LTD,155413,01/10/2019,3325005,573.56,0.00,Communities & Place,Electrical systems and Lighting and comp
Leisure,Leisure,"Leisure, Culture and Tourism",DERBY COUNTY COMMUNITY TRUST,178343,01/10/2019,3306833,"55,000.00",0.00,N/A,N/A
Retained Housing Revenue Account,Retained Housing Revenue Account,"Regeneration, Property & Housing",DERBY HOMES LTD,1078471,01/10/2019,3325065,"404,940.00",0.00,N/A,N/A
General,Stores Road Depot & Fleet Management,"Strategic Partnerships, Planning & Streetpride",DERBY HOMES LTD,1078471,01/10/2019,3310955,"1,275.25",0.00,N/A,N/A
Neighbourhoods,Capital,Capital,DERBY RENTALS LTD,1001487,01/10/2019,3323369,"18,596.67",0.00,N/A,N/A
Integrated Commissioning,Integrated Commissioning,Commissioning,DERBYSHIRE CARE SERVICES,1207,01/10/2019,3323420,"2,099.12",0.00,N/A,N/A
Integrated Commissioning,Integrated Commissioning,Commissioning,DERBYSHIRE CARE SERVICES,1207,01/10/2019,3323375,"4,308.72",0.00,N/A,N/A
Integrated Commissioning,Integrated Commissioning,Commissioning,DERBYSHIRE CARE SERVICES,1207,01/10/2019,3323444,"3,025.60",0.00,N/A,N/A
Integrated Commissioning,Integrated Commissioning,Commissioning,DERBYSHIRE CARE SERVICES,1207,01/10/2019,3323445,"4,308.72",0.00,N/A,N/A
Integrated Commissioning,Integrated Commissioning,Commissioning,DERBYSHIRE CARE SERVICES,1207,01/10/2019,3323447,"2,099.12",0.00,N/A,N/A
Integrated Commissioning,Integrated Commissioning,Commissioning,DERBYSHIRE CARE SERVICES,1207,01/10/2019,3323473,"3,025.60",0.00,N/A,N/A
Public Health,Sexual Health,Public Health,DERBYSHIRE COMMUNITY HEALTH SERVICE NHS TRUST,109973,01/10/2019,3317497,"184,250.00",0.00,People Services - Adults and Health,Education and Training Services
Neighbourhoods,Capital,Capital,DERBYSHIRE COUNTY COUNCIL,1042479,01/10/2019,3310913,"1,589.10",0.00,N/A,N/A
Learning Disability Support,Community Support - Learning Disability Support,Community Support,DIMENSIONS UK LTD,388489,01/10/2019,3324038,530.00,0.00,N/A,N/A
Libraries,Libraries,"Leisure, Culture and Tourism",DIRECT HELP AND ADVICE,231416,01/10/2019,3320497,"61,124.00",0.00,N/A,N/A
Adults Health and Housing,Capital,Capital,DIRECT STAIRLIFTS LTD,1108473,01/10/2019,3320440,"1,752.00",0.00,N/A,N/A
HR Casework,Human Resources,Governance and Assurance,DISCLOSURE AND BARRING SERVICE,146440,01/10/2019,3320481,"8,673.00",0.00,N/A,N/A
Refuse & Waste Management,Refuse Collection,"Strategic Partnerships, Planning & Streetpride",DONINGTON PLASTICS LTD,1156469,01/10/2019,3323331,760.00,0.00,N/A,N/A
Property Design & Maintenance,Building - Repairs & Maintenance,"Regeneration, Property & Housing",DUCTBUSTERS,822458,01/10/2019,3323586,"3,470.00",0.00,N/A,N/A
Regeneration Projects,Connect Project,"Regeneration, Property & Housing",E ON ENERGY,9014,01/10/2019,3321388,"1,268.59",0.00,N/A,N/A
Integrated Services,Agency Placements,Non-Schools,ESLAND NORTH LTD,268397,01/10/2019,3322201,"19,707.14",0.00,People Services - Children & Young People,Structures and Building and Construction
Integrated Services,Agency Placements,Non-Schools,ESLAND NORTH LTD,268397,01/10/2019,3322202,"2,970.00",0.00,People Services - Children & Young People,Structures and Building and Construction
Legal Services,Legal Services,Governance and Assurance,EVERSHEDS SUTHERLAND INTERNATIONAL LLP,910471,01/10/2019,3306807,"4,707.30",0.00,N/A,N/A
Traffic & Transportation,Parking Services,"Strategic Partnerships, Planning & Streetpride",EXCEL PARKING SERVICES LTD,124214,01/10/2019,3307912,"4,999.59",0.00,Communities & Place,Defense and Law Enforcement and Security
Business Support,Business Support,Strategic Services and Organisational Development,FINANCIAL DATA MANAGEMENT LTD,1559,01/10/2019,3320441,"1,902.10",0.00,N/A,N/A
Business Support,Business Support,Strategic Services and Organisational Development,FINANCIAL DATA MANAGEMENT LTD,1559,01/10/2019,3320472,948.93,0.00,N/A,N/A
Business Support,Business Support,Strategic Services and Organisational Development,FINANCIAL DATA MANAGEMENT LTD,1559,01/10/2019,3321396,"1,137.99",0.00,N/A,N/A
Traffic & Transportation,Parking Services,"Strategic Partnerships, Planning & Streetpride",FLOWBIRD SMART CITY UK LIMITED,981473,01/10/2019,3310364,"8,189.36",0.00,N/A,N/A
Culture & Business Development,Culture & Business Development,"Leisure, Culture and Tourism",FLYING HIRE LTD,202380,01/10/2019,3323474,"1,576.51",0.00,Communities & Place,Power Generation and Distribution Machin
Culture & Business Development,Culture & Business Development,"Leisure, Culture and Tourism",FLYING HIRE LTD,202380,01/10/2019,3323474,700.00,0.00,Communities & Place,Power Generation and Distribution Machin
Integrated Services,Agency Placements,Non-Schools,FOSTER CARE ASSOCIATES LTD fca,885474,01/10/2019,3322236,"3,397.60",0.00,N/A,N/A
Integrated Services,Agency Placements,Non-Schools,FOSTER CARE ASSOCIATES LTD fca,885474,01/10/2019,3322237,"5,440.50",0.00,N/A,N/A
Integrated Services,Agency Placements,Non-Schools,FOSTER CARE ASSOCIATES LTD fca,885474,01/10/2019,3322240,"3,397.60",0.00,N/A,N/A
Integrated Services,Agency Placements,Non-Schools,FOSTER CARE ASSOCIATES LTD fca,885474,01/10/2019,3322243,"3,174.40",0.00,N/A,N/A
Integrated Services,Agency Placements,Non-Schools,FOSTER CARE ASSOCIATES LTD fca,885474,01/10/2019,3322228,"3,930.18",0.00,N/A,N/A
Integrated Services,Agency Placements,Non-Schools,FOSTER CARE ASSOCIATES LTD fca,885474,01/10/2019,3322253,"3,568.10",0.00,N/A,N/A
Integrated Services,Agency Placements,Non-Schools,FOSTERING PEOPLE LTD,8384,01/10/2019,3305662,"2,097.90",0.00,People Services - Children & Young People,Politics and Civic Affairs Services
Integrated Services,Agency Placements,Non-Schools,FOSTERING PEOPLE LTD,8384,01/10/2019,3322239,"1,333.20",0.00,People Services - Children & Young People,Politics and Civic Affairs Services
Integrated Services,Agency Placements,Non-Schools,FOSTERING PEOPLE LTD,8384,01/10/2019,3322241,"3,356.68",0.00,People Services - Children & Young People,Politics and Civic Affairs Services
Integrated Services,Agency Placements,Non-Schools,FOSTERING PEOPLE LTD,8384,01/10/2019,3322206,"3,205.09",0.00,People Services - Children & Young People,Politics and Civic Affairs Services
Integrated Services,Agency Placements,Non-Schools,FOSTERING PEOPLE LTD,8384,01/10/2019,3322207,"3,971.72",0.00,People Services - Children & Young People,Politics and Civic Affairs Services
Integrated Services,Agency Placements,Non-Schools,FOSTERING PEOPLE LTD,8384,01/10/2019,3322208,"3,375.22",0.00,People Services - Children & Young People,Politics and Civic Affairs Services
Integrated Services,Agency Placements,Non-Schools,FOSTERING PEOPLE LTD,8384,01/10/2019,3322209,"3,096.90",0.00,People Services - Children & Young People,Politics and Civic Affairs Services
Integrated Services,Agency Placements,Non-Schools,FOSTERING PEOPLE LTD,8384,01/10/2019,3322213,"3,205.09",0.00,People Services - Children & Young People,Politics and Civic Affairs Services
Integrated Services,Agency Placements,Non-Schools,FOSTERING PEOPLE LTD,8384,01/10/2019,3322215,"3,270.50",0.00,People Services - Children & Young People,Politics and Civic Affairs Services
Integrated Services,Agency Placements,Non-Schools,FOSTERING PEOPLE LTD,8384,01/10/2019,3322247,"3,375.22",0.00,People Services - Children & Young People,Politics and Civic Affairs Services
Integrated Services,Agency Placements,Non-Schools,FOSTERING PEOPLE LTD,8384,01/10/2019,3322251,"3,034.96",0.00,People Services - Children & Young People,Politics and Civic Affairs Services
Integrated Services,Agency Placements,Non-Schools,FOSTERING PEOPLE LTD,8384,01/10/2019,3322258,"3,096.90",0.00,People Services - Children & Young People,Politics and Civic Affairs Services
Integrated Services,Agency Placements,Non-Schools,FOSTERING PEOPLE LTD,8384,01/10/2019,3322326,"3,444.10",0.00,People Services - Children & Young People,Politics and Civic Affairs Services
Integrated Services,Agency Placements,Non-Schools,FOSTERING PEOPLE LTD,8384,01/10/2019,3323388,634.28,0.00,People Services - Children & Young People,Politics and Civic Affairs Services
Integrated Services,Agency Placements,Non-Schools,FOSTERPLUS LTD,912479,01/10/2019,3322238,"2,748.46",0.00,N/A,N/A
Regeneration Projects,Connect Project,"Regeneration, Property & Housing",FRANCOTYP POSTALIA LTD,833444,01/10/2019,3323467,"1,000.00",0.00,N/A,N/A
Regeneration Projects,Connect Project,"Regeneration, Property & Housing",FRANCOTYP POSTALIA LTD,1104479,01/10/2019,3323468,579.00,0.00,N/A,N/A
"Information, Computing & Technology","Information, Computing & Technology",Digital Services,FREETHS LLP,821453,01/10/2019,3322312,"1,009.50",0.00,N/A,N/A
Integrated Services,Agency Placements,Non-Schools,FUTURE IN MIND,879471,01/10/2019,3322283,"15,057.15",0.00,N/A,N/A
Strategic Asset Management and Estates,Strategic Asset Management and Estates,"Regeneration, Property & Housing",GADSBY NICHOLS,942474,01/10/2019,3276510,"4,000.00",0.00,N/A,N/A
Strategic Asset Management and Estates,Strategic Asset Management and Estates,"Regeneration, Property & Housing",GADSBY NICHOLS,942474,01/10/2019,3324388,"4,000.00",0.00,N/A,N/A
Strategic Asset Management and Estates,Strategic Asset Management and Estates,"Regeneration, Property & Housing",GADSBY NICHOLS,942474,01/10/2019,3324391,"4,000.00",0.00,N/A,N/A
Neighbourhoods,Capital,Capital,GELDARDS LLP,905479,01/10/2019,3323343,750.00,0.00,N/A,N/A
Children and Young People,Capital,Capital,GF TOMLINSON BUILDING LTD,188552,01/10/2019,3323565,"288,979.25",0.00,N/A,N/A
Children and Young People,Capital,Capital,GF TOMLINSON BUILDING LTD,188552,01/10/2019,3323572,"7,557.00",0.00,N/A,N/A
Children and Young People,Capital,Capital,GF TOMLINSON BUILDING LTD,188552,01/10/2019,3323573,"85,215.52",0.00,N/A,N/A
Children and Young People,Capital,Capital,GF TOMLINSON BUILDING LTD,188552,01/10/2019,3323580,"20,636.75",0.00,N/A,N/A
Children and Young People,Capital,Capital,GF TOMLINSON BUILDING LTD,188552,01/10/2019,3323593,"131,231.89",0.00,N/A,N/A
Learning & Inclusion,Inclusion & Intervention,Non-Schools,GLOBAL MEDIATION,386438,01/10/2019,3321436,"1,260.00",0.00,People Services - Children & Young People,Healthcare Services
Grounds Maintenance & Cleansing,Cleansing (inc public conveniences & gullies),"Strategic Partnerships, Planning & Streetpride",GRAFFITI REMOVAL LTD,958468,01/10/2019,3324418,514.40,0.00,N/A,N/A
Support with Memory and Cognition,Community Support - Support with Memory and Cognition,Community Support,GREENWICH GARDENS EXTRA CAS DCS,537476,01/10/2019,3323760,"1,009.58",0.00,N/A,N/A
Support with Memory and Cognition,Community Support - Support with Memory and Cognition,Community Support,GREENWICH GARDENS EXTRA CAS DCS,537476,01/10/2019,3323930,"1,172.98",0.00,N/A,N/A
Neighbourhoods,Capital,Capital,GTM GO TRAFFIC MANAGEMENT,200402,01/10/2019,3305400,580.00,0.00,Active Travel - Cycle Derby,Defense and Law Enforcement and Security
Neighbourhoods,Capital,Capital,GTM GO TRAFFIC MANAGEMENT,200402,01/10/2019,3309308,"1,050.00",0.00,Network Management - Local Traffic Management,Defense and Law Enforcement and Security
Strategic Asset Management and Estates,Strategic Asset Management and Estates,"Regeneration, Property & Housing",HAYS SPECIALIST RECRUITMENT LTD,1852,01/10/2019,3294847,"2,040.45",0.00,N/A,N/A
Strategic Asset Management and Estates,Strategic Asset Management and Estates,"Regeneration, Property & Housing",HAYS SPECIALIST RECRUITMENT LTD,1852,01/10/2019,3294847,"2,127.36",0.00,N/A,N/A
Strategic Asset Management and Estates,Strategic Asset Management and Estates,"Regeneration, Property & Housing",HAYS SPECIALIST RECRUITMENT LTD,1852,01/10/2019,3294847,"2,127.36",0.00,N/A,N/A
Culture & Business Development,Culture & Business Development,"Leisure, Culture and Tourism",HICKLING AND SQUIRES LTD,1103476,01/10/2019,3321632,840.00,0.00,N/A,N/A
Strategic Housing,Housing and Advice,"Regeneration, Property & Housing",HILBROKE HOUSE LTD,1002472,01/10/2019,3321709,521.50,0.00,N/A,N/A
Strategic Housing,Housing and Advice,"Regeneration, Property & Housing",HILBROKE HOUSE LTD,1002472,01/10/2019,3321713,521.50,0.00,N/A,N/A
Strategic Housing,Housing and Advice,"Regeneration, Property & Housing",HILBROKE HOUSE LTD,1002472,01/10/2019,3321714,521.50,0.00,N/A,N/A
Early Help & Children�s Safeguarding,Integrated Services Locality 3/4,Non-Schools,HILBROKE HOUSE LTD,1002472,01/10/2019,3324434,525.00,0.00,N/A,N/A
Integrated Services,Agency Placements,Non-Schools,HILLCREST CHILDRENS SERVICES 2 LIMITED,936469,01/10/2019,3282872,577.30,0.00,N/A,N/A
Learning Disability Support,Community Support - Learning Disability Support,Community Support,HOME SUPPORT SERVICES,1120475,01/10/2019,3323822,"1,379.80",0.00,N/A,N/A
Physical Support,Community Support - Physical Support,Community Support,HOME SUPPORT SERVICES,1120475,01/10/2019,3323910,931.48,0.00,N/A,N/A
Physical Support,Community Support - Physical Support,Community Support,HOME SUPPORT SERVICES,1120475,01/10/2019,3323785,931.48,0.00,N/A,N/A
Physical Support,Community Support - Physical Support,Community Support,HOME SUPPORT SERVICES,1120475,01/10/2019,3323786,981.84,0.00,N/A,N/A
Support with Memory and Cognition,Community Support - Support with Memory and Cognition,Community Support,HOME SUPPORT SERVICES,1120475,01/10/2019,3323618,"1,103.24",0.00,N/A,N/A
Support with Memory and Cognition,Community Support - Support with Memory and Cognition,Community Support,HOME SUPPORT SERVICES,1120475,01/10/2019,3323700,"1,103.24",0.00,N/A,N/A
Mental Health Support,Mental Health - Mental Health Support,Mental Health,HOME SUPPORT SERVICES,1120475,01/10/2019,3323659,"1,507.00",0.00,N/A,N/A
Grounds Maintenance & Cleansing,Grounds Maintenance,"Strategic Partnerships, Planning & Streetpride",HONEY BROTHERS LTD,122029,01/10/2019,3321448,860.40,0.00,Communities & Place,Farming Fishing Forestry and Wildlife Co
Integrated Services,Agency Placements,Non-Schools,HOPE FOSTERING SERVICE,124244,01/10/2019,3322182,"3,388.00",0.00,People Services - Children & Young People,Politics and Civic Affairs Services
Integrated Services,Agency Placements,Non-Schools,HOPE FOSTERING SERVICE,124244,01/10/2019,3322183,"3,430.00",0.00,People Services - Children & Young People,Politics and Civic Affairs Services
Integrated Services,Agency Placements,Non-Schools,HOPE FOSTERING SERVICE,124244,01/10/2019,3322185,"2,953.00",0.00,People Services - Children & Young People,Politics and Civic Affairs Services
Integrated Services,Agency Placements,Non-Schools,HOPE FOSTERING SERVICE,124244,01/10/2019,3322187,"2,930.00",0.00,People Services - Children & Young People,Politics and Civic Affairs Services
Integrated Services,Agency Placements,Non-Schools,HOPE FOSTERING SERVICE,124244,01/10/2019,3322189,"3,109.00",0.00,People Services - Children & Young People,Politics and Civic Affairs Services
Integrated Services,Agency Placements,Non-Schools,HOPE FOSTERING SERVICE,124244,01/10/2019,3322190,"2,953.00",0.00,People Services - Children & Young People,Politics and Civic Affairs Services
Integrated Services,Agency Placements,Non-Schools,HOPE FOSTERING SERVICE,124244,01/10/2019,3322193,"2,930.00",0.00,People Services - Children & Young People,Politics and Civic Affairs Services
Integrated Services,Agency Placements,Non-Schools,HOPE FOSTERING SERVICE,124244,01/10/2019,3322198,"2,953.00",0.00,People Services - Children & Young People,Politics and Civic Affairs Services
Integrated Services,Agency Placements,Non-Schools,HOPE FOSTERING SERVICE,124244,01/10/2019,3322222,"3,322.00",0.00,People Services - Children & Young People,Politics and Civic Affairs Services
Learning Disability Support,Community Support - Learning Disability Support,Community Support,HOUSING 21,1116470,01/10/2019,3323890,"1,008.92",0.00,N/A,N/A
Learning Disability Support,Community Support - Learning Disability Support,Community Support,HOUSING 21,1116470,01/10/2019,3323946,989.48,0.00,N/A,N/A
Learning Disability Support,Community Support - Learning Disability Support,Community Support,HOUSING 21,1116470,01/10/2019,3323947,"1,185.56",0.00,N/A,N/A
Physical Support,Community Support - Physical Support,Community Support,HOUSING 21,1116470,01/10/2019,3323641,776.12,0.00,N/A,N/A
Physical Support,Community Support - Physical Support,Community Support,HOUSING 21,1116470,01/10/2019,3323642,856.60,0.00,N/A,N/A
Physical Support,Community Support - Physical Support,Community Support,HOUSING 21,1116470,01/10/2019,3323643,876.96,0.00,N/A,N/A
Physical Support,Community Support - Physical Support,Community Support,HOUSING 21,1116470,01/10/2019,3323842,"1,008.92",0.00,N/A,N/A
Physical Support,Community Support - Physical Support,Community Support,HOUSING 21,1116470,01/10/2019,3323843,"1,022.36",0.00,N/A,N/A
Physical Support,Community Support - Physical Support,Community Support,HOUSING 21,1116470,01/10/2019,3323844,"1,048.72",0.00,N/A,N/A
Physical Support,Community Support - Physical Support,Community Support,HOUSING 21,1116470,01/10/2019,3323845,"1,066.83",0.00,N/A,N/A
Physical Support,Community Support - Physical Support,Community Support,HOUSING 21,1116470,01/10/2019,3323846,"1,270.08",0.00,N/A,N/A
Physical Support,Community Support - Physical Support,Community Support,HOUSING 21,1116470,01/10/2019,3323884,655.36,0.00,N/A,N/A
Physical Support,Community Support - Physical Support,Community Support,HOUSING 21,1116470,01/10/2019,3323885,687.40,0.00,N/A,N/A
Physical Support,Community Support - Physical Support,Community Support,HOUSING 21,1116470,01/10/2019,3323730,"1,364.61",0.00,N/A,N/A
Physical Support,Community Support - Physical Support,Community Support,HOUSING 21,1116470,01/10/2019,3323733,582.87,0.00,N/A,N/A
Physical Support,Community Support - Physical Support,Community Support,HOUSING 21,1116470,01/10/2019,3323734,856.60,0.00,N/A,N/A
Physical Support,Community Support - Physical Support,Community Support,HOUSING 21,1116470,01/10/2019,3323735,"1,152.44",0.00,N/A,N/A
Physical Support,Community Support - Physical Support,Community Support,HOUSING 21,1116470,01/10/2019,3323770,"1,232.13",0.00,N/A,N/A
Physical Support,Community Support - Physical Support,Community Support,HOUSING 21,1116470,01/10/2019,3323771,932.04,0.00,N/A,N/A
Physical Support,Community Support - Physical Support,Community Support,HOUSING 21,1116470,01/10/2019,3323772,"1,019.28",0.00,N/A,N/A
Physical Support,Community Support - Physical Support,Community Support,HOUSING 21,1116470,01/10/2019,3323773,762.28,0.00,N/A,N/A
Physical Support,Community Support - Physical Support,Community Support,HOUSING 21,1116470,01/10/2019,3323774,937.92,0.00,N/A,N/A
Physical Support,Community Support - Physical Support,Community Support,HOUSING 21,1116470,01/10/2019,3323808,762.28,0.00,N/A,N/A
Physical Support,Community Support - Physical Support,Community Support,HOUSING 21,1116470,01/10/2019,3323809,912.04,0.00,N/A,N/A
Physical Support,Community Support - Physical Support,Community Support,HOUSING 21,1116470,01/10/2019,3323810,"1,152.44",0.00,N/A,N/A
Physical Support,Community Support - Physical Support,Community Support,HOUSING 21,1116470,01/10/2019,3323944,856.60,0.00,N/A,N/A
Physical Support,Community Support - Physical Support,Community Support,HOUSING 21,1116470,01/10/2019,3323945,953.48,0.00,N/A,N/A
Support with Memory and Cognition,Community Support - Support with Memory and Cognition,Community Support,HOUSING 21,1116470,01/10/2019,3323681,771.88,0.00,N/A,N/A
Mental Health Support,Mental Health - Mental Health Support,Mental Health,HOUSING 21,1116470,01/10/2019,3323811,"1,245.88",0.00,N/A,N/A
Learning Disability Support,Community Support - Learning Disability Support,Community Support,I CARE GB LTD,471255,01/10/2019,3323927,917.66,0.00,N/A,N/A
Learning Disability Support,Community Support - Learning Disability Support,Community Support,I CARE GB LTD,471255,01/10/2019,3323716,917.66,0.00,N/A,N/A
Mental Health Support,Community Support - Mental Health Support,Community Support,I CARE GB LTD,471255,01/10/2019,3323928,"1,316.80",0.00,N/A,N/A
Mental Health Support,Community Support - Mental Health Support,Community Support,I CARE GB LTD,471255,01/10/2019,3323796,"1,316.80",0.00,N/A,N/A
Physical Support,Community Support - Physical Support,Community Support,I CARE GB LTD,471255,01/10/2019,3323653,693.91,0.00,N/A,N/A
Physical Support,Community Support - Physical Support,Community Support,I CARE GB LTD,471255,01/10/2019,3323697,687.40,0.00,N/A,N/A
Physical Support,Community Support - Physical Support,Community Support,I CARE GB LTD,471255,01/10/2019,3323662,605.84,0.00,N/A,N/A
Physical Support,Community Support - Physical Support,Community Support,I CARE GB LTD,471255,01/10/2019,3323668,630.80,0.00,N/A,N/A
Physical Support,Community Support - Physical Support,Community Support,I CARE GB LTD,471255,01/10/2019,3323626,605.84,0.00,N/A,N/A
Physical Support,Community Support - Physical Support,Community Support,I CARE GB LTD,471255,01/10/2019,3323627,694.72,0.00,N/A,N/A
Physical Support,Community Support - Physical Support,Community Support,I CARE GB LTD,471255,01/10/2019,3323628,"1,199.16",0.00,N/A,N/A
Physical Support,Community Support - Physical Support,Community Support,I CARE GB LTD,471255,01/10/2019,3323853,693.91,0.00,N/A,N/A
Physical Support,Community Support - Physical Support,Community Support,I CARE GB LTD,471255,01/10/2019,3323859,582.94,0.00,N/A,N/A
Physical Support,Community Support - Physical Support,Community Support,I CARE GB LTD,471255,01/10/2019,3323860,701.71,0.00,N/A,N/A
Physical Support,Community Support - Physical Support,Community Support,I CARE GB LTD,471255,01/10/2019,3323861,713.28,0.00,N/A,N/A
Physical Support,Community Support - Physical Support,Community Support,I CARE GB LTD,471255,01/10/2019,3323872,677.56,0.00,N/A,N/A
Physical Support,Community Support - Physical Support,Community Support,I CARE GB LTD,471255,01/10/2019,3323908,714.70,0.00,N/A,N/A
Physical Support,Community Support - Physical Support,Community Support,I CARE GB LTD,471255,01/10/2019,3323924,"1,032.24",0.00,N/A,N/A
Physical Support,Community Support - Physical Support,Community Support,I CARE GB LTD,471255,01/10/2019,3323926,612.56,0.00,N/A,N/A
Physical Support,Community Support - Physical Support,Community Support,I CARE GB LTD,471255,01/10/2019,3323698,713.28,0.00,N/A,N/A
Physical Support,Community Support - Physical Support,Community Support,I CARE GB LTD,471255,01/10/2019,3323704,694.72,0.00,N/A,N/A
Physical Support,Community Support - Physical Support,Community Support,I CARE GB LTD,471255,01/10/2019,3323714,784.28,0.00,N/A,N/A
Physical Support,Community Support - Physical Support,Community Support,I CARE GB LTD,471255,01/10/2019,3323715,"1,162.12",0.00,N/A,N/A
Physical Support,Community Support - Physical Support,Community Support,I CARE GB LTD,471255,01/10/2019,3323742,881.92,0.00,N/A,N/A
Physical Support,Community Support - Physical Support,Community Support,I CARE GB LTD,471255,01/10/2019,3323757,960.82,0.00,N/A,N/A
Physical Support,Community Support - Physical Support,Community Support,I CARE GB LTD,471255,01/10/2019,3323783,762.28,0.00,N/A,N/A
Physical Support,Community Support - Physical Support,Community Support,I CARE GB LTD,471255,01/10/2019,3323795,"1,175.72",0.00,N/A,N/A
Physical Support,Community Support - Physical Support,Community Support,I CARE GB LTD,471255,01/10/2019,3323816,731.34,0.00,N/A,N/A
Physical Support,Community Support - Physical Support,Community Support,I CARE GB LTD,471255,01/10/2019,3323817,731.34,0.00,N/A,N/A
Physical Support,Community Support - Physical Support,Community Support,I CARE GB LTD,471255,01/10/2019,3323821,833.25,0.00,N/A,N/A
Support with Memory and Cognition,Community Support - Support with Memory and Cognition,Community Support,I CARE GB LTD,471255,01/10/2019,3323670,638.40,0.00,N/A,N/A
Mental Health Support,Mental Health - Mental Health Support,Mental Health,I CARE GB LTD,471255,01/10/2019,3323929,663.26,0.00,N/A,N/A
Information Systems Support,Information Systems Support,Digital Services,IDOX SOFTWARE LTD,857453,01/10/2019,3323347,"19,200.00",0.00,N/A,N/A
Social Care Activities,Direct Services - Social Care Activities,Direct Services,IMPERIAL,2285,01/10/2019,3325166,552.21,0.00,People Services - Adults and Health,Industrial Cleaning Services
Integrated Services,Agency Placements,Non-Schools,ISP CENTRAL OFFICE,502422,01/10/2019,3322252,"5,752.67",0.00,N/A,N/A
Integrated Services,Agency Placements,Non-Schools,ISP CENTRAL OFFICE,502422,01/10/2019,3322260,"5,752.67",0.00,N/A,N/A
Integrated Services,Agency Placements,Non-Schools,ISP CENTRAL OFFICE,502422,01/10/2019,3322261,"5,752.67",0.00,N/A,N/A
Integrated Services,Agency Placements,Non-Schools,ISP CENTRAL OFFICE,502422,01/10/2019,3322265,"5,752.67",0.00,N/A,N/A
Early Help & Children�s Safeguarding,Reception Services,Non-Schools,ISPOKE LANGUAGES LTD,689447,01/10/2019,3323429,764.40,0.00,N/A,N/A
Property Design & Maintenance,Building - Repairs & Maintenance,"Regeneration, Property & Housing",JDF FLOORING LTD,1021470,01/10/2019,3323597,"2,580.00",0.00,N/A,N/A
Property Design & Maintenance,Building - Repairs & Maintenance,"Regeneration, Property & Housing",JDF FLOORING LTD,1021470,01/10/2019,3323598,"2,360.00",0.00,N/A,N/A
Property Design & Maintenance,Building - Repairs & Maintenance,"Regeneration, Property & Housing",KONE PLC,188097,01/10/2019,3323596,904.76,0.00,N/A,N/A
Mental Health Support,Mental Health - Mental Health Support,Mental Health,LAM SERVICES LIMITED,900486,01/10/2019,3322054,"2,865.84",0.00,N/A,N/A
Learning & Inclusion,Inclusion & Intervention,Non-Schools,LANDAU FORTE COLLEGE,11492,01/10/2019,3324461,"110,400.00",0.00,N/A,N/A
Property Design & Maintenance,Building - Repairs & Maintenance,"Regeneration, Property & Housing",LANGLEY GATES AND RAILINGS LTD,188101,01/10/2019,3323578,525.00,0.00,N/A,N/A
Highways & Engineering,Engineering,"Strategic Partnerships, Planning & Streetpride",LANGLEY GATES AND RAILINGS LTD,2672,01/10/2019,3320486,600.00,0.00,Communities & Place,Structures and Building and Construction
Learning Disability Support,Transitions and Ordinary Lives - Learning Disability Support,Transitions and Ordinary Lives,LANGLEY HOUSE TRUST,1024478,01/10/2019,3324289,"7,648.00",0.00,N/A,N/A
Learning Disability Support,Transitions and Ordinary Lives - Learning Disability Support,Transitions and Ordinary Lives,LANGLEY HOUSE TRUST,1024478,01/10/2019,3324832,"7,648.00",0.00,N/A,N/A
Learning Disability Support,Transitions and Ordinary Lives - Learning Disability Support,Transitions and Ordinary Lives,LANGLEY HOUSE TRUST,1024478,01/10/2019,3324834,"7,648.00",0.00,N/A,N/A
Learning Disability Support,Transitions and Ordinary Lives - Learning Disability Support,Transitions and Ordinary Lives,LANGLEY HOUSE TRUST,1024478,01/10/2019,3324836,"7,648.00",0.00,N/A,N/A
Learning Disability Support,Transitions and Ordinary Lives - Learning Disability Support,Transitions and Ordinary Lives,LANGLEY HOUSE TRUST,1024478,01/10/2019,3324961,"7,648.00",0.00,N/A,N/A
Learning Disability Support,Transitions and Ordinary Lives - Learning Disability Support,Transitions and Ordinary Lives,LANGLEY HOUSE TRUST,1024478,01/10/2019,3325174,"7,648.00",0.00,N/A,N/A
Learning Disability Support,Transitions and Ordinary Lives - Learning Disability Support,Transitions and Ordinary Lives,LANGLEY HOUSE TRUST,1024478,01/10/2019,3325175,"7,648.00",0.00,N/A,N/A
Learning Disability Support,Transitions and Ordinary Lives - Learning Disability Support,Transitions and Ordinary Lives,LANGLEY HOUSE TRUST,1024478,01/10/2019,3325176,"7,648.00",0.00,N/A,N/A
Learning Disability Support,Transitions and Ordinary Lives - Learning Disability Support,Transitions and Ordinary Lives,LANGLEY HOUSE TRUST,1024478,01/10/2019,3325177,"7,648.00",0.00,N/A,N/A
Commissioning - Schools Block,Recoupment - Independent Special School Fees,Schools Block,MAPLE HAYES SCHOOL,2581,01/10/2019,3324058,"5,210.20",0.00,N/A,N/A
Integrated Services,Youth Offending Service,Non-Schools,MASH UP DERBY LTD,426400,01/10/2019,3238376,600.00,0.00,People Services - Children & Young People,Editorial and Design and Graphic and Fin
Neighbourhoods,Capital,Capital,MATCHTECH GROUP PLC,2446,01/10/2019,3324426,"3,438.50",0.00,N/A,N/A
Neighbourhoods,Capital,Capital,MATCHTECH GROUP PLC,2446,01/10/2019,3324427,"1,897.50",0.00,N/A,N/A
Neighbourhoods,Capital,Capital,MATCHTECH GROUP PLC,2446,01/10/2019,3324428,"1,820.00",0.00,N/A,N/A
Neighbourhoods,Capital,Capital,MATCHTECH GROUP PLC,2446,01/10/2019,3324429,"1,580.00",0.00,N/A,N/A
Corporate,Corporate Resources Other,Corporate,MATRIX SCM LTD,822477,01/10/2019,3312382,"61,993.74",0.00,N/A,N/A
Corporate,Corporate Resources Other,Corporate,MATRIX SCM LTD,822477,01/10/2019,3312382,"23,887.29",0.00,N/A,N/A
Learning Disability Support,Community Support - Learning Disability Support,Community Support,MEARS CARE LIMITED,1052472,01/10/2019,3323639,773.06,0.00,N/A,N/A
Learning Disability Support,Community Support - Learning Disability Support,Community Support,MEARS CARE LIMITED,1052472,01/10/2019,3323942,765.33,0.00,N/A,N/A
Physical Support,Community Support - Physical Support,Community Support,MEARS CARE LIMITED,1052472,01/10/2019,3323630,960.27,0.00,N/A,N/A
Physical Support,Community Support - Physical Support,Community Support,MEARS CARE LIMITED,1052472,01/10/2019,3323635,705.54,0.00,N/A,N/A
Physical Support,Community Support - Physical Support,Community Support,MEARS CARE LIMITED,1052472,01/10/2019,3323636,854.72,0.00,N/A,N/A
Physical Support,Community Support - Physical Support,Community Support,MEARS CARE LIMITED,1052472,01/10/2019,3323637,892.05,0.00,N/A,N/A
Physical Support,Community Support - Physical Support,Community Support,MEARS CARE LIMITED,1052472,01/10/2019,3323674,713.51,0.00,N/A,N/A
Physical Support,Community Support - Physical Support,Community Support,MEARS CARE LIMITED,1052472,01/10/2019,3323675,744.42,0.00,N/A,N/A
Physical Support,Community Support - Physical Support,Community Support,MEARS CARE LIMITED,1052472,01/10/2019,3323676,789.31,0.00,N/A,N/A
Physical Support,Community Support - Physical Support,Community Support,MEARS CARE LIMITED,1052472,01/10/2019,3323677,814.63,0.00,N/A,N/A
Physical Support,Community Support - Physical Support,Community Support,MEARS CARE LIMITED,1052472,01/10/2019,3323679,950.40,0.00,N/A,N/A
Physical Support,Community Support - Physical Support,Community Support,MEARS CARE LIMITED,1052472,01/10/2019,3323836,589.20,0.00,N/A,N/A
Physical Support,Community Support - Physical Support,Community Support,MEARS CARE LIMITED,1052472,01/10/2019,3323837,999.96,0.00,N/A,N/A
Physical Support,Community Support - Physical Support,Community Support,MEARS CARE LIMITED,1052472,01/10/2019,3323838,"1,001.05",0.00,N/A,N/A
Physical Support,Community Support - Physical Support,Community Support,MEARS CARE LIMITED,1052472,01/10/2019,3323876,921.64,0.00,N/A,N/A
Physical Support,Community Support - Physical Support,Community Support,MEARS CARE LIMITED,1052472,01/10/2019,3323877,768.00,0.00,N/A,N/A
Physical Support,Community Support - Physical Support,Community Support,MEARS CARE LIMITED,1052472,01/10/2019,3323879,759.92,0.00,N/A,N/A
Physical Support,Community Support - Physical Support,Community Support,MEARS CARE LIMITED,1052472,01/10/2019,3323880,"1,097.94",0.00,N/A,N/A
Physical Support,Community Support - Physical Support,Community Support,MEARS CARE LIMITED,1052472,01/10/2019,3323882,828.09,0.00,N/A,N/A
Physical Support,Community Support - Physical Support,Community Support,MEARS CARE LIMITED,1052472,01/10/2019,3323719,602.90,0.00,N/A,N/A
Physical Support,Community Support - Physical Support,Community Support,MEARS CARE LIMITED,1052472,01/10/2019,3323721,635.29,0.00,N/A,N/A
Physical Support,Community Support - Physical Support,Community Support,MEARS CARE LIMITED,1052472,01/10/2019,3323722,849.01,0.00,N/A,N/A
Physical Support,Community Support - Physical Support,Community Support,MEARS CARE LIMITED,1052472,01/10/2019,3323723,"1,116.07",0.00,N/A,N/A
Physical Support,Community Support - Physical Support,Community Support,MEARS CARE LIMITED,1052472,01/10/2019,3323762,543.25,0.00,N/A,N/A
Physical Support,Community Support - Physical Support,Community Support,MEARS CARE LIMITED,1052472,01/10/2019,3323763,588.25,0.00,N/A,N/A
Physical Support,Community Support - Physical Support,Community Support,MEARS CARE LIMITED,1052472,01/10/2019,3323764,606.25,0.00,N/A,N/A
Physical Support,Community Support - Physical Support,Community Support,MEARS CARE LIMITED,1052472,01/10/2019,3323765,812.70,0.00,N/A,N/A
Physical Support,Community Support - Physical Support,Community Support,MEARS CARE LIMITED,1052472,01/10/2019,3323766,813.38,0.00,N/A,N/A
Physical Support,Community Support - Physical Support,Community Support,MEARS CARE LIMITED,1052472,01/10/2019,3323767,944.05,0.00,N/A,N/A
Physical Support,Community Support - Physical Support,Community Support,MEARS CARE LIMITED,1052472,01/10/2019,3323801,573.40,0.00,N/A,N/A
Physical Support,Community Support - Physical Support,Community Support,MEARS CARE LIMITED,1052472,01/10/2019,3323802,732.06,0.00,N/A,N/A
Physical Support,Community Support - Physical Support,Community Support,MEARS CARE LIMITED,1052472,01/10/2019,3323805,560.24,0.00,N/A,N/A
Physical Support,Community Support - Physical Support,Community Support,MEARS CARE LIMITED,1052472,01/10/2019,3323806,765.10,0.00,N/A,N/A
Physical Support,Community Support - Physical Support,Community Support,MEARS CARE LIMITED,1052472,01/10/2019,3323931,546.60,0.00,N/A,N/A
Physical Support,Community Support - Physical Support,Community Support,MEARS CARE LIMITED,1052472,01/10/2019,3323933,630.36,0.00,N/A,N/A
Physical Support,Community Support - Physical Support,Community Support,MEARS CARE LIMITED,1052472,01/10/2019,3323935,661.67,0.00,N/A,N/A
Physical Support,Community Support - Physical Support,Community Support,MEARS CARE LIMITED,1052472,01/10/2019,3323936,901.56,0.00,N/A,N/A
Physical Support,Community Support - Physical Support,Community Support,MEARS CARE LIMITED,1052472,01/10/2019,3323937,937.92,0.00,N/A,N/A
Physical Support,Community Support - Physical Support,Community Support,MEARS CARE LIMITED,1052472,01/10/2019,3323939,721.98,0.00,N/A,N/A
Physical Support,Community Support - Physical Support,Community Support,MEARS CARE LIMITED,1052472,01/10/2019,3323940,809.99,0.00,N/A,N/A
Physical Support,Community Support - Physical Support,Community Support,MEARS CARE LIMITED,1052472,01/10/2019,3323941,919.24,0.00,N/A,N/A
Support with Memory and Cognition,Community Support - Support with Memory and Cognition,Community Support,MEARS CARE LIMITED,1052472,01/10/2019,3323943,525.62,0.00,N/A,N/A
Mental Health Support,Mental Health - Mental Health Support,Mental Health,MEARS CARE LIMITED,1052472,01/10/2019,3323807,808.41,0.00,N/A,N/A
Strategic Housing,Housing and Advice,"Regeneration, Property & Housing",MEDEQUIP ASSISTIVE TECH LTD,117887,01/10/2019,3297677,"2,325.00",0.00,Communities & Place,Medical Equipment and Accessories and Su
Integrated Commissioning,Integrated Commissioning,Commissioning,MEDEQUIP ASSISTIVE TECH LTD,117887,01/10/2019,3309605,"8,895.55",0.00,People Services - Adults and Health,Medical Equipment and Accessories and Su
Integrated Commissioning,Integrated Commissioning,Commissioning,MEDEQUIP ASSISTIVE TECH LTD,117887,01/10/2019,3309605,"134,638.96",0.00,People Services - Adults and Health,Medical Equipment and Accessories and Su
Integrated Services,Integrated Disabled Children's Service,Non-Schools,MEDEQUIP ASSISTIVE TECH LTD,117887,01/10/2019,3309605,"2,395.69",0.00,People Services - Children & Young People,Medical Equipment and Accessories and Su
Learning & Inclusion - Schools Block,STEPS - Schools Block,Schools Block,MEDEQUIP ASSISTIVE TECH LTD,117887,01/10/2019,3309605,615.50,0.00,People Services - Children & Young People,Medical Equipment and Accessories and Su
Sensory Support,Transitions and Ordinary Lives - Sensory Support,Transitions and Ordinary Lives,MEDEQUIP ASSISTIVE TECH LTD,117887,01/10/2019,3309605,668.21,0.00,People Services - Adults and Health,Medical Equipment and Accessories and Su
Adults Health and Housing,Capital,Capital,MEDEQUIP ASSISTIVE TECH LTD,117887,01/10/2019,3297681,"1,332.00",0.00,Disabled Facilities Grant 96 Act,Medical Equipment and Accessories and Su
Adults Health and Housing,Capital,Capital,MEDEQUIP ASSISTIVE TECH LTD,117887,01/10/2019,3297683,"1,716.60",0.00,Disabled Facilities Grant 96 Act,Medical Equipment and Accessories and Su
Adults Health and Housing,Capital,Capital,MEDEQUIP ASSISTIVE TECH LTD,117887,01/10/2019,3297684,"1,463.00",0.00,Disabled Facilities Grant 96 Act,Medical Equipment and Accessories and Su
Business Support,Business Support,Strategic Services and Organisational Development,MERCIA IMAGE LTD,2944,01/10/2019,3322043,514.00,0.00,Organisation & Governance,Printing and Photographic and Audio and
Property Design & Maintenance,Building - Repairs & Maintenance,"Regeneration, Property & Housing",MIDLAND COUNTIES HEATING SERVICES,188123,01/10/2019,3323574,"14,787.00",0.00,N/A,N/A
Culture & Business Development,Culture & Business Development,"Leisure, Culture and Tourism",NATIONAL ARENAS ASSOCIATION,558447,01/10/2019,3322306,875.00,0.00,N/A,N/A
Leisure,Leisure,"Leisure, Culture and Tourism",NATIONAL ARENAS ASSOCIATION,558447,01/10/2019,3322306,875.00,0.00,N/A,N/A
Integrated Services,Agency Placements,Non-Schools,NATIONAL FOSTERING AGENCY,3496,01/10/2019,3302294,"4,424.01",0.00,People Services - Children & Young People,Organizations and Clubs
"Environmental Protection, Licensing, Housing",Licensing,"Communities, Environment & Regulatory Services",NEW AUTO LTD MOGO,247410,01/10/2019,3323376,"2,490.00",0.00,Communities & Place,Transportation and Storage and Mail Serv
Commissioning - Schools Block,Recoupment - Independent Special School Fees,Schools Block,NEW COLLEGE WORCESTER,117629,01/10/2019,3322100,"4,727.85",0.00,N/A,N/A
Public Health,Adults,Public Health,NHS DERBY AND DERBYSHIRE CCG,1112514,01/10/2019,3322099,"3,386.20",0.00,N/A,N/A
Neighbourhoods,Capital,Capital,NMCN PLC,1013472,01/10/2019,3323355,"71,429.34",0.00,N/A,N/A
Refuse & Waste Management,Refuse Collection,"Strategic Partnerships, Planning & Streetpride",NOTTINGHAM CITY COUNCIL,976479,01/10/2019,3316950,"1,712.83",0.00,N/A,N/A
Integrated Services,Adoption,Non-Schools,NOTTINGHAMSHIRE COUNTY COUNCIL,3516,01/10/2019,3320337,"82,404.00",0.00,People Services - Children & Young People,Public Utilities and Public Sector Relat
Information Systems Support,Information Systems Support,Digital Services,OPEN TEXT UK LTD,127033,01/10/2019,3324415,"2,436.28",0.00,Organisation & Governance,Education and Training Services
General,Stores Road Depot & Fleet Management,"Strategic Partnerships, Planning & Streetpride",PACE FUELCARE,474148,01/10/2019,3324356,560.00,0.00,N/A,N/A
General,Stores Road Depot & Fleet Management,"Strategic Partnerships, Planning & Streetpride",PACE FUELCARE,474148,01/10/2019,3324357,"36,319.50",0.00,N/A,N/A
Integrated Services,Agency Placements,Non-Schools,PATHWAY CARE SOLUTIONS 2 LTD,892485,01/10/2019,3322178,"15,013.52",0.00,N/A,N/A
Customer Management,Welfare,Strategic Services and Organisational Development,PAYPOINT PAYMENT SERVICES LTD,1128473,01/10/2019,3324890,"2,950.89",0.00,N/A,N/A
"Information, Computing & Technology","Information, Computing & Technology",Digital Services,PDP WORKSHOPS,22069,01/10/2019,3323315,966.50,0.00,Organisation & Governance,Education and Training Services
Children and Young People,Capital,Capital,PERFECT CIRCLE JV LTD,605451,01/10/2019,3323570,"1,200.00",0.00,N/A,N/A
Regeneration Projects,Connect Project,"Regeneration, Property & Housing",PHS GROUP PLC,3958,01/10/2019,3322084,"3,357.26",0.00,Communities & Place,Cleaning Equipment and Supplies
Regeneration Projects,Connect Project,"Regeneration, Property & Housing",PHS GROUP PLC,3958,01/10/2019,3322088,"1,987.56",0.00,Communities & Place,Cleaning Equipment and Supplies
Adults Health and Housing,Capital,Capital,PRISM MEDICAL UK WESTHOLME DIVISION,126874,01/10/2019,3323359,"1,590.00",0.00,Disabled Facilities Grant 96 Act,Medical Equipment and Accessories and Su
Learning Disability Support,Community Support - Learning Disability Support,Community Support,QUALITY CARE SERVICES,388475,01/10/2019,3323848,"1,404.48",0.00,N/A,N/A
Learning Disability Support,Community Support - Learning Disability Support,Community Support,QUALITY CARE SERVICES,388475,01/10/2019,3323737,"1,404.48",0.00,N/A,N/A
Mental Health Support,Community Support - Mental Health Support,Community Support,QUALITY CARE SERVICES,388475,01/10/2019,3323849,"1,479.84",0.00,N/A,N/A
Mental Health Support,Community Support - Mental Health Support,Community Support,QUALITY CARE SERVICES,388475,01/10/2019,3323893,"1,126.56",0.00,N/A,N/A
Physical Support,Community Support - Physical Support,Community Support,QUALITY CARE SERVICES,388475,01/10/2019,3323619,"1,587.88",0.00,N/A,N/A
Physical Support,Community Support - Physical Support,Community Support,QUALITY CARE SERVICES,388475,01/10/2019,3323620,837.16,0.00,N/A,N/A
Physical Support,Community Support - Physical Support,Community Support,QUALITY CARE SERVICES,388475,01/10/2019,3323664,553.68,0.00,N/A,N/A
Physical Support,Community Support - Physical Support,Community Support,QUALITY CARE SERVICES,388475,01/10/2019,3323665,703.44,0.00,N/A,N/A
Physical Support,Community Support - Physical Support,Community Support,QUALITY CARE SERVICES,388475,01/10/2019,3323666,919.52,0.00,N/A,N/A
Physical Support,Community Support - Physical Support,Community Support,QUALITY CARE SERVICES,388475,01/10/2019,3323667,953.48,0.00,N/A,N/A
Physical Support,Community Support - Physical Support,Community Support,QUALITY CARE SERVICES,388475,01/10/2019,3323629,897.20,0.00,N/A,N/A
Physical Support,Community Support - Physical Support,Community Support,QUALITY CARE SERVICES,388475,01/10/2019,3323683,"1,197.56",0.00,N/A,N/A
Physical Support,Community Support - Physical Support,Community Support,QUALITY CARE SERVICES,388475,01/10/2019,3323645,"1,103.24",0.00,N/A,N/A
Physical Support,Community Support - Physical Support,Community Support,QUALITY CARE SERVICES,388475,01/10/2019,3323646,"1,128.16",0.00,N/A,N/A
Physical Support,Community Support - Physical Support,Community Support,QUALITY CARE SERVICES,388475,01/10/2019,3323829,"1,008.92",0.00,N/A,N/A
Physical Support,Community Support - Physical Support,Community Support,QUALITY CARE SERVICES,388475,01/10/2019,3323862,"1,197.56",0.00,N/A,N/A
Physical Support,Community Support - Physical Support,Community Support,QUALITY CARE SERVICES,388475,01/10/2019,3323867,537.40,0.00,N/A,N/A
Physical Support,Community Support - Physical Support,Community Support,QUALITY CARE SERVICES,388475,01/10/2019,3323868,553.68,0.00,N/A,N/A
Physical Support,Community Support - Physical Support,Community Support,QUALITY CARE SERVICES,388475,01/10/2019,3323869,788.16,0.00,N/A,N/A
Physical Support,Community Support - Physical Support,Community Support,QUALITY CARE SERVICES,388475,01/10/2019,3323870,802.88,0.00,N/A,N/A
Physical Support,Community Support - Physical Support,Community Support,QUALITY CARE SERVICES,388475,01/10/2019,3323871,893.77,0.00,N/A,N/A
Physical Support,Community Support - Physical Support,Community Support,QUALITY CARE SERVICES,388475,01/10/2019,3323891,"1,128.16",0.00,N/A,N/A
Physical Support,Community Support - Physical Support,Community Support,QUALITY CARE SERVICES,388475,01/10/2019,3323892,"1,197.56",0.00,N/A,N/A
Physical Support,Community Support - Physical Support,Community Support,QUALITY CARE SERVICES,388475,01/10/2019,3323911,"1,433.20",0.00,N/A,N/A
Physical Support,Community Support - Physical Support,Community Support,QUALITY CARE SERVICES,388475,01/10/2019,3323920,553.68,0.00,N/A,N/A
Physical Support,Community Support - Physical Support,Community Support,QUALITY CARE SERVICES,388475,01/10/2019,3323921,"1,008.92",0.00,N/A,N/A
Physical Support,Community Support - Physical Support,Community Support,QUALITY CARE SERVICES,388475,01/10/2019,3323922,"1,061.08",0.00,N/A,N/A
Physical Support,Community Support - Physical Support,Community Support,QUALITY CARE SERVICES,388475,01/10/2019,3323923,"1,067.80",0.00,N/A,N/A
Physical Support,Community Support - Physical Support,Community Support,QUALITY CARE SERVICES,388475,01/10/2019,3323707,540.83,0.00,N/A,N/A
Physical Support,Community Support - Physical Support,Community Support,QUALITY CARE SERVICES,388475,01/10/2019,3323708,680.25,0.00,N/A,N/A
Physical Support,Community Support - Physical Support,Community Support,QUALITY CARE SERVICES,388475,01/10/2019,3323709,680.25,0.00,N/A,N/A
Physical Support,Community Support - Physical Support,Community Support,QUALITY CARE SERVICES,388475,01/10/2019,3323710,948.76,0.00,N/A,N/A
Physical Support,Community Support - Physical Support,Community Support,QUALITY CARE SERVICES,388475,01/10/2019,3323711,"1,020.04",0.00,N/A,N/A
Physical Support,Community Support - Physical Support,Community Support,QUALITY CARE SERVICES,388475,01/10/2019,3323712,"1,032.24",0.00,N/A,N/A
Physical Support,Community Support - Physical Support,Community Support,QUALITY CARE SERVICES,388475,01/10/2019,3323713,"1,032.24",0.00,N/A,N/A
Physical Support,Community Support - Physical Support,Community Support,QUALITY CARE SERVICES,388475,01/10/2019,3323745,634.28,0.00,N/A,N/A
Physical Support,Community Support - Physical Support,Community Support,QUALITY CARE SERVICES,388475,01/10/2019,3323746,"1,197.56",0.00,N/A,N/A
Physical Support,Community Support - Physical Support,Community Support,QUALITY CARE SERVICES,388475,01/10/2019,3323756,"1,008.92",0.00,N/A,N/A
Physical Support,Community Support - Physical Support,Community Support,QUALITY CARE SERVICES,388475,01/10/2019,3323789,537.40,0.00,N/A,N/A
Physical Support,Community Support - Physical Support,Community Support,QUALITY CARE SERVICES,388475,01/10/2019,3323792,563.28,0.00,N/A,N/A
Physical Support,Community Support - Physical Support,Community Support,QUALITY CARE SERVICES,388475,01/10/2019,3323793,762.28,0.00,N/A,N/A
Physical Support,Community Support - Physical Support,Community Support,QUALITY CARE SERVICES,388475,01/10/2019,3323794,"1,061.08",0.00,N/A,N/A
Physical Support,Community Support - Physical Support,Community Support,QUALITY CARE SERVICES,388475,01/10/2019,3323827,563.28,0.00,N/A,N/A
Physical Support,Community Support - Physical Support,Community Support,QUALITY CARE SERVICES,388475,01/10/2019,3323828,"1,008.92",0.00,N/A,N/A
Physical Support,Community Support - Physical Support,Community Support,QUALITY CARE SERVICES,388475,01/10/2019,3324026,"1,008.92",0.00,N/A,N/A
Physical Support,Community Support - Physical Support,Community Support,QUALITY CARE SERVICES,388475,01/10/2019,3324030,"1,008.92",0.00,N/A,N/A
Sensory Support,Community Support - Sensory Support,Community Support,QUALITY CARE SERVICES,388475,01/10/2019,3323684,691.66,0.00,N/A,N/A
Support with Memory and Cognition,Community Support - Support with Memory and Cognition,Community Support,QUALITY CARE SERVICES,388475,01/10/2019,3323608,"1,032.24",0.00,N/A,N/A
Mental Health Support,Mental Health - Mental Health Support,Mental Health,QUALITY HOME CARE UK LTD,51612,01/10/2019,3324417,824.76,0.00,People Services - Adults and Health,Personal and Domestic Services
Learning Disability Support,Community Support - Learning Disability Support,Community Support,RADIS COMMUNITY CARE,1709,01/10/2019,3307922,"1,791.76",0.00,N/A,N/A
Economic Development,Economic Regeneration,City Development & Growth,RANA TRAVELS,1118470,01/10/2019,3323324,900.00,0.00,N/A,N/A
Early Help & Children�s Safeguarding,Children In Care,Non-Schools,REDACTED - PERSONAL DATA,425400,01/10/2019,3323080,614.05,0.00,N/A,N/A
Early Help & Children�s Safeguarding,Children In Care,Non-Schools,REDACTED - PERSONAL DATA,401397,01/10/2019,3322830,655.50,0.00,N/A,N/A
Early Help & Children�s Safeguarding,Children In Care,Non-Schools,REDACTED - PERSONAL DATA,401397,01/10/2019,3322830,655.50,0.00,N/A,N/A
Learning Disability Support,Community Support - Learning Disability Support,Community Support,REDACTED - PERSONAL DATA,194370,01/10/2019,3324152,839.24,0.00,N/A,N/A
Learning Disability Support,Community Support - Learning Disability Support,Community Support,REDACTED - PERSONAL DATA,194370,01/10/2019,3324153,839.24,0.00,N/A,N/A
Learning Disability Support,Community Support - Learning Disability Support,Community Support,REDACTED - PERSONAL DATA,194370,01/10/2019,3324154,839.24,0.00,N/A,N/A
Learning Disability Support,Community Support - Learning Disability Support,Community Support,REDACTED - PERSONAL DATA,194370,01/10/2019,3324107,839.24,0.00,N/A,N/A
Learning Disability Support,Community Support - Learning Disability Support,Community Support,REDACTED - PERSONAL DATA,194370,01/10/2019,3324156,839.24,0.00,N/A,N/A
Learning Disability Support,Community Support - Learning Disability Support,Community Support,REDACTED - PERSONAL DATA,194370,01/10/2019,3324193,839.24,0.00,N/A,N/A
Learning Disability Support,Community Support - Learning Disability Support,Community Support,REDACTED - PERSONAL DATA,194370,01/10/2019,3324221,569.48,0.00,N/A,N/A
Physical Support,Community Support - Physical Support,Community Support,REDACTED - PERSONAL DATA,471474,01/10/2019,3324321,850.00,0.00,N/A,N/A
Physical Support,Community Support - Physical Support,Community Support,REDACTED - PERSONAL DATA,928478,01/10/2019,3324158,774.44,0.00,N/A,N/A
Physical Support,Community Support - Physical Support,Community Support,REDACTED - PERSONAL DATA,928478,01/10/2019,3324159,774.44,0.00,N/A,N/A
Physical Support,Community Support - Physical Support,Community Support,REDACTED - PERSONAL DATA,928478,01/10/2019,3324173,774.44,0.00,N/A,N/A
Physical Support,Community Support - Physical Support,Community Support,REDACTED - PERSONAL DATA,928478,01/10/2019,3324198,774.44,0.00,N/A,N/A
Physical Support,Community Support - Physical Support,Community Support,REDACTED - PERSONAL DATA,928478,01/10/2019,3324201,774.44,0.00,N/A,N/A
Physical Support,Community Support - Physical Support,Community Support,REDACTED - PERSONAL DATA,928478,01/10/2019,3324244,774.44,0.00,N/A,N/A
Physical Support,Community Support - Physical Support,Community Support,REDACTED - PERSONAL DATA,185545,01/10/2019,3324066,"4,531.44",0.00,N/A,N/A
Physical Support,Community Support - Physical Support,Community Support,REDACTED - PERSONAL DATA,185545,01/10/2019,3324067,"4,531.44",0.00,N/A,N/A
Physical Support,Community Support - Physical Support,Community Support,REDACTED - PERSONAL DATA,185545,01/10/2019,3324070,"4,531.44",0.00,N/A,N/A
Physical Support,Community Support - Physical Support,Community Support,REDACTED - PERSONAL DATA,185545,01/10/2019,3324073,"4,531.44",0.00,N/A,N/A
Physical Support,Community Support - Physical Support,Community Support,REDACTED - PERSONAL DATA,185545,01/10/2019,3324075,"4,531.44",0.00,N/A,N/A
Physical Support,Community Support - Physical Support,Community Support,REDACTED - PERSONAL DATA,185545,01/10/2019,3324076,"4,531.44",0.00,N/A,N/A
Physical Support,Community Support - Physical Support,Community Support,REDACTED - PERSONAL DATA,185545,01/10/2019,3324126,"4,531.44",0.00,N/A,N/A
Physical Support,Community Support - Physical Support,Community Support,REDACTED - PERSONAL DATA,185545,01/10/2019,3324139,"4,531.44",0.00,N/A,N/A
Physical Support,Community Support - Physical Support,Community Support,REDACTED - PERSONAL DATA,185545,01/10/2019,3324089,"4,531.44",0.00,N/A,N/A
Physical Support,Community Support - Physical Support,Community Support,REDACTED - PERSONAL DATA,185545,01/10/2019,3324091,"1,618.37",0.00,N/A,N/A
Physical Support,Community Support - Physical Support,Community Support,REDACTED - PERSONAL DATA,185545,01/10/2019,3324092,"4,531.44",0.00,N/A,N/A
Physical Support,Community Support - Physical Support,Community Support,REDACTED - PERSONAL DATA,185545,01/10/2019,3324093,"4,531.44",0.00,N/A,N/A
Physical Support,Community Support - Physical Support,Community Support,REDACTED - PERSONAL DATA,185545,01/10/2019,3324096,"4,531.44",0.00,N/A,N/A
Physical Support,Community Support - Physical Support,Community Support,REDACTED - PERSONAL DATA,185545,01/10/2019,3324099,"4,531.44",0.00,N/A,N/A
Physical Support,Community Support - Physical Support,Community Support,REDACTED - PERSONAL DATA,185545,01/10/2019,3324141,"4,531.44",0.00,N/A,N/A
Physical Support,Community Support - Physical Support,Community Support,REDACTED - PERSONAL DATA,185545,01/10/2019,3324142,"4,531.44",0.00,N/A,N/A
Physical Support,Community Support - Physical Support,Community Support,REDACTED - PERSONAL DATA,185545,01/10/2019,3324143,"4,531.44",0.00,N/A,N/A
Physical Support,Community Support - Physical Support,Community Support,REDACTED - PERSONAL DATA,185545,01/10/2019,3324145,"4,531.44",0.00,N/A,N/A
Physical Support,Community Support - Physical Support,Community Support,REDACTED - PERSONAL DATA,185545,01/10/2019,3324146,"4,531.44",0.00,N/A,N/A
Physical Support,Community Support - Physical Support,Community Support,REDACTED - PERSONAL DATA,185545,01/10/2019,3324147,"4,531.44",0.00,N/A,N/A
Physical Support,Community Support - Physical Support,Community Support,REDACTED - PERSONAL DATA,185545,01/10/2019,3324148,"4,531.44",0.00,N/A,N/A
Physical Support,Community Support - Physical Support,Community Support,REDACTED - PERSONAL DATA,185545,01/10/2019,3324150,"4,531.44",0.00,N/A,N/A
Physical Support,Community Support - Physical Support,Community Support,REDACTED - PERSONAL DATA,185545,01/10/2019,3324101,"4,531.44",0.00,N/A,N/A
Physical Support,Community Support - Physical Support,Community Support,REDACTED - PERSONAL DATA,185545,01/10/2019,3324102,"4,531.44",0.00,N/A,N/A
Physical Support,Community Support - Physical Support,Community Support,REDACTED - PERSONAL DATA,185545,01/10/2019,3324103,"4,531.44",0.00,N/A,N/A
Physical Support,Community Support - Physical Support,Community Support,REDACTED - PERSONAL DATA,185545,01/10/2019,3324104,"4,531.44",0.00,N/A,N/A
Physical Support,Community Support - Physical Support,Community Support,REDACTED - PERSONAL DATA,185545,01/10/2019,3324112,"4,531.44",0.00,N/A,N/A
Physical Support,Community Support - Physical Support,Community Support,REDACTED - PERSONAL DATA,185545,01/10/2019,3324116,"4,531.44",0.00,N/A,N/A
Physical Support,Community Support - Physical Support,Community Support,REDACTED - PERSONAL DATA,185545,01/10/2019,3324117,"4,531.44",0.00,N/A,N/A
Physical Support,Community Support - Physical Support,Community Support,REDACTED - PERSONAL DATA,185545,01/10/2019,3324120,"3,074.91",0.00,N/A,N/A
Physical Support,Community Support - Physical Support,Community Support,REDACTED - PERSONAL DATA,185545,01/10/2019,3324121,"4,531.44",0.00,N/A,N/A
Physical Support,Community Support - Physical Support,Community Support,REDACTED - PERSONAL DATA,185545,01/10/2019,3324122,"1,294.70",0.00,N/A,N/A
Physical Support,Community Support - Physical Support,Community Support,REDACTED - PERSONAL DATA,185545,01/10/2019,3324123,"3,236.74",0.00,N/A,N/A
Physical Support,Community Support - Physical Support,Community Support,REDACTED - PERSONAL DATA,185545,01/10/2019,3324161,"4,531.44",0.00,N/A,N/A
Physical Support,Community Support - Physical Support,Community Support,REDACTED - PERSONAL DATA,185545,01/10/2019,3324162,"4,531.44",0.00,N/A,N/A
Physical Support,Community Support - Physical Support,Community Support,REDACTED - PERSONAL DATA,185545,01/10/2019,3324164,"4,531.44",0.00,N/A,N/A
Physical Support,Community Support - Physical Support,Community Support,REDACTED - PERSONAL DATA,185545,01/10/2019,3324167,"4,531.44",0.00,N/A,N/A
Physical Support,Community Support - Physical Support,Community Support,REDACTED - PERSONAL DATA,185545,01/10/2019,3324176,"4,531.44",0.00,N/A,N/A
Physical Support,Community Support - Physical Support,Community Support,REDACTED - PERSONAL DATA,185545,01/10/2019,3324178,"4,531.44",0.00,N/A,N/A
Physical Support,Community Support - Physical Support,Community Support,REDACTED - PERSONAL DATA,185545,01/10/2019,3324179,"4,531.44",0.00,N/A,N/A
Physical Support,Community Support - Physical Support,Community Support,REDACTED - PERSONAL DATA,185545,01/10/2019,3324180,"1,456.53",0.00,N/A,N/A
Physical Support,Community Support - Physical Support,Community Support,REDACTED - PERSONAL DATA,185545,01/10/2019,3324184,"4,531.44",0.00,N/A,N/A
Physical Support,Community Support - Physical Support,Community Support,REDACTED - PERSONAL DATA,185545,01/10/2019,3324185,"4,531.44",0.00,N/A,N/A
Physical Support,Community Support - Physical Support,Community Support,REDACTED - PERSONAL DATA,185545,01/10/2019,3324186,"4,531.44",0.00,N/A,N/A
Physical Support,Community Support - Physical Support,Community Support,REDACTED - PERSONAL DATA,185545,01/10/2019,3324188,"4,531.44",0.00,N/A,N/A
Physical Support,Community Support - Physical Support,Community Support,REDACTED - PERSONAL DATA,185545,01/10/2019,3324190,"4,531.44",0.00,N/A,N/A
Physical Support,Community Support - Physical Support,Community Support,REDACTED - PERSONAL DATA,185545,01/10/2019,3324192,"4,531.44",0.00,N/A,N/A
Physical Support,Community Support - Physical Support,Community Support,REDACTED - PERSONAL DATA,185545,01/10/2019,3324206,"2,913.07",0.00,N/A,N/A
Physical Support,Community Support - Physical Support,Community Support,REDACTED - PERSONAL DATA,185545,01/10/2019,3324207,"4,531.44",0.00,N/A,N/A
Physical Support,Community Support - Physical Support,Community Support,REDACTED - PERSONAL DATA,185545,01/10/2019,3324211,"4,531.44",0.00,N/A,N/A
Physical Support,Community Support - Physical Support,Community Support,REDACTED - PERSONAL DATA,185545,01/10/2019,3324214,"1,132.86",0.00,N/A,N/A
Physical Support,Community Support - Physical Support,Community Support,REDACTED - PERSONAL DATA,185545,01/10/2019,3324215,"3,398.58",0.00,N/A,N/A
Physical Support,Community Support - Physical Support,Community Support,REDACTED - PERSONAL DATA,185545,01/10/2019,3324217,"4,531.44",0.00,N/A,N/A
Physical Support,Community Support - Physical Support,Community Support,REDACTED - PERSONAL DATA,185545,01/10/2019,3324232,"4,531.44",0.00,N/A,N/A
Physical Support,Community Support - Physical Support,Community Support,REDACTED - PERSONAL DATA,185545,01/10/2019,3324235,"4,531.44",0.00,N/A,N/A
Shared Lives,Community Support - Shared Lives,Community Support,REDACTED - PERSONAL DATA,496461,01/10/2019,3324807,603.48,0.00,N/A,N/A
Shared Lives,Community Support - Shared Lives,Community Support,REDACTED - PERSONAL DATA,1123477,01/10/2019,3324612,550.92,0.00,N/A,N/A
Shared Lives,Community Support - Shared Lives,Community Support,REDACTED - PERSONAL DATA,1123477,01/10/2019,3324703,"1,460.44",0.00,N/A,N/A
Shared Lives,Community Support - Shared Lives,Community Support,REDACTED - PERSONAL DATA,1123477,01/10/2019,3324739,"1,460.44",0.00,N/A,N/A
Shared Lives,Community Support - Shared Lives,Community Support,REDACTED - PERSONAL DATA,496477,01/10/2019,3324671,603.48,0.00,N/A,N/A
Shared Lives,Community Support - Shared Lives,Community Support,REDACTED - PERSONAL DATA,537466,01/10/2019,3324774,"3,906.88",0.00,N/A,N/A
Shared Lives,Community Support - Shared Lives,Community Support,REDACTED - PERSONAL DATA,929470,01/10/2019,3324656,"2,046.00",0.00,N/A,N/A
Shared Lives,Community Support - Shared Lives,Community Support,REDACTED - PERSONAL DATA,1037473,01/10/2019,3324633,603.48,0.00,N/A,N/A
Shared Lives,Community Support - Shared Lives,Community Support,REDACTED - PERSONAL DATA,1037473,01/10/2019,3324634,828.48,0.00,N/A,N/A
Shared Lives,Community Support - Shared Lives,Community Support,REDACTED - PERSONAL DATA,496455,01/10/2019,3324585,"1,085.16",0.00,N/A,N/A
Shared Lives,Community Support - Shared Lives,Community Support,REDACTED - PERSONAL DATA,496455,01/10/2019,3324686,"1,132.44",0.00,N/A,N/A
Shared Lives,Community Support - Shared Lives,Community Support,REDACTED - PERSONAL DATA,496484,01/10/2019,3324570,"1,460.44",0.00,N/A,N/A
Shared Lives,Community Support - Shared Lives,Community Support,REDACTED - PERSONAL DATA,496475,01/10/2019,3324753,"1,460.44",0.00,N/A,N/A
Shared Lives,Community Support - Shared Lives,Community Support,REDACTED - PERSONAL DATA,496486,01/10/2019,3324672,"1,460.44",0.00,N/A,N/A
Shared Lives,Community Support - Shared Lives,Community Support,REDACTED - PERSONAL DATA,496469,01/10/2019,3324588,"1,460.44",0.00,N/A,N/A
Shared Lives,Community Support - Shared Lives,Community Support,REDACTED - PERSONAL DATA,496469,01/10/2019,3324720,"1,460.44",0.00,N/A,N/A
Shared Lives,Community Support - Shared Lives,Community Support,REDACTED - PERSONAL DATA,1022474,01/10/2019,3324599,"1,460.44",0.00,N/A,N/A
Shared Lives,Community Support - Shared Lives,Community Support,REDACTED - PERSONAL DATA,560446,01/10/2019,3324808,618.20,0.00,N/A,N/A
Shared Lives,Community Support - Shared Lives,Community Support,REDACTED - PERSONAL DATA,1123472,01/10/2019,3324702,"1,460.44",0.00,N/A,N/A
Shared Lives,Community Support - Shared Lives,Community Support,REDACTED - PERSONAL DATA,496457,01/10/2019,3324596,603.48,0.00,N/A,N/A
Shared Lives,Community Support - Shared Lives,Community Support,REDACTED - PERSONAL DATA,785446,01/10/2019,3324687,"1,460.44",0.00,N/A,N/A
Shared Lives,Community Support - Shared Lives,Community Support,REDACTED - PERSONAL DATA,496467,01/10/2019,3324796,"1,823.77",0.00,N/A,N/A
Shared Lives,Community Support - Shared Lives,Community Support,REDACTED - PERSONAL DATA,496467,01/10/2019,3324797,"1,460.44",0.00,N/A,N/A
Shared Lives,Community Support - Shared Lives,Community Support,REDACTED - PERSONAL DATA,496468,01/10/2019,3324669,"1,195.96",0.00,N/A,N/A
Shared Lives,Community Support - Shared Lives,Community Support,REDACTED - PERSONAL DATA,496445,01/10/2019,3324708,556.38,0.00,N/A,N/A
Shared Lives,Community Support - Shared Lives,Community Support,REDACTED - PERSONAL DATA,496445,01/10/2019,3324757,603.48,0.00,N/A,N/A
Shared Lives,Community Support - Shared Lives,Community Support,REDACTED - PERSONAL DATA,883472,01/10/2019,3324734,603.48,0.00,N/A,N/A
Shared Lives,Community Support - Shared Lives,Community Support,REDACTED - PERSONAL DATA,496494,01/10/2019,3324627,603.48,0.00,N/A,N/A
Shared Lives,Community Support - Shared Lives,Community Support,REDACTED - PERSONAL DATA,1113486,01/10/2019,3324667,603.48,0.00,N/A,N/A
Shared Lives,Community Support - Shared Lives,Community Support,REDACTED - PERSONAL DATA,502439,01/10/2019,3324643,603.48,0.00,N/A,N/A
Integrated Commissioning,Integrated Commissioning,Commissioning,REDACTED - PERSONAL DATA,1115469,01/10/2019,3324616,754.32,0.00,N/A,N/A
Integrated Commissioning,Integrated Commissioning,Commissioning,REDACTED - PERSONAL DATA,927477,01/10/2019,3324597,754.32,0.00,N/A,N/A
Mental Health Support,Mental Health - Mental Health Support,Mental Health,REDACTED - PERSONAL DATA,496477,01/10/2019,3324736,603.48,0.00,N/A,N/A
Mental Health Support,Mental Health - Mental Health Support,Mental Health,REDACTED - PERSONAL DATA,496467,01/10/2019,3324732,"1,680.44",0.00,N/A,N/A
Community Safety and Integration,Partnerships,"Communities, Environment & Regulatory Services",REDACTED - PERSONAL DATA,1072478,01/10/2019,3321790,"1,407.08",0.00,N/A,N/A
Community Safety and Integration,Partnerships,"Communities, Environment & Regulatory Services",REDACTED - PERSONAL DATA,1072478,01/10/2019,3321791,"6,112.32",0.00,N/A,N/A
Community Safety and Integration,Partnerships,"Communities, Environment & Regulatory Services",REDACTED - PERSONAL DATA,1072478,01/10/2019,3321792,"2,496.08",0.00,N/A,N/A
Learning Disability Support,Transitions and Ordinary Lives - Learning Disability Support,Transitions and Ordinary Lives,REDACTED - PERSONAL DATA,146403,01/10/2019,3324110,"3,112.00",0.00,N/A,N/A
Learning Disability Support,Transitions and Ordinary Lives - Learning Disability Support,Transitions and Ordinary Lives,REDACTED - PERSONAL DATA,146403,01/10/2019,3324175,555.71,0.00,N/A,N/A
Learning Disability Support,Transitions and Ordinary Lives - Learning Disability Support,Transitions and Ordinary Lives,REDACTED - PERSONAL DATA,146403,01/10/2019,3324203,"3,112.00",0.00,N/A,N/A
Learning Disability Support,Transitions and Ordinary Lives - Learning Disability Support,Transitions and Ordinary Lives,REDACTED - PERSONAL DATA,581461,01/10/2019,3324085,912.04,0.00,N/A,N/A
Learning Disability Support,Transitions and Ordinary Lives - Learning Disability Support,Transitions and Ordinary Lives,REDACTED - PERSONAL DATA,581461,01/10/2019,3324196,814.32,0.00,N/A,N/A
Learning Disability Support,Transitions and Ordinary Lives - Learning Disability Support,Transitions and Ordinary Lives,REDACTED - PERSONAL DATA,581461,01/10/2019,3324197,912.04,0.00,N/A,N/A
Learning Disability Support,Transitions and Ordinary Lives - Learning Disability Support,Transitions and Ordinary Lives,REDACTED - PERSONAL DATA,496463,01/10/2019,3324638,"1,460.44",0.00,N/A,N/A
Learning Disability Support,Transitions and Ordinary Lives - Learning Disability Support,Transitions and Ordinary Lives,REDACTED - PERSONAL DATA,496474,01/10/2019,3324746,603.44,0.00,N/A,N/A
Learning Disability Support,Transitions and Ordinary Lives - Learning Disability Support,Transitions and Ordinary Lives,REDACTED - PERSONAL DATA,496493,01/10/2019,3324768,"1,460.44",0.00,N/A,N/A
Learning Disability Support,Transitions and Ordinary Lives - Learning Disability Support,Transitions and Ordinary Lives,REDACTED - PERSONAL DATA,496486,01/10/2019,3324700,603.48,0.00,N/A,N/A
Learning Disability Support,Transitions and Ordinary Lives - Learning Disability Support,Transitions and Ordinary Lives,REDACTED - PERSONAL DATA,1049470,01/10/2019,3324556,"1,460.44",0.00,N/A,N/A
Learning Disability Support,Transitions and Ordinary Lives - Learning Disability Support,Transitions and Ordinary Lives,REDACTED - PERSONAL DATA,496444,01/10/2019,3324568,"1,180.44",0.00,N/A,N/A
Learning Disability Support,Transitions and Ordinary Lives - Learning Disability Support,Transitions and Ordinary Lives,REDACTED - PERSONAL DATA,715474,01/10/2019,3324618,"1,460.44",0.00,N/A,N/A
Learning Disability Support,Transitions and Ordinary Lives - Learning Disability Support,Transitions and Ordinary Lives,REDACTED - PERSONAL DATA,937527,01/10/2019,3324557,"1,460.44",0.00,N/A,N/A
Learning Disability Support,Transitions and Ordinary Lives - Learning Disability Support,Transitions and Ordinary Lives,REDACTED - PERSONAL DATA,937527,01/10/2019,3324620,804.64,0.00,N/A,N/A
Learning Disability Support,Transitions and Ordinary Lives - Learning Disability Support,Transitions and Ordinary Lives,REDACTED - PERSONAL DATA,496485,01/10/2019,3324652,"1,460.44",0.00,N/A,N/A
Learning Disability Support,Transitions and Ordinary Lives - Learning Disability Support,Transitions and Ordinary Lives,REDACTED - PERSONAL DATA,971481,01/10/2019,3324695,"1,121.44",0.00,N/A,N/A
Mental Health Support,Mental Health - Mental Health Support,Mental Health,REDACTED - PERSONAL DATA,1146472,01/10/2019,3324224,"1,001.04",0.00,N/A,N/A
Mental Health Support,Mental Health - Mental Health Support,Mental Health,REDACTED - PERSONAL DATA,1146472,01/10/2019,3324241,"1,001.04",0.00,N/A,N/A
Neighbourhoods,Capital,Capital,REDACTED - PERSONAL DATA,1059474,01/10/2019,3323514,"23,988.88",0.00,N/A,N/A
Leisure,Leisure,"Leisure, Culture and Tourism",REDTREE LTD,7637,01/10/2019,3321785,585.00,0.00,Communities & Place,Editorial and Design and Graphic and Fin
Leisure,Leisure,"Leisure, Culture and Tourism",REDTREE LTD,7637,01/10/2019,3321786,545.00,0.00,Communities & Place,Editorial and Design and Graphic and Fin
Integrated Services,Agency Placements,Non-Schools,REGIONAL FOSTER PLACEMENTS,913475,01/10/2019,3312306,"2,942.36",0.00,N/A,N/A
Integrated Services,Agency Placements,Non-Schools,REGIONAL FOSTER PLACEMENTS,913475,01/10/2019,3312306,"2,942.37",0.00,N/A,N/A
Integrated Services,Youth Offending Service,Non-Schools,REMEDI,49769,01/10/2019,3324380,"29,950.00",0.00,People Services - Children & Young People,Education and Training Services
"Environmental Protection, Housing Standards, Licensing, Emergency Planning",Environmental Protection,Public Protection and Streetride,REVEAL MEDIA LTD,531443,01/10/2019,3306902,737.46,0.00,N/A,N/A
"Environmental Protection, Housing Standards, Licensing, Emergency Planning",Environmental Protection,Public Protection and Streetride,REVEAL MEDIA LTD,531443,01/10/2019,3306902,"6,101.30",0.00,N/A,N/A
"Environmental Protection, Housing Standards, Licensing, Emergency Planning",Environmental Protection,Public Protection and Streetride,REVEAL MEDIA LTD,531443,01/10/2019,3306902,"2,990.30",0.00,N/A,N/A
Business Support,Business Support,Strategic Services and Organisational Development,ROYAL MAIL GROUP PLC,4194,01/10/2019,3310008,"1,813.18",0.00,Organisation & Governance,Transportation and Storage and Mail Serv
Business Support,Business Support,Strategic Services and Organisational Development,ROYAL MAIL GROUP PLC,4194,01/10/2019,3323415,"8,333.06",0.00,Organisation & Governance,Transportation and Storage and Mail Serv
Commissioning - Schools Block,Recoupment - Independent Special School Fees,Schools Block,ROYAL SCHOOL FOR THE DEAF,4196,01/10/2019,3322111,"19,411.67",0.00,People Services - Children & Young People,Management and Business Professionals an
Refuse & Waste Management,Refuse Collection,"Strategic Partnerships, Planning & Streetpride",S G TRANSPORT TRAINING AND LOGISTICS LTD,872459,01/10/2019,3323458,850.00,0.00,N/A,N/A
Commissioning - Schools Block,Recoupment - Independent Special School Fees,Schools Block,SENAD LTD,1009473,01/10/2019,3135012,"10,771.32",0.00,N/A,N/A
Commissioning - Schools Block,Recoupment - Independent Special School Fees,Schools Block,SENAD LTD,1009473,01/10/2019,3166465,"10,771.32",0.00,N/A,N/A
Commissioning - Schools Block,Recoupment - Independent Special School Fees,Schools Block,SENAD LTD,1009473,01/10/2019,3183352,"10,771.32",0.00,N/A,N/A
Commissioning - Schools Block,Recoupment - Independent Special School Fees,Schools Block,SENAD LTD,1009473,01/10/2019,3201275,"10,771.32",0.00,N/A,N/A
Commissioning - Schools Block,Recoupment - Independent Special School Fees,Schools Block,SENAD LTD,1009473,01/10/2019,3201580,"10,771.32",0.00,N/A,N/A
Commissioning - Schools Block,Recoupment - Independent Special School Fees,Schools Block,SENAD LTD,1009473,01/10/2019,3235761,"10,771.32",0.00,N/A,N/A
Commissioning - Schools Block,Recoupment - Independent Special School Fees,Schools Block,SENAD LTD,1009473,01/10/2019,3324906,"10,771.32",0.00,N/A,N/A
Democracy,Democracy,Governance and Assurance,SHAW & SONS LTD,4741,01/10/2019,3316871,504.00,0.00,Organisation & Governance,Editorial and Design and Graphic and Fin
Grounds Maintenance & Cleansing,Grounds Maintenance,"Strategic Partnerships, Planning & Streetpride",SORBUS INTERNATIONAL LTD,146446,01/10/2019,3322299,790.00,0.00,Communities & Place,Farming Fishing Forestry and Wildlife Co
Early Help & Children�s Safeguarding,Children In Care,Non-Schools,SOUTH DERBYSHIRE DISTRICT COUNCIL,4480,01/10/2019,3324477,"1,133.54",0.00,People Services - Children & Young People,Politics and Civic Affairs Services
Learning & Inclusion,Inclusion & Intervention,Non-Schools,SPORTING COMMUNITIES CIC,698449,01/10/2019,3322360,"2,499.50",0.00,N/A,N/A
Traffic & Transportation,Traffic & Transportation (inc Integrated Pass Transport),"Strategic Partnerships, Planning & Streetpride",ST JOHN AMBULANCE,10362,01/10/2019,3316845,648.00,0.00,Communities & Place,Healthcare Services
Culture & Business Development,Culture & Business Development,"Leisure, Culture and Tourism",STAGE ELECTRICS PARTNERSHIP LTD,887478,01/10/2019,3309248,601.03,0.00,N/A,N/A
Culture & Business Development,Culture & Business Development,"Leisure, Culture and Tourism",STAGE ELECTRICS PARTNERSHIP LTD,887478,01/10/2019,3323352,589.34,0.00,N/A,N/A
Leisure,Leisure,"Leisure, Culture and Tourism",SWALLOW EVACUATION AND MOBILITY PRODUCTS LTD,224386,01/10/2019,3325070,906.25,0.00,Communities & Place,Medical Equipment and Accessories and Su
Integrated Services,Agency Placements,Non-Schools,SWAP LTD,471363,01/10/2019,3322199,"3,276.39",0.00,People Services - Children & Young People,Healthcare Services
Integrated Services,Agency Placements,Non-Schools,SWAP LTD,471363,01/10/2019,3322200,"3,452.78",0.00,People Services - Children & Young People,Healthcare Services
Integrated Services,Agency Placements,Non-Schools,SWAP LTD,471363,01/10/2019,3323326,"3,276.39",0.00,People Services - Children & Young People,Healthcare Services
Traffic & Transportation,Traffic & Transportation (inc Integrated Pass Transport),"Strategic Partnerships, Planning & Streetpride",SYSTRA LTD,887479,01/10/2019,3323440,"6,683.00",0.00,N/A,N/A
Highways & Engineering,Highways Maintenance & Street Lighting,"Strategic Partnerships, Planning & Streetpride",TARBY CONSTRUCTION LTD,194477,01/10/2019,3322044,"5,065.50",0.00,Communities & Place,Structures and Building and Construction
Highways & Engineering,Highways Maintenance & Street Lighting,"Strategic Partnerships, Planning & Streetpride",TARBY CONSTRUCTION LTD,194477,01/10/2019,3322046,"3,502.50",0.00,Communities & Place,Structures and Building and Construction
Highways & Engineering,Highways Maintenance & Street Lighting,"Strategic Partnerships, Planning & Streetpride",TARBY CONSTRUCTION LTD,194477,01/10/2019,3322047,"5,895.00",0.00,Communities & Place,Structures and Building and Construction
Highways & Engineering,Highways Maintenance & Street Lighting,"Strategic Partnerships, Planning & Streetpride",TARBY CONSTRUCTION LTD,194477,01/10/2019,3322048,"3,358.30",0.00,Communities & Place,Structures and Building and Construction
Highways & Engineering,Highways Maintenance & Street Lighting,"Strategic Partnerships, Planning & Streetpride",TARBY CONSTRUCTION LTD,194477,01/10/2019,3322048,"3,358.50",0.00,Communities & Place,Structures and Building and Construction
Highways & Engineering,Highways Maintenance & Street Lighting,"Strategic Partnerships, Planning & Streetpride",TARBY CONSTRUCTION LTD,194477,01/10/2019,3322048,"1,151.70",0.00,Communities & Place,Structures and Building and Construction
Non Delegated Schools Budget,Non Delegated School Expenditure,Schools Block,TEACHING PERSONNEL LTD,5067,01/10/2019,3324407,"1,080.00",0.00,N/A,N/A
Non Delegated Schools Budget,Non Delegated School Expenditure,Schools Block,TEACHING PERSONNEL LTD,5067,01/10/2019,3324408,"1,861.60",0.00,N/A,N/A
Integrated Services,Agency Placements,Non-Schools,TEAM FOSTERING,471352,01/10/2019,3309536,"5,363.09",0.00,People Services - Children & Young People,Healthcare Services
Integrated Services,Adoption,Non-Schools,THE CHILD PSYCHOLOGY SERVICE CIC,970469,01/10/2019,3322355,912.00,0.00,N/A,N/A
Senior Management,Senior Management,Senior Management,THE DISABILITY SYNDICATE,1039487,01/10/2019,3323316,"5,832.00",0.00,N/A,N/A
Senior Management,Senior Management,Senior Management,THE DISABILITY SYNDICATE,1039487,01/10/2019,3323317,"5,832.00",0.00,N/A,N/A
Non Delegated Schools Budget,Schools In Financial Difficulty,Schools Block,THE HARMONY TRUST LTD,1112504,01/10/2019,3321842,"29,166.00",0.00,N/A,N/A
Children and Young People,Capital,Capital,THE HARMONY TRUST LTD,874448,01/10/2019,3322361,"1,252.50",0.00,N/A,N/A
Early Help & Children�s Safeguarding,Children In Care,Non-Schools,THE ORTHODONTIC PRACTICE,1145471,01/10/2019,3324316,"2,500.00",0.00,N/A,N/A
Public Health,Drugs and Alcohol,Public Health,THE RIVERSIDE GROUP LTD,90997,01/10/2019,3324378,"26,287.58",0.00,People Services - Adults and Health,Healthcare Services
Non Delegated Schools Budget,Schools In Financial Difficulty,Schools Block,THE SPENCER ACADEMIES TRUST,1138476,01/10/2019,3321839,"29,166.00",0.00,N/A,N/A
Non Delegated Schools Budget,Schools In Financial Difficulty,Schools Block,THE SPENCER ACADEMIES TRUST,1138475,01/10/2019,3321840,"29,166.00",0.00,N/A,N/A
Learning Disability Support,Transitions and Ordinary Lives - Learning Disability Support,Transitions and Ordinary Lives,THE VILLAS CARE HOMES LTD,557447,01/10/2019,3323203,750.00,0.00,N/A,N/A
Procurement and Contracting,Accounts Payable (TSC),Finance,TOTAL GAS AND POWER LIMITED (CONSOLIDATED),932485,01/10/2019,3324543,"33,561.55",0.00,N/A,N/A
Procurement and Contracting,Accounts Payable (TSC),Finance,TOTAL GAS AND POWER LIMITED (CONSOLIDATED),932485,01/10/2019,3324543,"3,647.80",0.00,N/A,N/A
Integrated Services,Agency Placements,Non-Schools,TREEHOUSE CARE FOSTERING SOLUTIONS LTD,88329,01/10/2019,3323363,"11,454.24",0.00,People Services - Children & Young People,Politics and Civic Affairs Services
Non Delegated Schools Budget,Non Delegated School Expenditure,Schools Block,TUTE EDUCATION LIMITED,1143469,01/10/2019,3324410,"1,000.00",0.00,N/A,N/A
Organisational Development,Corporate Projects,Strategic Services and Organisational Development,UNIVERSITY OF DERBY,4937,01/10/2019,3308541,"1,518.00",0.00,Organisation & Governance,Education and Training Services
Social Care Activities,Home First - Social Care Activities,Home First,VALTECH LIMITED,1006474,01/10/2019,3322097,767.52,0.00,N/A,N/A
Learning Disability Support,Community Support - Learning Disability Support,Community Support,VOYAGE LTD,388487,01/10/2019,3324008,"3,076.32",0.00,N/A,N/A
Learning Disability Support,Community Support - Learning Disability Support,Community Support,VOYAGE LTD,388487,01/10/2019,3324012,"3,076.32",0.00,N/A,N/A
Learning Disability Support,Community Support - Learning Disability Support,Community Support,VOYAGE LTD,388487,01/10/2019,3324013,"3,076.32",0.00,N/A,N/A
Learning Disability Support,Community Support - Learning Disability Support,Community Support,VOYAGE LTD,388487,01/10/2019,3324016,"3,076.32",0.00,N/A,N/A
Learning Disability Support,Community Support - Learning Disability Support,Community Support,VOYAGE LTD,388487,01/10/2019,3324019,"3,076.32",0.00,N/A,N/A
Learning Disability Support,Community Support - Learning Disability Support,Community Support,VOYAGE LTD,388487,01/10/2019,3324032,"3,076.32",0.00,N/A,N/A
Learning Disability Support,Community Support - Learning Disability Support,Community Support,VOYAGE LTD,388487,01/10/2019,3324034,"3,076.32",0.00,N/A,N/A
Learning Disability Support,Community Support - Learning Disability Support,Community Support,VOYAGE LTD,388487,01/10/2019,3324035,"3,076.32",0.00,N/A,N/A
Physical Support,Community Support - Physical Support,Community Support,VOYAGE LTD,388487,01/10/2019,3324015,"3,076.32",0.00,N/A,N/A
Physical Support,Community Support - Physical Support,Community Support,VOYAGE LTD,388487,01/10/2019,3324017,"3,076.32",0.00,N/A,N/A
Physical Support,Community Support - Physical Support,Community Support,VOYAGE LTD,388487,01/10/2019,3324021,"3,076.32",0.00,N/A,N/A
Physical Support,Community Support - Physical Support,Community Support,VOYAGE LTD,388487,01/10/2019,3324024,"3,076.32",0.00,N/A,N/A
Physical Support,Community Support - Physical Support,Community Support,VOYAGE LTD,388487,01/10/2019,3324027,"3,076.32",0.00,N/A,N/A
Physical Support,Community Support - Physical Support,Community Support,VOYAGE LTD,388487,01/10/2019,3324028,"3,076.32",0.00,N/A,N/A
Physical Support,Community Support - Physical Support,Community Support,VOYAGE LTD,388487,01/10/2019,3324041,"3,076.32",0.00,N/A,N/A
Physical Support,Community Support - Physical Support,Community Support,VOYAGE LTD,388487,01/10/2019,3324043,"3,076.32",0.00,N/A,N/A
Children and Young People,Capital,Capital,WATES CONSTRUCTION LTD,605446,01/10/2019,3323581,"15,088.74",0.00,N/A,N/A
Children and Young People,Capital,Capital,WATES CONSTRUCTION LTD,605446,01/10/2019,3323594,"13,542.69",0.00,N/A,N/A
Non Delegated Schools Budget,Schools In Financial Difficulty,Schools Block,WEST PARK SCHOOL,8455,01/10/2019,3321838,"29,166.00",0.00,N/A,N/A
Learning Disability Support,Transitions and Ordinary Lives - Learning Disability Support,Transitions and Ordinary Lives,WHITWELL PARK,9577,01/10/2019,3323183,800.00,0.00,N/A,N/A
Commissioning - Schools Block,Recoupment - Independent Special School Fees,Schools Block,WILDS LODGE SCHOOL,1152495,01/10/2019,3322104,"33,333.33",0.00,N/A,N/A
Commissioning - Schools Block,Recoupment - Independent Special School Fees,Schools Block,WILDS LODGE SCHOOL,1152495,01/10/2019,3322105,"33,333.33",0.00,N/A,N/A
Commissioning - Schools Block,Recoupment - Independent Special School Fees,Schools Block,WILDS LODGE SCHOOL,1152495,01/10/2019,3322112,"33,333.33",0.00,N/A,N/A
Integrated Services,Agency Placements,Non-Schools,YOUNG FOUNDATIONS LTD,1132470,01/10/2019,3322274,"24,808.86",0.00,N/A,N/A
Adults Health and Housing,Capital,Capital,A M PROPERTY SERVICES LTD,121,03/10/2019,3325179,"10,000.00",0.00,Disabled Facilities Grant 96 Act,Building and Construction and Maintenanc
Adults Health and Housing,Capital,Capital,A M PROPERTY SERVICES LTD,121,03/10/2019,3325181,"7,000.00",0.00,Disabled Facilities Grant 96 Act,Building and Construction and Maintenanc
Adults Health and Housing,Capital,Capital,A M PROPERTY SERVICES LTD,121,03/10/2019,3325190,"3,500.00",0.00,Disabled Facilities Grant 96 Act,Building and Construction and Maintenanc
"Environmental Protection, Licensing, Housing",Environmental Protection,"Communities, Environment & Regulatory Services",A W LYMN,132,03/10/2019,3325463,"1,200.00",0.00,Communities & Place,Default
Senior Management,Senior Management,Senior Management,ADASS,153659,03/10/2019,3325567,"2,015.00",0.00,People Services - Adults and Health,Organizations and Clubs
Early Help & Children�s Safeguarding,Integrated and Safeguarding Services Locality 3/4,Non-Schools,ADFAN,470777,03/10/2019,3325133,910.00,0.00,N/A,N/A
Early Help & Children�s Safeguarding,Integrated and Safeguarding Services Locality 3/4,Non-Schools,ADFAN,470777,03/10/2019,3325134,910.00,0.00,N/A,N/A
Early Help & Children�s Safeguarding,Integrated and Safeguarding Services Locality 3/4,Non-Schools,ADFAN,470777,03/10/2019,3325135,910.00,0.00,N/A,N/A
Early Help & Children�s Safeguarding,Integrated and Safeguarding Services Locality 3/4,Non-Schools,ADFAN,470777,03/10/2019,3325136,910.00,0.00,N/A,N/A
Early Help & Children�s Safeguarding,Integrated and Safeguarding Services Locality 3/4,Non-Schools,ADFAN,470777,03/10/2019,3325137,910.00,0.00,N/A,N/A
Early Help & Children�s Safeguarding,Integrated and Safeguarding Services Locality 3/4,Non-Schools,ADFAN,470777,03/10/2019,3325138,910.00,0.00,N/A,N/A
Early Help & Children�s Safeguarding,Integrated and Safeguarding Services Locality 3/4,Non-Schools,ADFAN,470777,03/10/2019,3325139,910.00,0.00,N/A,N/A
Early Help & Children�s Safeguarding,Integrated and Safeguarding Services Locality 3/4,Non-Schools,ADFAN,470777,03/10/2019,3325140,910.00,0.00,N/A,N/A
Early Help & Children�s Safeguarding,Integrated and Safeguarding Services Locality 3/4,Non-Schools,ADFAN,470777,03/10/2019,3325141,910.00,0.00,N/A,N/A
Early Help & Children�s Safeguarding,Integrated and Safeguarding Services Locality 3/4,Non-Schools,ADFAN,470777,03/10/2019,3325142,910.00,0.00,N/A,N/A
Early Help & Children�s Safeguarding,Integrated and Safeguarding Services Locality 3/4,Non-Schools,ADFAN,470777,03/10/2019,3325143,910.00,0.00,N/A,N/A
Early Help & Children�s Safeguarding,Integrated and Safeguarding Services Locality 3/4,Non-Schools,ADFAN,470777,03/10/2019,3325144,910.00,0.00,N/A,N/A
Early Help & Children�s Safeguarding,Integrated Services Locality 3/4,Non-Schools,ADFAN,470777,03/10/2019,3325153,900.00,0.00,N/A,N/A
Early Help & Children�s Safeguarding,Integrated Services Locality 3/4,Non-Schools,ADFAN,470777,03/10/2019,3325154,630.00,0.00,N/A,N/A
Early Help & Children�s Safeguarding,Integrated Services Locality 3/4,Non-Schools,ADFAN,470777,03/10/2019,3325155,630.00,0.00,N/A,N/A
Early Help & Children�s Safeguarding,Integrated Services Locality 3/4,Non-Schools,ADFAN,470777,03/10/2019,3325156,630.00,0.00,N/A,N/A
Early Help & Children�s Safeguarding,Integrated Services Locality 3/4,Non-Schools,ADFAN,470777,03/10/2019,3325157,630.00,0.00,N/A,N/A
Early Help & Children�s Safeguarding,Integrated Services Locality 3/4,Non-Schools,ADFAN,470777,03/10/2019,3325158,630.00,0.00,N/A,N/A
Early Help & Children�s Safeguarding,Integrated Services Locality 3/4,Non-Schools,ADFAN,470777,03/10/2019,3325159,630.00,0.00,N/A,N/A
Early Help & Children�s Safeguarding,Integrated Services Locality 3/4,Non-Schools,ADFAN,470777,03/10/2019,3325160,630.00,0.00,N/A,N/A
Early Help & Children�s Safeguarding,Integrated Services Locality 3/4,Non-Schools,ADFAN,470777,03/10/2019,3325161,630.00,0.00,N/A,N/A
Early Help & Children�s Safeguarding,Integrated Services Locality 3/4,Non-Schools,ADFAN,470777,03/10/2019,3325162,630.00,0.00,N/A,N/A
Early Help & Children�s Safeguarding,Integrated Services Locality 3/4,Non-Schools,ADFAN,470777,03/10/2019,3325504,630.00,0.00,N/A,N/A
Early Help & Children�s Safeguarding,Integrated Services Locality 3/4,Non-Schools,ADFAN,470777,03/10/2019,3325505,630.00,0.00,N/A,N/A
Early Help & Children�s Safeguarding,Integrated Services Locality 3/4,Non-Schools,ADFAN,470777,03/10/2019,3325507,630.00,0.00,N/A,N/A
Early Help & Children�s Safeguarding,Integrated Services Locality 3/4,Non-Schools,ADFAN,470777,03/10/2019,3325412,630.00,0.00,N/A,N/A
Early Help & Children�s Safeguarding,Integrated Services Locality 3/4,Non-Schools,ADFAN,470777,03/10/2019,3325416,630.00,0.00,N/A,N/A
Early Help & Children�s Safeguarding,Integrated Services Locality 3/4,Non-Schools,ADFAN,470777,03/10/2019,3325417,630.00,0.00,N/A,N/A
Early Help & Children�s Safeguarding,Integrated Services Locality 3/4,Non-Schools,ADFAN,470777,03/10/2019,3325418,630.00,0.00,N/A,N/A
Early Help & Children�s Safeguarding,Integrated Services Locality 3/4,Non-Schools,ADFAN,470777,03/10/2019,3325419,630.00,0.00,N/A,N/A
Early Help & Children�s Safeguarding,Integrated Services Locality 3/4,Non-Schools,ADFAN,470777,03/10/2019,3325420,630.00,0.00,N/A,N/A
Early Help & Children�s Safeguarding,Integrated Services Locality 3/4,Non-Schools,ADFAN,470777,03/10/2019,3325421,630.00,0.00,N/A,N/A
Early Help & Children�s Safeguarding,Integrated Services Locality 3/4,Non-Schools,ADFAN,470777,03/10/2019,3325422,630.00,0.00,N/A,N/A
Early Help & Children�s Safeguarding,Integrated Services Locality 3/4,Non-Schools,ADFAN,470777,03/10/2019,3325514,630.00,0.00,N/A,N/A
Early Help & Children�s Safeguarding,Integrated Services Locality 3/4,Non-Schools,ADFAN,470777,03/10/2019,3325477,630.00,0.00,N/A,N/A
Early Help & Children�s Safeguarding,Integrated Services Locality 3/4,Non-Schools,ADFAN,470777,03/10/2019,3325478,630.00,0.00,N/A,N/A
Early Help & Children�s Safeguarding,Integrated Services Locality 3/4,Non-Schools,ADFAN,470777,03/10/2019,3325479,630.00,0.00,N/A,N/A
General,Stores Road Depot & Fleet Management,"Strategic Partnerships, Planning & Streetpride",ADT SITE SERVICES LTD,982472,03/10/2019,3324996,591.80,0.00,N/A,N/A
General,Stores Road Depot & Fleet Management,"Strategic Partnerships, Planning & Streetpride",ADT SITE SERVICES LTD,982472,03/10/2019,3324999,537.15,0.00,N/A,N/A
Highways & Engineering,Highways Maintenance & Street Lighting,"Strategic Partnerships, Planning & Streetpride",AGGREGATE INDUSTRIES UK LTD,117850,03/10/2019,3325049,696.29,0.00,Communities & Place,Building and Construction Machinery and
Highways & Engineering,Highways Maintenance & Street Lighting,"Strategic Partnerships, Planning & Streetpride",AGGREGATE INDUSTRIES UK LTD,117850,03/10/2019,3326203,623.85,0.00,Communities & Place,Building and Construction Machinery and
Highways & Engineering,Highways Maintenance & Street Lighting,"Strategic Partnerships, Planning & Streetpride",AGGREGATE INDUSTRIES UK LTD,117850,03/10/2019,3326212,"1,190.43",0.00,Communities & Place,Building and Construction Machinery and
Highways & Engineering,Engineering,"Strategic Partnerships, Planning & Streetpride",AQUA JET,79,03/10/2019,3323436,625.00,0.00,Communities & Place,Building and Construction and Maintenanc
Neighbourhoods,Capital,Capital,ARCADIS UK LTD,1063470,03/10/2019,3324341,"3,136.09",0.00,N/A,N/A
Neighbourhoods,Capital,Capital,ARCADIS UK LTD,1063470,03/10/2019,3324346,"1,917.62",0.00,N/A,N/A
Highways & Engineering,Highways Maintenance & Street Lighting,"Strategic Partnerships, Planning & Streetpride",AVERY WEIGH TRONIX,7488,03/10/2019,3325439,565.95,0.00,Communities & Place,Material Handling and Conditioning and S
Neighbourhoods,Capital,Capital,B J WILSON LTD,1152468,03/10/2019,3321449,"2,307.47",0.00,N/A,N/A
Learning & Inclusion,Inclusion & Intervention,Non-Schools,BY DESIGN GROUP LTD,153476,03/10/2019,3317032,"9,839.60",0.00,N/A,N/A
Learning & Inclusion,Inclusion & Intervention,Non-Schools,BY DESIGN GROUP LTD,153476,03/10/2019,3317033,"9,807.20",0.00,N/A,N/A
Learning & Inclusion,Inclusion & Intervention,Non-Schools,BY DESIGN GROUP LTD,153476,03/10/2019,3317034,"9,962.40",0.00,N/A,N/A
Property Design & Maintenance,Building - Repairs & Maintenance,"Regeneration, Property & Housing",CENTRAL HIGH RISE LTD,187900,03/10/2019,3326060,624.00,0.00,N/A,N/A
Early Help & Children�s Safeguarding,Children In Care,Non-Schools,CHILDREN FIRST DERBY,794,03/10/2019,3325365,"44,010.00",0.00,People Services - Children & Young People,Healthcare Services
Neighbourhoods,Capital,Capital,CHOICES HEALTH CLUBS RW LIMITED,1152469,03/10/2019,3321640,"13,173.60",0.00,N/A,N/A
Early Help & Children�s Safeguarding,Children In Care,Non-Schools,CITY CARS,1068470,03/10/2019,3324820,"2,397.00",0.00,N/A,N/A
Property Design & Maintenance,Building - Repairs & Maintenance,"Regeneration, Property & Housing",CLYMAC LTD,187927,03/10/2019,3326067,907.48,0.00,N/A,N/A
Neighbourhoods,Capital,Capital,COMECH METROLOGY LTD,1147478,03/10/2019,3313481,"1,453.00",0.00,N/A,N/A
Highways & Engineering,Highways Maintenance & Street Lighting,"Strategic Partnerships, Planning & Streetpride",COMPASS MINERALS UK LTD,207370,03/10/2019,3325472,"2,686.72",0.00,Communities & Place,Mineral and Textile and Inedible Plant a
Highways & Engineering,Highways Maintenance & Street Lighting,"Strategic Partnerships, Planning & Streetpride",COMPASS MINERALS UK LTD,207370,03/10/2019,3325473,"3,966.60",0.00,Communities & Place,Mineral and Textile and Inedible Plant a
"Environmental Protection, Licensing, Housing",Environmental Protection,"Communities, Environment & Regulatory Services",CROWFOOT KENNELS LTD,134352,03/10/2019,3325581,"2,487.50",0.00,Communities & Place,Farming Fishing Forestry and Wildlife Co
"Environmental Protection, Licensing, Housing",Environmental Protection,"Communities, Environment & Regulatory Services",CROWFOOT KENNELS LTD,134352,03/10/2019,3325581,"1,295.00",0.00,Communities & Place,Farming Fishing Forestry and Wildlife Co
Food & Safety & Trading Standards,Trading Standards,"Communities, Environment & Regulatory Services",DAVID J BELLAMY ASSOCIATES,1114469,03/10/2019,3325971,"1,012.70",0.00,N/A,N/A
Strategic Housing,Housing and Advice,"Regeneration, Property & Housing",DERBY CITY COUNCIL C/TAX,1036478,03/10/2019,3325182,"1,533.95",0.00,N/A,N/A
Retained Housing Revenue Account,Retained Housing Revenue Account,"Regeneration, Property & Housing",DERBY CITY COUNCIL C/TAX,1036478,03/10/2019,3325195,"1,095.52",0.00,N/A,N/A
Property Design & Maintenance,Building - Repairs & Maintenance,"Regeneration, Property & Housing",DERBY HOMES LTD,1076488,03/10/2019,3326093,"52,760.84",0.00,N/A,N/A
General,Stores Road Depot & Fleet Management,"Strategic Partnerships, Planning & Streetpride",DERBYSHIRE COUNTY COUNCIL,1042479,03/10/2019,3310961,838.31,0.00,N/A,N/A
Adults Health and Housing,Capital,Capital,DERBYSHIRE COUNTY COUNCIL,1042479,03/10/2019,3325186,567.00,0.00,N/A,N/A
Public Health,Drugs and Alcohol,Public Health,DERBYSHIRE HEALTHCARE NHS FOUNDATION TRUST,107468,03/10/2019,3325414,"1,667.00",0.00,People Services - Adults and Health,Healthcare Services
Commissioning - Schools Block,Recoupment - Independent Special School Fees,Schools Block,DERWENT STEPPING STONES,10059,03/10/2019,3325578,"2,100.00",0.00,N/A,N/A
Neighbourhoods,Capital,Capital,DJLA HOLDINGS LTD,1154487,03/10/2019,3323365,"4,430.50",0.00,N/A,N/A
Early Help & Children�s Safeguarding,Integrated and Safeguarding Services Locality 3/4,Non-Schools,DMR SERVICES,235403,03/10/2019,3316428,587.60,0.00,People Services - Children & Young People,Healthcare Services
Early Help & Children�s Safeguarding,Integrated and Safeguarding Services Locality 3/4,Non-Schools,DMR SERVICES,235403,03/10/2019,3326261,825.00,0.00,People Services - Children & Young People,Healthcare Services
Early Help & Children�s Safeguarding,Integrated and Safeguarding Services Locality 3/4,Non-Schools,DMR SERVICES,235403,03/10/2019,3326262,"1,072.50",0.00,People Services - Children & Young People,Healthcare Services
Early Help & Children�s Safeguarding,Integrated and Safeguarding Services Locality 3/4,Non-Schools,DMR SERVICES,235403,03/10/2019,3326263,825.00,0.00,People Services - Children & Young People,Healthcare Services
Early Help & Children�s Safeguarding,Integrated and Safeguarding Services Locality 3/4,Non-Schools,DMR SERVICES,235403,03/10/2019,3326264,577.50,0.00,People Services - Children & Young People,Healthcare Services
Early Help & Children�s Safeguarding,Integrated and Safeguarding Services Locality 3/4,Non-Schools,DMR SERVICES,235403,03/10/2019,3326265,"1,155.00",0.00,People Services - Children & Young People,Healthcare Services
Adults Health and Housing,Capital,Capital,E and M BUILDING SERVICES,124751,03/10/2019,3325187,630.00,0.00,Disabled Facilities Grant 96 Act,Building and Construction and Maintenanc
Finance,Accountancy,Finance,ERNST AND YOUNG LLP,884480,03/10/2019,3325516,"27,442.00",0.00,N/A,N/A
Legal Services,Legal Services,Governance and Assurance,EVERSHEDS SUTHERLAND INTERNATIONAL LLP,910471,03/10/2019,3306208,"2,299.00",0.00,N/A,N/A
Integrated Services,Agency Placements,Non-Schools,FOOTSTEPS TO FUTURES,1117478,03/10/2019,3324844,"24,188.99",0.00,N/A,N/A
Integrated Services,Agency Placements,Non-Schools,FOOTSTEPS TO FUTURES,1117478,03/10/2019,3325119,"23,408.70",0.00,N/A,N/A
Integrated Services,Agency Placements,Non-Schools,FOSTER CARE ASSOCIATES LTD fca,885474,03/10/2019,3322248,"5,543.44",0.00,N/A,N/A
Neighbourhoods,Capital,Capital,FREETHS LLP,821453,03/10/2019,3305513,"2,736.60",0.00,N/A,N/A
Neighbourhoods,Capital,Capital,FREETHS LLP,821453,03/10/2019,3305513,"1,600.00",0.00,N/A,N/A
Neighbourhoods,Capital,Capital,FREETHS LLP,821453,03/10/2019,3305513,"6,000.00",0.00,N/A,N/A
Neighbourhoods,Capital,Capital,FREETHS LLP,821453,03/10/2019,3305513,"5,000.00",0.00,N/A,N/A
Neighbourhoods,Capital,Capital,FREETHS LLP,821453,03/10/2019,3305513,"1,000.00",0.00,N/A,N/A
Neighbourhoods,Capital,Capital,FREETHS LLP,821453,03/10/2019,3305513,"2,500.00",0.00,N/A,N/A
Neighbourhoods,Capital,Capital,FREETHS LLP,821453,03/10/2019,3305513,"1,734.00",0.00,N/A,N/A
Neighbourhoods,Capital,Capital,FREETHS LLP,821453,03/10/2019,3305513,"1,734.00",0.00,N/A,N/A
Neighbourhoods,Capital,Capital,FREETHS LLP,821453,03/10/2019,3305513,696.90,0.00,N/A,N/A
Neighbourhoods,Capital,Capital,FREETHS LLP,821453,03/10/2019,3325152,748.00,0.00,N/A,N/A
Property Design & Maintenance,Building - Repairs & Maintenance,"Regeneration, Property & Housing",G2V RECRUITMENT GROUP LIMITED,886475,03/10/2019,3326045,"1,210.00",0.00,N/A,N/A
General,Stores Road Depot & Fleet Management,"Strategic Partnerships, Planning & Streetpride",GO PLANT FLEET SERVICES LTD,746443,03/10/2019,3324990,"4,101.05",0.00,N/A,N/A
Highways & Engineering,Highways Maintenance & Street Lighting,"Strategic Partnerships, Planning & Streetpride",GTM GO TRAFFIC MANAGEMENT,200402,03/10/2019,3296641,"1,190.00",0.00,Communities & Place,Defense and Law Enforcement and Security
Property Design & Maintenance,Building - Repairs & Maintenance,"Regeneration, Property & Housing",HIGHFIELD JOINERY AND BUILD SERVS LTD,215391,03/10/2019,3326053,"4,145.00",0.00,N/A,N/A
Property Design & Maintenance,Building - Repairs & Maintenance,"Regeneration, Property & Housing",HIGHFIELD JOINERY AND BUILD SERVS LTD,215391,03/10/2019,3326089,"4,940.00",0.00,N/A,N/A
Property Design & Maintenance,Building - Repairs & Maintenance,"Regeneration, Property & Housing",HIGHFIELD JOINERY AND BUILD SERVS LTD,215391,03/10/2019,3326101,"1,375.00",0.00,N/A,N/A
Property Design & Maintenance,Building - Repairs & Maintenance,"Regeneration, Property & Housing",HIGHFIELD JOINERY AND BUILD SERVS LTD,215391,03/10/2019,3326118,"4,925.00",0.00,N/A,N/A
Neighbourhoods,Capital,Capital,ILKESTON FENCING LTD,11189,03/10/2019,3322091,"3,274.00",0.00,Our City Our River - Package 1,Structures and Building and Construction
Social Care Activities,Home First - Social Care Activities,Home First,IMPERIAL,2285,03/10/2019,3325170,779.69,0.00,People Services - Adults and Health,Industrial Cleaning Services
Property Design & Maintenance,Building - Repairs & Maintenance,"Regeneration, Property & Housing",INDUSTRIAL PROCESS PUMPS LTD,188067,03/10/2019,3326046,"1,571.90",0.00,N/A,N/A
Neighbourhoods,Capital,Capital,KIER HIGHWAYS LIMITED,1159473,03/10/2019,3325444,"283,956.88",0.00,N/A,N/A
Property Design & Maintenance,Building - Repairs & Maintenance,"Regeneration, Property & Housing",KONE PLC,188097,03/10/2019,3326039,"3,262.10",0.00,N/A,N/A
Culture & Business Development,Culture & Business Development,"Leisure, Culture and Tourism",LE MARK GROUP,82970,03/10/2019,3323461,"1,558.42",0.00,Communities & Place,Manufacturing Components and Supplies
Commissioning - Schools Block,Recoupment - Independent Special School Fees,Schools Block,LITTLE ANGELS PLAYSCHOOL,936470,03/10/2019,3325579,"2,100.00",0.00,N/A,N/A
Adults Health and Housing,Capital,Capital,M AND A DOOCEY CIVIL ENGINEERING LIMITED,1120468,03/10/2019,3322101,"8,910.82",0.00,N/A,N/A
Adults Health and Housing,Capital,Capital,M AND A DOOCEY CIVIL ENGINEERING LIMITED,1120468,03/10/2019,3322103,"2,227.70",0.00,N/A,N/A
Traffic & Transportation,Network Mgmnt & Highway Dev Control,"Strategic Partnerships, Planning & Streetpride",MCCONNELLS (MIDLANDS) LTD,2917,03/10/2019,3325470,852.08,0.00,Communities & Place,Editorial and Design and Graphic and Fin
Adults Health and Housing,Capital,Capital,MEDEQUIP ASSISTIVE TECH LTD,117887,03/10/2019,3325014,"1,110.00",0.00,Disabled Facilities Grant 96 Act,Medical Equipment and Accessories and Su
Property Design & Maintenance,Building - Repairs & Maintenance,"Regeneration, Property & Housing",MIDLAND COUNTIES HEATING SERVICES,188123,03/10/2019,3326011,722.32,0.00,N/A,N/A
Property Design & Maintenance,Building - Repairs & Maintenance,"Regeneration, Property & Housing",MIDLAND COUNTIES HEATING SERVICES,188123,03/10/2019,3326013,681.23,0.00,N/A,N/A
Property Design & Maintenance,Building - Repairs & Maintenance,"Regeneration, Property & Housing",MIDLAND COUNTIES HEATING SERVICES,188123,03/10/2019,3326055,744.75,0.00,N/A,N/A
Property Design & Maintenance,Building - Repairs & Maintenance,"Regeneration, Property & Housing",MIDLAND COUNTIES HEATING SERVICES,188123,03/10/2019,3326058,620.79,0.00,N/A,N/A
Property Design & Maintenance,Building - Repairs & Maintenance,"Regeneration, Property & Housing",MIDLAND COUNTIES HEATING SERVICES,188123,03/10/2019,3326070,653.80,0.00,N/A,N/A
Property Design & Maintenance,Building - Repairs & Maintenance,"Regeneration, Property & Housing",MIDLAND COUNTIES HEATING SERVICES,188123,03/10/2019,3326071,652.49,0.00,N/A,N/A
Property Design & Maintenance,Building - Repairs & Maintenance,"Regeneration, Property & Housing",MITIE TECHNICAL FACILITIES MANAGEMENT LTD,188130,03/10/2019,3326022,"1,655.90",0.00,N/A,N/A
Property Design & Maintenance,Building - Repairs & Maintenance,"Regeneration, Property & Housing",MITIE TECHNICAL FACILITIES MANAGEMENT LTD,188130,03/10/2019,3326043,846.40,0.00,N/A,N/A
Property Design & Maintenance,Building - Repairs & Maintenance,"Regeneration, Property & Housing",MITIE TECHNICAL FACILITIES MANAGEMENT LTD,188130,03/10/2019,3326048,923.64,0.00,N/A,N/A
Traffic & Transportation,Traffic & Transportation (inc Integrated Pass Transport),"Strategic Partnerships, Planning & Streetpride",NATIONAL EXPRESS LTD,904470,03/10/2019,3326290,"14,573.86",0.00,N/A,N/A
Property Design & Maintenance,Building - Repairs & Maintenance,"Regeneration, Property & Housing",NOVAR SYSTEMS LTD,188143,03/10/2019,3326110,555.30,0.00,N/A,N/A
Children and Young People,Capital,Capital,PERFECT CIRCLE JV LTD,605451,03/10/2019,3326020,"85,381.21",0.00,N/A,N/A
Children and Young People,Capital,Capital,PERFECT CIRCLE JV LTD,605451,03/10/2019,3326021,"36,977.73",0.00,N/A,N/A
Children and Young People,Capital,Capital,PERFECT CIRCLE JV LTD,605451,03/10/2019,3326063,"13,756.52",0.00,N/A,N/A
Property Design & Maintenance,Building - Repairs & Maintenance,"Regeneration, Property & Housing",PHS COMPLIANCE,188553,03/10/2019,3326128,834.82,0.00,N/A,N/A
Social Care Activities,Mental Health - Social Care Activities,Mental Health,POSTURITE UK LTD,7572,03/10/2019,3321781,549.56,0.00,People Services - Adults and Health,Furniture and Furnishings
Adults Health and Housing,Capital,Capital,PRISM MEDICAL UK WESTHOLME DIVISION,126874,03/10/2019,3325062,"1,735.00",0.00,Disabled Facilities Grant 96 Act,Medical Equipment and Accessories and Su
Adults Health and Housing,Capital,Capital,PRISM MEDICAL UK WESTHOLME DIVISION,126874,03/10/2019,3325064,"1,925.00",0.00,Disabled Facilities Grant 96 Act,Medical Equipment and Accessories and Su
Public Health,Drugs and Alcohol,Public Health,RANDOX TESTING SERVICES,424399,03/10/2019,3325517,"1,788.75",0.00,People Services - Adults and Health,Laboratory and Measuring and Observing a
Learning Disability Support,Community Support - Learning Disability Support,Community Support,REDACTED - PERSONAL DATA,112588,03/10/2019,3325765,"1,769.64",0.00,N/A,N/A
Learning Disability Support,Community Support - Learning Disability Support,Community Support,REDACTED - PERSONAL DATA,112588,03/10/2019,3325797,"1,769.64",0.00,N/A,N/A
Learning Disability Support,Community Support - Learning Disability Support,Community Support,REDACTED - PERSONAL DATA,112588,03/10/2019,3325800,"1,769.64",0.00,N/A,N/A
Learning Disability Support,Community Support - Learning Disability Support,Community Support,REDACTED - PERSONAL DATA,112588,03/10/2019,3325876,758.42,0.00,N/A,N/A
Learning Disability Support,Community Support - Learning Disability Support,Community Support,REDACTED - PERSONAL DATA,112588,03/10/2019,3325879,"1,769.64",0.00,N/A,N/A
Learning Disability Support,Community Support - Learning Disability Support,Community Support,REDACTED - PERSONAL DATA,112588,03/10/2019,3325926,"1,769.64",0.00,N/A,N/A
Learning Disability Support,Community Support - Learning Disability Support,Community Support,REDACTED - PERSONAL DATA,180517,03/10/2019,3325768,"2,009.32",0.00,N/A,N/A
Learning Disability Support,Community Support - Learning Disability Support,Community Support,REDACTED - PERSONAL DATA,180517,03/10/2019,3325769,"2,009.32",0.00,N/A,N/A
Learning Disability Support,Community Support - Learning Disability Support,Community Support,REDACTED - PERSONAL DATA,180517,03/10/2019,3325743,"2,009.32",0.00,N/A,N/A
Learning Disability Support,Community Support - Learning Disability Support,Community Support,REDACTED - PERSONAL DATA,180517,03/10/2019,3325801,502.33,0.00,N/A,N/A
Learning Disability Support,Community Support - Learning Disability Support,Community Support,REDACTED - PERSONAL DATA,180517,03/10/2019,3325880,"2,009.32",0.00,N/A,N/A
Learning Disability Support,Community Support - Learning Disability Support,Community Support,REDACTED - PERSONAL DATA,180517,03/10/2019,3325881,"2,009.32",0.00,N/A,N/A
Learning Disability Support,Community Support - Learning Disability Support,Community Support,REDACTED - PERSONAL DATA,180517,03/10/2019,3325883,"2,009.32",0.00,N/A,N/A
Learning Disability Support,Community Support - Learning Disability Support,Community Support,REDACTED - PERSONAL DATA,180517,03/10/2019,3325904,"2,009.32",0.00,N/A,N/A
Physical Support,Community Support - Physical Support,Community Support,REDACTED - PERSONAL DATA,1040478,03/10/2019,3325874,"1,068.96",0.00,N/A,N/A
Physical Support,Community Support - Physical Support,Community Support,REDACTED - PERSONAL DATA,975486,03/10/2019,3325817,831.88,0.00,N/A,N/A
Physical Support,Community Support - Physical Support,Community Support,REDACTED - PERSONAL DATA,862444,03/10/2019,3325936,521.84,0.00,N/A,N/A
Learning & Inclusion,Inclusion & Intervention,Non-Schools,REDACTED - PERSONAL DATA,879460,03/10/2019,3324876,"3,325.00",0.00,N/A,N/A
Mental Health Support,Mental Health - Mental Health Support,Mental Health,REDACTED - PERSONAL DATA,554449,03/10/2019,3325777,"1,050.68",0.00,N/A,N/A
Mental Health Support,Mental Health - Mental Health Support,Mental Health,REDACTED - PERSONAL DATA,554449,03/10/2019,3325750,"1,050.68",0.00,N/A,N/A
Mental Health Support,Mental Health - Mental Health Support,Mental Health,REDACTED - PERSONAL DATA,554449,03/10/2019,3325830,"1,050.68",0.00,N/A,N/A
Mental Health Support,Mental Health - Mental Health Support,Mental Health,REDACTED - PERSONAL DATA,554449,03/10/2019,3325831,"1,050.68",0.00,N/A,N/A
Mental Health Support,Mental Health - Mental Health Support,Mental Health,REDACTED - PERSONAL DATA,554449,03/10/2019,3325832,"1,050.68",0.00,N/A,N/A
Mental Health Support,Mental Health - Mental Health Support,Mental Health,REDACTED - PERSONAL DATA,554449,03/10/2019,3325833,"1,050.68",0.00,N/A,N/A
Mental Health Support,Mental Health - Mental Health Support,Mental Health,REDACTED - PERSONAL DATA,554449,03/10/2019,3325887,"1,050.68",0.00,N/A,N/A
Mental Health Support,Mental Health - Mental Health Support,Mental Health,REDACTED - PERSONAL DATA,773458,03/10/2019,3325784,752.74,0.00,N/A,N/A
Mental Health Support,Mental Health - Mental Health Support,Mental Health,REDACTED - PERSONAL DATA,773458,03/10/2019,3325788,810.64,0.00,N/A,N/A
Mental Health Support,Mental Health - Mental Health Support,Mental Health,REDACTED - PERSONAL DATA,773458,03/10/2019,3325789,810.64,0.00,N/A,N/A
Mental Health Support,Mental Health - Mental Health Support,Mental Health,REDACTED - PERSONAL DATA,773458,03/10/2019,3325753,810.64,0.00,N/A,N/A
Mental Health Support,Mental Health - Mental Health Support,Mental Health,REDACTED - PERSONAL DATA,773458,03/10/2019,3325754,810.64,0.00,N/A,N/A
Mental Health Support,Mental Health - Mental Health Support,Mental Health,REDACTED - PERSONAL DATA,773458,03/10/2019,3325755,810.64,0.00,N/A,N/A
Mental Health Support,Mental Health - Mental Health Support,Mental Health,REDACTED - PERSONAL DATA,773458,03/10/2019,3325756,810.64,0.00,N/A,N/A
Mental Health Support,Mental Health - Mental Health Support,Mental Health,REDACTED - PERSONAL DATA,773458,03/10/2019,3325758,961.40,0.00,N/A,N/A
Mental Health Support,Mental Health - Mental Health Support,Mental Health,REDACTED - PERSONAL DATA,773458,03/10/2019,3325808,810.64,0.00,N/A,N/A
Mental Health Support,Mental Health - Mental Health Support,Mental Health,REDACTED - PERSONAL DATA,773458,03/10/2019,3325814,810.64,0.00,N/A,N/A
Mental Health Support,Mental Health - Mental Health Support,Mental Health,REDACTED - PERSONAL DATA,773458,03/10/2019,3325815,961.40,0.00,N/A,N/A
Mental Health Support,Mental Health - Mental Health Support,Mental Health,REDACTED - PERSONAL DATA,773458,03/10/2019,3325840,961.40,0.00,N/A,N/A
Mental Health Support,Mental Health - Mental Health Support,Mental Health,REDACTED - PERSONAL DATA,773458,03/10/2019,3325841,810.64,0.00,N/A,N/A
Mental Health Support,Mental Health - Mental Health Support,Mental Health,REDACTED - PERSONAL DATA,773458,03/10/2019,3325842,810.64,0.00,N/A,N/A
Mental Health Support,Mental Health - Mental Health Support,Mental Health,REDACTED - PERSONAL DATA,773458,03/10/2019,3325863,810.64,0.00,N/A,N/A
Mental Health Support,Mental Health - Mental Health Support,Mental Health,REDACTED - PERSONAL DATA,773458,03/10/2019,3325864,810.64,0.00,N/A,N/A
Mental Health Support,Mental Health - Mental Health Support,Mental Health,REDACTED - PERSONAL DATA,773458,03/10/2019,3325867,810.64,0.00,N/A,N/A
Mental Health Support,Mental Health - Mental Health Support,Mental Health,REDACTED - PERSONAL DATA,773458,03/10/2019,3325890,579.03,0.00,N/A,N/A
Mental Health Support,Mental Health - Mental Health Support,Mental Health,REDACTED - PERSONAL DATA,773458,03/10/2019,3325893,810.64,0.00,N/A,N/A
Mental Health Support,Mental Health - Mental Health Support,Mental Health,REDACTED - PERSONAL DATA,773458,03/10/2019,3325894,810.64,0.00,N/A,N/A
Mental Health Support,Mental Health - Mental Health Support,Mental Health,REDACTED - PERSONAL DATA,773458,03/10/2019,3325897,961.40,0.00,N/A,N/A
Mental Health Support,Mental Health - Mental Health Support,Mental Health,REDACTED - PERSONAL DATA,773458,03/10/2019,3325898,810.64,0.00,N/A,N/A
Mental Health Support,Mental Health - Mental Health Support,Mental Health,REDACTED - PERSONAL DATA,773458,03/10/2019,3325912,810.64,0.00,N/A,N/A
Mental Health Support,Mental Health - Mental Health Support,Mental Health,REDACTED - PERSONAL DATA,773458,03/10/2019,3325913,810.64,0.00,N/A,N/A
Mental Health Support,Mental Health - Mental Health Support,Mental Health,REDACTED - PERSONAL DATA,773458,03/10/2019,3325915,810.64,0.00,N/A,N/A
Mental Health Support,Mental Health - Mental Health Support,Mental Health,REDACTED - PERSONAL DATA,773458,03/10/2019,3325918,810.64,0.00,N/A,N/A
Mental Health Support,Mental Health - Mental Health Support,Mental Health,REDACTED - PERSONAL DATA,773458,03/10/2019,3325919,961.40,0.00,N/A,N/A
Mental Health Support,Mental Health - Mental Health Support,Mental Health,REDACTED - PERSONAL DATA,773458,03/10/2019,3325940,810.64,0.00,N/A,N/A
Mental Health Support,Mental Health - Mental Health Support,Mental Health,REDACTED - PERSONAL DATA,773458,03/10/2019,3325941,810.64,0.00,N/A,N/A
Mental Health Support,Mental Health - Mental Health Support,Mental Health,REDACTED - PERSONAL DATA,773458,03/10/2019,3325942,810.64,0.00,N/A,N/A
Mental Health Support,Mental Health - Mental Health Support,Mental Health,REDACTED - PERSONAL DATA,773458,03/10/2019,3325943,810.64,0.00,N/A,N/A
Mental Health Support,Mental Health - Mental Health Support,Mental Health,REDACTED - PERSONAL DATA,773458,03/10/2019,3325944,810.64,0.00,N/A,N/A
Mental Health Support,Mental Health - Mental Health Support,Mental Health,REDACTED - PERSONAL DATA,773458,03/10/2019,3325945,810.64,0.00,N/A,N/A
Mental Health Support,Mental Health - Mental Health Support,Mental Health,REDACTED - PERSONAL DATA,773458,03/10/2019,3325948,607.98,0.00,N/A,N/A
Mental Health Support,Mental Health - Mental Health Support,Mental Health,REDACTED - PERSONAL DATA,773458,03/10/2019,3325951,810.64,0.00,N/A,N/A
Mental Health Support,Mental Health - Mental Health Support,Mental Health,REDACTED - PERSONAL DATA,773458,03/10/2019,3325952,961.40,0.00,N/A,N/A
Learning Disability Support,Transitions and Ordinary Lives - Learning Disability Support,Transitions and Ordinary Lives,REDACTED - PERSONAL DATA,474026,03/10/2019,3325748,"2,043.57",0.00,N/A,N/A
Learning Disability Support,Transitions and Ordinary Lives - Learning Disability Support,Transitions and Ordinary Lives,REDACTED - PERSONAL DATA,474026,03/10/2019,3325749,"3,178.88",0.00,N/A,N/A
Learning Disability Support,Transitions and Ordinary Lives - Learning Disability Support,Transitions and Ordinary Lives,REDACTED - PERSONAL DATA,474026,03/10/2019,3325803,"3,178.88",0.00,N/A,N/A
Learning Disability Support,Transitions and Ordinary Lives - Learning Disability Support,Transitions and Ordinary Lives,REDACTED - PERSONAL DATA,474026,03/10/2019,3325829,"3,178.88",0.00,N/A,N/A
Learning Disability Support,Transitions and Ordinary Lives - Learning Disability Support,Transitions and Ordinary Lives,REDACTED - PERSONAL DATA,383406,03/10/2019,3325741,"4,986.58",0.00,N/A,N/A
Learning Disability Support,Transitions and Ordinary Lives - Learning Disability Support,Transitions and Ordinary Lives,REDACTED - PERSONAL DATA,383406,03/10/2019,3325763,"12,651.71",0.00,N/A,N/A
Learning Disability Support,Transitions and Ordinary Lives - Learning Disability Support,Transitions and Ordinary Lives,REDACTED - PERSONAL DATA,267402,03/10/2019,3325772,772.20,0.00,N/A,N/A
Learning Disability Support,Transitions and Ordinary Lives - Learning Disability Support,Transitions and Ordinary Lives,REDACTED - PERSONAL DATA,267402,03/10/2019,3325746,772.20,0.00,N/A,N/A
Learning Disability Support,Transitions and Ordinary Lives - Learning Disability Support,Transitions and Ordinary Lives,REDACTED - PERSONAL DATA,267402,03/10/2019,3325855,772.20,0.00,N/A,N/A
Learning Disability Support,Transitions and Ordinary Lives - Learning Disability Support,Transitions and Ordinary Lives,REDACTED - PERSONAL DATA,267402,03/10/2019,3325906,772.20,0.00,N/A,N/A
Learning Disability Support,Transitions and Ordinary Lives - Learning Disability Support,Transitions and Ordinary Lives,REDACTED - PERSONAL DATA,643446,03/10/2019,3325796,"1,433.85",0.00,N/A,N/A
Learning Disability Support,Transitions and Ordinary Lives - Learning Disability Support,Transitions and Ordinary Lives,REDACTED - PERSONAL DATA,643446,03/10/2019,3325875,"2,113.04",0.00,N/A,N/A
Learning Disability Support,Transitions and Ordinary Lives - Learning Disability Support,Transitions and Ordinary Lives,REDACTED - PERSONAL DATA,643446,03/10/2019,3325901,"2,113.04",0.00,N/A,N/A
Learning Disability Support,Transitions and Ordinary Lives - Learning Disability Support,Transitions and Ordinary Lives,REDACTED - PERSONAL DATA,643446,03/10/2019,3325953,"2,113.04",0.00,N/A,N/A
Learning Disability Support,Transitions and Ordinary Lives - Learning Disability Support,Transitions and Ordinary Lives,REDACTED - PERSONAL DATA,897501,03/10/2019,3325793,690.48,0.00,N/A,N/A
Learning Disability Support,Transitions and Ordinary Lives - Learning Disability Support,Transitions and Ordinary Lives,REDACTED - PERSONAL DATA,897501,03/10/2019,3325845,690.48,0.00,N/A,N/A
Learning Disability Support,Transitions and Ordinary Lives - Learning Disability Support,Transitions and Ordinary Lives,REDACTED - PERSONAL DATA,897501,03/10/2019,3325900,690.48,0.00,N/A,N/A
Adults Health and Housing,Capital,Capital,REDACTED - PERSONAL DATA,62669,03/10/2019,3325180,"4,000.00",0.00,N/A,N/A
Adults Health and Housing,Capital,Capital,REDACTED - PERSONAL DATA,1041469,03/10/2019,3325189,"2,500.00",0.00,N/A,N/A
Learning Disability Support,Transitions and Ordinary Lives - Learning Disability Support,Transitions and Ordinary Lives,REDACTED - PERSONAL DATA,897501,03/10/2019,3325816,696.56,0.00,N/A,N/A
Learning Disability Support,Transitions and Ordinary Lives - Learning Disability Support,Transitions and Ordinary Lives,REDACTED - PERSONAL DATA,897501,03/10/2019,3325873,696.56,0.00,N/A,N/A
Learning Disability Support,Transitions and Ordinary Lives - Learning Disability Support,Transitions and Ordinary Lives,REDACTED - PERSONAL DATA,275425,03/10/2019,3325827,"1,747.24",0.00,N/A,N/A
Learning Disability Support,Transitions and Ordinary Lives - Learning Disability Support,Transitions and Ordinary Lives,REDACTED - PERSONAL DATA,275425,03/10/2019,3325856,"1,560.04",0.00,N/A,N/A
Learning Disability Support,Transitions and Ordinary Lives - Learning Disability Support,Transitions and Ordinary Lives,REDACTED - PERSONAL DATA,275425,03/10/2019,3325908,"1,747.24",0.00,N/A,N/A
Learning Disability Support,Transitions and Ordinary Lives - Learning Disability Support,Transitions and Ordinary Lives,REDACTED - PERSONAL DATA,275425,03/10/2019,3325931,"1,747.24",0.00,N/A,N/A
Adults Health and Housing,Capital,Capital,REDACTED - PERSONAL DATA,869462,03/10/2019,3325192,600.00,0.00,N/A,N/A
Adults Health and Housing,Capital,Capital,REDACTED - PERSONAL DATA,869462,03/10/2019,3325193,"1,250.00",0.00,N/A,N/A
Adults Health and Housing,Capital,Capital,REDACTED - PERSONAL DATA,869462,03/10/2019,3325198,600.00,0.00,N/A,N/A
General,Stores Road Depot & Fleet Management,"Strategic Partnerships, Planning & Streetpride",S G TRANSPORT TRAINING AND LOGISTICS LTD,872459,03/10/2019,3323390,"3,213.34",0.00,N/A,N/A
General,Stores Road Depot & Fleet Management,"Strategic Partnerships, Planning & Streetpride",S G TRANSPORT TRAINING AND LOGISTICS LTD,872459,03/10/2019,3323390,"2,433.34",0.00,N/A,N/A
General,Stores Road Depot & Fleet Management,"Strategic Partnerships, Planning & Streetpride",S G TRANSPORT TRAINING AND LOGISTICS LTD,872459,03/10/2019,3323390,780.00,0.00,N/A,N/A
Property Design & Maintenance,Building - Repairs & Maintenance,"Regeneration, Property & Housing",S S SYSTEMS LTD,188339,03/10/2019,3326038,"1,336.00",0.00,N/A,N/A
Commissioning,Commissioned Providers,Non-Schools,SAFE FAMILIES FOR CHILDREN,447411,03/10/2019,3325106,"18,750.00",0.00,People Services - Children & Young People,Healthcare Services
Integrated Services,Youth Offending Service,Non-Schools,SHARED SERVICES CONNECTED LTD,769444,03/10/2019,3325114,"18,972.00",0.00,N/A,N/A
Integrated Services,Youth Offending Service,Non-Schools,SHARED SERVICES CONNECTED LTD,769444,03/10/2019,3325116,"7,440.00",0.00,N/A,N/A
Integrated Services,Youth Offending Service,Non-Schools,SHARED SERVICES CONNECTED LTD,769444,03/10/2019,3325117,"7,440.00",0.00,N/A,N/A
Learning & Inclusion,Inclusion & Intervention,Non-Schools,THE UNIVERSITY OF BIRMINGHAM,4876,03/10/2019,3321641,"15,950.00",0.00,People Services - Children & Young People,Education and Training Services
Learning & Inclusion,Inclusion & Intervention,Non-Schools,THE UNIVERSITY OF BIRMINGHAM,4876,03/10/2019,3321641,"1,000.00",0.00,People Services - Children & Young People,Education and Training Services
"Occupational Health, Safety, Markets & Bereavement Services",Bereavement Services,"Communities, Environment & Regulatory Services",THE YABOO CO LTD,4884,03/10/2019,3325429,847.74,0.00,Communities & Place,Musical Instruments and Games and Toys a
Traffic & Transportation,Transport Planning,"Strategic Partnerships, Planning & Streetpride",TMP WORLDWIDE,4919,03/10/2019,3310487,930.00,0.00,Communities & Place,Management and Business Professionals an
Early Help & Children�s Safeguarding,Children Centres Locality 3/4 Integrated Services,Non-Schools,WATER PLUS LIMITED,1034471,03/10/2019,3325118,715.00,0.00,N/A,N/A
"Occupational Health, Safety, Markets & Bereavement Services",Markets,"Communities, Environment & Regulatory Services",A R TENNANT LTD,905493,08/10/2019,3327153,700.00,0.00,N/A,N/A
Traffic & Transportation,Traffic & Transportation (inc Integrated Pass Transport),"Strategic Partnerships, Planning & Streetpride",A2B CARS,218432,08/10/2019,3328862,"1,482.00",0.00,N/A,N/A
Traffic & Transportation,Traffic & Transportation (inc Integrated Pass Transport),"Strategic Partnerships, Planning & Streetpride",A2B CARS,218432,08/10/2019,3328875,960.00,0.00,N/A,N/A
Traffic & Transportation,Traffic & Transportation (inc Integrated Pass Transport),"Strategic Partnerships, Planning & Streetpride",A2B CARS,218432,08/10/2019,3328838,"1,228.00",0.00,N/A,N/A
Traffic & Transportation,Traffic & Transportation (inc Integrated Pass Transport),"Strategic Partnerships, Planning & Streetpride",A2B CARS,218432,08/10/2019,3328843,"1,404.00",0.00,N/A,N/A
Traffic & Transportation,Traffic & Transportation (inc Integrated Pass Transport),"Strategic Partnerships, Planning & Streetpride",A2B CARS,218432,08/10/2019,3328846,720.00,0.00,N/A,N/A
Traffic & Transportation,Traffic & Transportation (inc Integrated Pass Transport),"Strategic Partnerships, Planning & Streetpride",A2B CARS,218432,08/10/2019,3328847,"1,368.00",0.00,N/A,N/A
Social Care Activities,Direct Services - Social Care Activities,Direct Services,ACE CARS,122067,08/10/2019,3329189,"4,000.00",0.00,N/A,N/A
Social Care Activities,Direct Services - Social Care Activities,Direct Services,ACE CARS,122067,08/10/2019,3329189,"4,000.00",0.00,N/A,N/A
Social Care Activities,Direct Services - Social Care Activities,Direct Services,ACE CARS,122067,08/10/2019,3329195,"4,200.00",0.00,N/A,N/A
Social Care Activities,Direct Services - Social Care Activities,Direct Services,ACE CARS,122067,08/10/2019,3329195,"4,200.00",0.00,N/A,N/A
Social Care Activities,Direct Services - Social Care Activities,Direct Services,ACE CARS,122067,08/10/2019,3329199,"4,400.00",0.00,N/A,N/A
Social Care Activities,Direct Services - Social Care Activities,Direct Services,ACE CARS,122067,08/10/2019,3329199,"4,400.00",0.00,N/A,N/A
Social Care Activities,Direct Services - Social Care Activities,Direct Services,ACE CARS,122067,08/10/2019,3329200,"4,000.00",0.00,N/A,N/A
Social Care Activities,Direct Services - Social Care Activities,Direct Services,ACE CARS,122067,08/10/2019,3329200,"2,600.00",0.00,N/A,N/A
Social Care Activities,Direct Services - Social Care Activities,Direct Services,ACE CARS,122067,08/10/2019,3329200,"1,400.00",0.00,N/A,N/A
Social Care Activities,Direct Services - Social Care Activities,Direct Services,ACE CARS,122067,08/10/2019,3329202,"4,000.00",0.00,N/A,N/A
Traffic & Transportation,Traffic & Transportation (inc Integrated Pass Transport),"Strategic Partnerships, Planning & Streetpride",ACE CARS,125638,08/10/2019,3328860,"3,637.50",0.00,N/A,N/A
Highways & Engineering,Highways Maintenance & Street Lighting,"Strategic Partnerships, Planning & Streetpride",AGGREGATE INDUSTRIES UK LTD,117850,08/10/2019,3328970,"1,278.33",0.00,Communities & Place,Building and Construction Machinery and
Highways & Engineering,Highways Maintenance & Street Lighting,"Strategic Partnerships, Planning & Streetpride",AGGREGATE INDUSTRIES UK LTD,117850,08/10/2019,3328972,803.12,0.00,Communities & Place,Building and Construction Machinery and
Highways & Engineering,Highways Maintenance & Street Lighting,"Strategic Partnerships, Planning & Streetpride",AGGREGATE INDUSTRIES UK LTD,117850,08/10/2019,3328973,"1,164.97",0.00,Communities & Place,Building and Construction Machinery and
Highways & Engineering,Highways Maintenance & Street Lighting,"Strategic Partnerships, Planning & Streetpride",AGGREGATE INDUSTRIES UK LTD,117850,08/10/2019,3328987,"1,584.03",0.00,Communities & Place,Building and Construction Machinery and
"Occupational Health, Safety, Markets & Bereavement Services",Bereavement Services,"Communities, Environment & Regulatory Services",ALLSIGNS,11671,08/10/2019,3321769,"4,131.86",0.00,Communities & Place,Structures and Building and Construction
"Occupational Health, Safety, Markets & Bereavement Services",Bereavement Services,"Communities, Environment & Regulatory Services",ALLSIGNS,11671,08/10/2019,3321769,"4,131.86",0.00,Communities & Place,Structures and Building and Construction
"Occupational Health, Safety, Markets & Bereavement Services",Bereavement Services,"Communities, Environment & Regulatory Services",ALLSIGNS,11671,08/10/2019,3321769,877.31,0.00,Communities & Place,Structures and Building and Construction
"Occupational Health, Safety, Markets & Bereavement Services",Bereavement Services,"Communities, Environment & Regulatory Services",ALLSIGNS,11671,08/10/2019,3321769,877.31,0.00,Communities & Place,Structures and Building and Construction
General,Stores Road Depot & Fleet Management,"Strategic Partnerships, Planning & Streetpride",ALLSTAR BUSINESS SOLUTIONS LTD,135370,08/10/2019,3328433,"12,835.04",0.00,Communities & Place,Fuels and Fuel Additives and Lubricants
Leisure,Leisure,"Leisure, Culture and Tourism",AMA SUPPLIES LTD,285,08/10/2019,3292518,513.80,0.00,Communities & Place,Apparel and Luggage and Personal Care Pr
"Environmental Protection, Housing Standards, Licensing, Emergency Planning",Environmental Protection,Public Protection and Streetride,ANGLO AMERICAN FILMING VEHICLES LIMITED,1139471,08/10/2019,3325546,750.00,0.00,N/A,N/A
Social Care Activities,Home First - Social Care Activities,Home First,APS GROUP,1006473,08/10/2019,3329067,"2,555.06",0.00,N/A,N/A
Social Care Activities,Home First - Social Care Activities,Home First,APS GROUP,1006473,08/10/2019,3329067,946.32,0.00,N/A,N/A
Neighbourhoods,Capital,Capital,ARCADIS UK LTD,1063470,08/10/2019,3324342,"29,470.35",0.00,N/A,N/A
Obsolete Codes,Capital,Capital,ARCADIS UK LTD,1063470,08/10/2019,3324345,"8,156.25",0.00,N/A,N/A
Traffic & Transportation,Traffic & Transportation (inc Integrated Pass Transport),"Strategic Partnerships, Planning & Streetpride",ARRIVA MIDLANDS LTD,864451,08/10/2019,3328540,"1,653.54",0.00,N/A,N/A
Libraries,Libraries,"Leisure, Culture and Tourism",ARROW SPECIALISED TRANSPORT LIMITED,1141493,08/10/2019,3328940,"3,133.20",0.00,N/A,N/A
Community Safety,Partnerships,Public Protection and Streetride,ARTCORE,81349,08/10/2019,3327418,"2,466.90",0.00,N/A,N/A
Public Health,Drugs and Alcohol,Public Health,ASDA STORES LTD,187667,08/10/2019,3326366,"1,038.00",0.00,N/A,N/A
Public Health,Drugs and Alcohol,Public Health,ASDA STORES LTD,187667,08/10/2019,3326366,578.00,0.00,N/A,N/A
Culture & Business Development,Culture & Business Development,"Leisure, Culture and Tourism",ASHTEAD PLANT HIRE CO LTD,856447,08/10/2019,3325558,571.00,0.00,N/A,N/A
Libraries,Libraries,"Leisure, Culture and Tourism",ASKEWS AND HOLTS LIBRARY SERVICES LTD,876447,08/10/2019,3325571,"2,879.98",0.00,N/A,N/A
Libraries,Libraries,"Leisure, Culture and Tourism",ASKEWS AND HOLTS LIBRARY SERVICES LTD,876447,08/10/2019,3326142,"1,432.98",0.00,N/A,N/A
Learning & Inclusion,Adult Learning - SFA,Non-Schools,ASSOCIATION OF ACCOUNTING TECHNICIANS,1130471,08/10/2019,3329091,680.00,0.00,N/A,N/A
Integrated Services,Agency Placements,Non-Schools,BARNARDOS,941506,08/10/2019,3272180,"3,001.55",0.00,N/A,N/A
Traffic & Transportation,Network Mgmnt & Highway Dev Control,"Strategic Partnerships, Planning & Streetpride",BT PLC,1025473,08/10/2019,3326223,"3,145.75",0.00,N/A,N/A
Information Systems Support,Information Systems Support,Digital Services,BYTES SOFTWARE SERVICES LTD,144360,08/10/2019,3327137,856.80,0.00,Organisation & Governance,Information Technology Broadcasting and
Information Systems Support,Information Systems Support,Digital Services,BYTES SOFTWARE SERVICES LTD,144360,08/10/2019,3327139,"2,848.56",0.00,Organisation & Governance,Information Technology Broadcasting and
"Information, Computing & Technology","Information, Computing & Technology",Digital Services,BYTES SOFTWARE SERVICES LTD,144360,08/10/2019,3328901,"10,000.00",0.00,Organisation & Governance,Information Technology Broadcasting and
Adults Health and Housing,Capital,Capital,CADENT GAS LIMITED,485397,08/10/2019,3327420,619.40,0.00,N/A,N/A
"Information, Computing & Technology","Information, Computing & Technology",Digital Services,CDW LTD,465403,08/10/2019,3327280,656.10,0.00,Organisation & Governance,Information Technology Broadcasting and
Chief Executives,Capital,Capital,CDW LTD,465403,08/10/2019,3326228,"9,900.00",0.00,ICT Stabilisation - Hardware Renewal,Information Technology Broadcasting and
Chief Executives,Capital,Capital,CDW LTD,465403,08/10/2019,3326228,"9,450.00",0.00,ICT Stabilisation - Hardware Renewal,Information Technology Broadcasting and
Chief Executives,Capital,Capital,CDW LTD,465403,08/10/2019,3327281,"4,830.00",0.00,ICT Stabilisation - Hardware Renewal,Information Technology Broadcasting and
Chief Executives,Capital,Capital,CDW LTD,465403,08/10/2019,3327285,543.80,0.00,ICT Stabilisation - Hardware Renewal,Information Technology Broadcasting and
Traffic & Transportation,Traffic & Transportation (inc Integrated Pass Transport),"Strategic Partnerships, Planning & Streetpride",CHELLASTON CARS UK LTD,1007486,08/10/2019,3328861,"2,109.00",0.00,N/A,N/A
Traffic & Transportation,Traffic & Transportation (inc Integrated Pass Transport),"Strategic Partnerships, Planning & Streetpride",CHELLASTON CARS UK LTD,1007486,08/10/2019,3328870,560.00,0.00,N/A,N/A
Traffic & Transportation,Traffic & Transportation (inc Integrated Pass Transport),"Strategic Partnerships, Planning & Streetpride",CHELLASTON CARS UK LTD,1007486,08/10/2019,3328870,560.00,0.00,N/A,N/A
Communication and Consultation,Communication,Strategic Services and Organisational Development,CITY SIGNS,828,08/10/2019,3327189,522.78,0.00,Organisation & Governance,Printing and Photographic and Audio and
Communication and Consultation,Communication,Strategic Services and Organisational Development,CITY SIGNS,828,08/10/2019,3327203,600.00,0.00,Organisation & Governance,Printing and Photographic and Audio and
Traffic & Transportation,Traffic & Transportation (inc Integrated Pass Transport),"Strategic Partnerships, Planning & Streetpride",CROWN CARS Derby LTD,112999,08/10/2019,3328863,"2,916.00",0.00,N/A,N/A
Traffic & Transportation,Traffic & Transportation (inc Integrated Pass Transport),"Strategic Partnerships, Planning & Streetpride",CROWN CARS Derby LTD,112999,08/10/2019,3328871,"2,610.00",0.00,N/A,N/A
Traffic & Transportation,Traffic & Transportation (inc Integrated Pass Transport),"Strategic Partnerships, Planning & Streetpride",CROWN CARS Derby LTD,112999,08/10/2019,3328872,"2,175.00",0.00,N/A,N/A
Traffic & Transportation,Traffic & Transportation (inc Integrated Pass Transport),"Strategic Partnerships, Planning & Streetpride",CROWN CARS Derby LTD,112999,08/10/2019,3328834,"1,763.20",0.00,N/A,N/A
Traffic & Transportation,Traffic & Transportation (inc Integrated Pass Transport),"Strategic Partnerships, Planning & Streetpride",CROWN CARS Derby LTD,112999,08/10/2019,3328839,"1,458.00",0.00,N/A,N/A
Traffic & Transportation,Traffic & Transportation (inc Integrated Pass Transport),"Strategic Partnerships, Planning & Streetpride",CROWN CARS Derby LTD,112999,08/10/2019,3328842,"1,299.20",0.00,N/A,N/A
"Information, Computing & Technology","Information, Computing & Technology",Digital Services,CROWN HOSTING DATA CENTRES LTD,470548,08/10/2019,3325553,"2,211.48",0.00,Organisation & Governance,Information Technology Broadcasting and
Public Health,Drugs and Alcohol,Public Health,DAY NIGHT LTD,187651,08/10/2019,3326368,874.00,0.00,N/A,N/A
Public Health,Drugs and Alcohol,Public Health,DAY NIGHT LTD,187651,08/10/2019,3326368,"1,332.00",0.00,N/A,N/A
Public Health,Drugs and Alcohol,Public Health,DAY NIGHT LTD,187651,08/10/2019,3326369,"1,144.00",0.00,N/A,N/A
Public Health,Drugs and Alcohol,Public Health,DAY NIGHT LTD,187651,08/10/2019,3326369,"1,634.00",0.00,N/A,N/A
Public Health,Drugs and Alcohol,Public Health,DAY NIGHT LTD,187651,08/10/2019,3326380,948.00,0.00,N/A,N/A
Public Health,Drugs and Alcohol,Public Health,DAY NIGHT LTD,187651,08/10/2019,3326380,"1,882.00",0.00,N/A,N/A
Learning & Inclusion,Inclusion & Intervention,Non-Schools,DEDA LTD,155430,08/10/2019,3327415,976.50,0.00,N/A,N/A
Commissioning,School Organisation & Provision,Non-Schools,DERBY CITY BSF LIMITED,127009,08/10/2019,3329110,"8,473.75",0.00,N/A,N/A
Commissioning,School Organisation & Provision,Non-Schools,DERBY CITY BSF LIMITED,127009,08/10/2019,3329110,919.58,0.00,N/A,N/A
Commissioning,School Organisation & Provision,Non-Schools,DERBY CITY BSF LIMITED,127009,08/10/2019,3329110,"7,367.33",0.00,N/A,N/A
Commissioning,School Organisation & Provision,Non-Schools,DERBY CITY BSF LIMITED,127009,08/10/2019,3329110,"1,655.00",0.00,N/A,N/A
Commissioning,School Organisation & Provision,Non-Schools,DERBY CITY BSF LIMITED,127009,08/10/2019,3329110,"444,200.02",0.00,N/A,N/A
Commissioning,School Organisation & Provision,Non-Schools,DERBY CITY BSF LIMITED,127009,08/10/2019,3329110,"4,919.39",0.00,N/A,N/A
Commissioning,School Organisation & Provision,Non-Schools,DERBY CITY BSF LIMITED,127009,08/10/2019,3329110,"3,977.10",0.00,N/A,N/A
Traffic & Transportation,Traffic & Transportation (inc Integrated Pass Transport),"Strategic Partnerships, Planning & Streetpride",DERBY COMMUNITY TRANSPORT,113043,08/10/2019,3328855,"2,209.66",0.00,N/A,N/A
Traffic & Transportation,Traffic & Transportation (inc Integrated Pass Transport),"Strategic Partnerships, Planning & Streetpride",DERBY COMMUNITY TRANSPORT,113043,08/10/2019,3328856,"2,469.62",0.00,N/A,N/A
Housing Revenue Account,Housing Revenue Account,"Regeneration, Property & Housing",DERBY HOMES LTD,1175,08/10/2019,3249562,"16,710,000.00",0.00,Communities & Place,Travel and Food and Lodging and Entertai
Housing Revenue Account,Housing Revenue Account,"Regeneration, Property & Housing",DERBY HOMES LTD,1175,08/10/2019,3249562,"10,312,000.00",0.00,Communities & Place,Travel and Food and Lodging and Entertai
Retained Housing Revenue Account,Retained Housing Revenue Account,"Regeneration, Property & Housing",DERBY HOMES LTD,1175,08/10/2019,3249562,"29,976.00",0.00,Communities & Place,Travel and Food and Lodging and Entertai
Retained Housing Revenue Account,Retained Housing Revenue Account,"Regeneration, Property & Housing",DERBY HOMES LTD,1175,08/10/2019,3249562,"52,885.00",0.00,Communities & Place,Travel and Food and Lodging and Entertai
Retained Housing Revenue Account,Retained Housing Revenue Account,"Regeneration, Property & Housing",DERBY HOMES LTD,1175,08/10/2019,3249562,"22,986.00",0.00,Communities & Place,Travel and Food and Lodging and Entertai
Retained Housing Revenue Account,Retained Housing Revenue Account,"Regeneration, Property & Housing",DERBY HOMES LTD,1175,08/10/2019,3249562,"190,153.00",0.00,Communities & Place,Travel and Food and Lodging and Entertai
Retained Housing Revenue Account,Retained Housing Revenue Account,"Regeneration, Property & Housing",DERBY HOMES LTD,1175,08/10/2019,3249562,"965,399.00",0.00,Communities & Place,Travel and Food and Lodging and Entertai
Retained Housing Revenue Account,Retained Housing Revenue Account,"Regeneration, Property & Housing",DERBY HOMES LTD,1175,08/10/2019,3249562,"309,601.00",0.00,Communities & Place,Travel and Food and Lodging and Entertai
Culture & Business Development,Culture & Business Development,"Leisure, Culture and Tourism",DERBY WEST INDIAN COMMUNITY ASSOCIATION,1197,08/10/2019,3326296,900.00,0.00,Communities & Place,Politics and Civic Affairs Services
Culture & Business Development,Culture & Business Development,"Leisure, Culture and Tourism",DERBY WEST INDIAN COMMUNITY ASSOCIATION,1197,08/10/2019,3326296,"1,000.00",0.00,Communities & Place,Politics and Civic Affairs Services
Physical Support,Community Support - Physical Support,Community Support,DERBYSHIRE CARE SERVICES,388459,08/10/2019,3326518,806.48,0.00,N/A,N/A
Physical Support,Community Support - Physical Support,Community Support,DERBYSHIRE CARE SERVICES,388459,08/10/2019,3326416,806.48,0.00,N/A,N/A
Physical Support,Community Support - Physical Support,Community Support,DERBYSHIRE CARE SERVICES,388459,08/10/2019,3326689,512.66,0.00,N/A,N/A
Support with Memory and Cognition,Community Support - Support with Memory and Cognition,Community Support,DERBYSHIRE CARE SERVICES,388459,08/10/2019,3326516,903.73,0.00,N/A,N/A
Support with Memory and Cognition,Community Support - Support with Memory and Cognition,Community Support,DERBYSHIRE CARE SERVICES,388459,08/10/2019,3326519,"1,008.92",0.00,N/A,N/A
Support with Memory and Cognition,Community Support - Support with Memory and Cognition,Community Support,DERBYSHIRE CARE SERVICES,388459,08/10/2019,3326942,"1,008.92",0.00,N/A,N/A
Integrated Commissioning,Integrated Commissioning,Commissioning,DERBYSHIRE CARE SERVICES,1207,08/10/2019,3327324,"3,025.60",0.00,N/A,N/A
Integrated Commissioning,Integrated Commissioning,Commissioning,DERBYSHIRE CARE SERVICES,1207,08/10/2019,3327325,"2,099.12",0.00,N/A,N/A
Integrated Commissioning,Integrated Commissioning,Commissioning,DERBYSHIRE CARE SERVICES,1207,08/10/2019,3327325,"2,099.12",0.00,N/A,N/A
Integrated Commissioning,Integrated Commissioning,Commissioning,DERBYSHIRE CARE SERVICES,1207,08/10/2019,3327327,"3,025.60",0.00,N/A,N/A
Integrated Commissioning,Integrated Commissioning,Commissioning,DERBYSHIRE CARE SERVICES,1207,08/10/2019,3327330,"4,308.72",0.00,N/A,N/A
Mental Health Support,Mental Health - Mental Health Support,Mental Health,DERBYSHIRE CARE SERVICES,388459,08/10/2019,3326687,956.78,0.00,N/A,N/A
Public Health,Sexual Health,Public Health,DERBYSHIRE COMMUNITY HEALTH SERVICE NHS TRUST,109973,08/10/2019,3325552,"6,513.58",0.00,People Services - Adults and Health,Education and Training Services
Learning & Inclusion,Quality Standards and Performance,Non-Schools,DERBYSHIRE COUNTY COUNCIL,1042479,08/10/2019,3317465,795.72,0.00,N/A,N/A
Commissioning - Schools Block,Recoupment - Independent Special School Fees,Schools Block,DERBYSHIRE COUNTY COUNCIL,1042479,08/10/2019,3320382,"2,046.00",0.00,N/A,N/A
Commissioning - Schools Block,Recoupment - Independent Special School Fees,Schools Block,DERBYSHIRE COUNTY COUNCIL,9786,08/10/2019,3320393,"4,464.00",0.00,People Services - Children & Young People,Politics and Civic Affairs Services
Senior Management,Senior Management,Senior Management,DERBYSHIRE COUNTY COUNCIL,9786,08/10/2019,3329134,"1,000.00",0.00,People Services - Adults and Health,Politics and Civic Affairs Services
Refuse & Waste Management,Waste Disposal,"Strategic Partnerships, Planning & Streetpride",DERBYSHIRE COUNTY COUNCIL,9786,08/10/2019,3328959,"3,031.41",0.00,Communities & Place,Politics and Civic Affairs Services
Refuse & Waste Management,Waste Disposal,"Strategic Partnerships, Planning & Streetpride",DERBYSHIRE COUNTY COUNCIL,9786,08/10/2019,3328966,850.61,0.00,Communities & Place,Politics and Civic Affairs Services
Refuse & Waste Management,Waste Disposal,"Strategic Partnerships, Planning & Streetpride",DERBYSHIRE COUNTY COUNCIL,9786,08/10/2019,3328968,"2,307.11",0.00,Communities & Place,Politics and Civic Affairs Services
Learning & Inclusion,Inclusion & Intervention,Non-Schools,DERBYSHIRE COUNTY COUNCIL,9786,08/10/2019,3329135,"41,250.00",0.00,N/A,N/A
Public Health,Drugs and Alcohol,Public Health,DERBYSHIRE HEALTHCARE NHS FOUNDATION TRUST,107468,08/10/2019,3325415,"218,250.39",0.00,People Services - Adults and Health,Healthcare Services
Learning Disability Support,Community Support - Learning Disability Support,Community Support,DIMENSIONS UK LTD,388489,08/10/2019,3326585,"1,972.54",0.00,N/A,N/A
Public Health,Adults,Public Health,DR MOSS & PARTNERS,407399,08/10/2019,3328609,"1,400.00",0.00,N/A,N/A
Public Health,Adults,Public Health,DR MOSS & PARTNERS,407399,08/10/2019,3328623,840.00,0.00,N/A,N/A
Commissioning - Schools Block,Recoupment - Independent Special School Fees,Schools Block,EASTWOOD GRANGE PRIORY,194474,08/10/2019,3328960,"20,968.42",0.00,N/A,N/A
Commissioning - Schools Block,Recoupment - Independent Special School Fees,Schools Block,EASTWOOD GRANGE PRIORY,194474,08/10/2019,3328969,"22,424.56",0.00,N/A,N/A
Facilities Management,Accommodation Buildings,Strategic Services and Organisational Development,ELIOR UK PLC,153344,08/10/2019,3328550,"1,729.54",0.00,Organisation & Governance,Travel and Food and Lodging and Entertai
Facilities Management,Accommodation Buildings,Strategic Services and Organisational Development,EMS SECURITY SERVICES LTD,471442,08/10/2019,3327315,668.00,0.00,Organisation & Governance,Defense and Law Enforcement and Security
Facilities Management,Accommodation Buildings,Strategic Services and Organisational Development,EMS SECURITY SERVICES LTD,471442,08/10/2019,3327316,"1,098.38",0.00,Organisation & Governance,Defense and Law Enforcement and Security
Facilities Management,Accommodation Buildings,Strategic Services and Organisational Development,EMS SECURITY SERVICES LTD,471442,08/10/2019,3327318,"14,371.81",0.00,Organisation & Governance,Defense and Law Enforcement and Security
Facilities Management,Accommodation Buildings,Strategic Services and Organisational Development,EMS SECURITY SERVICES LTD,471442,08/10/2019,3327319,"5,461.50",0.00,Organisation & Governance,Defense and Law Enforcement and Security
Facilities Management,Accommodation Buildings,Strategic Services and Organisational Development,EMS SECURITY SERVICES LTD,471442,08/10/2019,3327321,"2,094.82",0.00,Organisation & Governance,Defense and Law Enforcement and Security
"Occupational Health, Safety, Markets & Bereavement Services",Bereavement Services,"Communities, Environment & Regulatory Services",EMS SECURITY SERVICES LTD,471442,08/10/2019,3326162,718.32,0.00,Communities & Place,Defense and Law Enforcement and Security
Facilities Management,Cleaning & Caretaking,Strategic Services and Organisational Development,EMS SECURITY SERVICES LTD,471442,08/10/2019,3327343,623.96,0.00,Organisation & Governance,Defense and Law Enforcement and Security
Highways & Engineering,Engineering,"Strategic Partnerships, Planning & Streetpride",EMS SECURITY SERVICES LTD,471442,08/10/2019,3326192,621.52,0.00,Communities & Place,Defense and Law Enforcement and Security
Leisure,Leisure,"Leisure, Culture and Tourism",EMS SECURITY SERVICES LTD,471442,08/10/2019,3326183,"2,081.10",0.00,Communities & Place,Defense and Law Enforcement and Security
Leisure,Leisure,"Leisure, Culture and Tourism",EMS SECURITY SERVICES LTD,471442,08/10/2019,3326184,865.20,0.00,Communities & Place,Defense and Law Enforcement and Security
Leisure,Leisure,"Leisure, Culture and Tourism",EMS SECURITY SERVICES LTD,471442,08/10/2019,3326185,865.20,0.00,Communities & Place,Defense and Law Enforcement and Security
Retained Housing Revenue Account,Retained Housing Revenue Account,"Regeneration, Property & Housing",EMS SECURITY SERVICES LTD,471442,08/10/2019,3326182,"9,606.20",0.00,Communities & Place,Defense and Law Enforcement and Security
General,Stores Road Depot & Fleet Management,"Strategic Partnerships, Planning & Streetpride",EMS SECURITY SERVICES LTD,471442,08/10/2019,3326252,"4,694.37",0.00,Communities & Place,Defense and Law Enforcement and Security
Strategic Asset Management and Estates,Strategic Asset Management and Estates,"Regeneration, Property & Housing",EMS SECURITY SERVICES LTD,471442,08/10/2019,3326172,520.00,0.00,Communities & Place,Defense and Law Enforcement and Security
Traffic & Transportation,Parking Services,"Strategic Partnerships, Planning & Streetpride",ESENDEX LTD,260437,08/10/2019,3328356,"5,000.00",0.00,Communities & Place,Information Technology Broadcasting and
Culture & Business Development,Culture & Business Development,"Leisure, Culture and Tourism",EXCLOOSIVE LTD,913482,08/10/2019,3326277,"1,575.00",0.00,N/A,N/A
Business Support,Business Support,Strategic Services and Organisational Development,FINANCIAL DATA MANAGEMENT LTD,1559,08/10/2019,3316381,"3,038.03",0.00,N/A,N/A
Business Support,Business Support,Strategic Services and Organisational Development,FINANCIAL DATA MANAGEMENT LTD,1559,08/10/2019,3316382,"1,349.77",0.00,N/A,N/A
Business Support,Business Support,Strategic Services and Organisational Development,FINANCIAL DATA MANAGEMENT LTD,1559,08/10/2019,3316383,"2,639.28",0.00,N/A,N/A
Business Support,Business Support,Strategic Services and Organisational Development,FINANCIAL DATA MANAGEMENT LTD,1559,08/10/2019,3316384,"1,560.79",0.00,N/A,N/A
Business Support,Business Support,Strategic Services and Organisational Development,FINANCIAL DATA MANAGEMENT LTD,1559,08/10/2019,3316400,"2,601.57",0.00,N/A,N/A
Culture & Business Development,Culture & Business Development,"Leisure, Culture and Tourism",FOLK 3D,921482,08/10/2019,3327334,"1,000.00",0.00,N/A,N/A
Integrated Services,Agency Placements,Non-Schools,FOSTERING SOLUTIONS LTD,123940,08/10/2019,3230495,"3,033.26",0.00,People Services - Children & Young People,Politics and Civic Affairs Services
Public Health,Adults,Public Health,FRIAR GATE SURGERY,408399,08/10/2019,3328621,580.00,0.00,N/A,N/A
Neighbourhoods,Capital,Capital,G T COLLETT PROPERTIES,1152490,08/10/2019,3321645,"1,255.56",0.00,N/A,N/A
Strategic Asset Management and Estates,Strategic Asset Management and Estates,"Regeneration, Property & Housing",GELDARDS LLP,905479,08/10/2019,3329029,"10,950.00",0.00,N/A,N/A
Neighbourhoods,Capital,Capital,GELDARDS LLP,398399,08/10/2019,3325569,"11,262.00",0.00,Becket Well,Management and Business Professionals an
General,Stores Road Depot & Fleet Management,"Strategic Partnerships, Planning & Streetpride",GILGEN DOOR SYSTEMS,1155475,08/10/2019,3321393,606.00,0.00,N/A,N/A
Culture & Business Development,Culture & Business Development,"Leisure, Culture and Tourism",GLOBAL RADIO SERVICES LTD,12978,08/10/2019,3328931,679.00,0.00,Communities & Place,Editorial and Design and Graphic and Fin
Public Health,Drugs and Alcohol,Public Health,HABIB AHMED TA MEDINA CHEMIST,187659,08/10/2019,3326371,592.00,0.00,N/A,N/A
Strategic Asset Management and Estates,Strategic Asset Management and Estates,"Regeneration, Property & Housing",HAYS SPECIALIST RECRUITMENT LTD,1852,08/10/2019,3329080,"5,694.04",0.00,N/A,N/A
Strategic Asset Management and Estates,Strategic Asset Management and Estates,"Regeneration, Property & Housing",HAYS SPECIALIST RECRUITMENT LTD,1852,08/10/2019,3329081,"3,988.11",0.00,N/A,N/A
Strategic Asset Management and Estates,Strategic Asset Management and Estates,"Regeneration, Property & Housing",HAYS SPECIALIST RECRUITMENT LTD,1852,08/10/2019,3329081,"3,998.11",0.00,N/A,N/A
Adults Health and Housing,Capital,Capital,HIGHFIELD JOINERY AND BUILD SERVS LTD,1895,08/10/2019,3328585,"18,896.00",0.00,Disabled Facilities Grant 96 Act,Building and Construction Machinery and
Adults Health and Housing,Capital,Capital,HIGHFIELD JOINERY AND BUILD SERVS LTD,1895,08/10/2019,3328586,"31,480.00",0.00,Disabled Facilities Grant 96 Act,Building and Construction Machinery and
Adults Health and Housing,Capital,Capital,HIGHFIELD JOINERY AND BUILD SERVS LTD,1895,08/10/2019,3328530,"14,881.10",0.00,Disabled Facilities Grant 96 Act,Building and Construction Machinery and
Physical Support,Direct Services - Physical Support,Direct Services,HOLDSWORTH FOOD SERVICE,1913,08/10/2019,3328434,523.66,0.00,People Services - Adults and Health,Food Beverage and Tobacco Products
Public Health,Adults,Public Health,HOLLYBROOK MEDICAL CENTRE,406409,08/10/2019,3328619,740.00,0.00,N/A,N/A
Physical Support,Community Support - Physical Support,Community Support,HOME SUPPORT SERVICES,1120475,08/10/2019,3326424,"2,146.16",0.00,N/A,N/A
Physical Support,Community Support - Physical Support,Community Support,HOME SUPPORT SERVICES,1120475,08/10/2019,3326608,"2,146.16",0.00,N/A,N/A
Physical Support,Community Support - Physical Support,Community Support,HOME SUPPORT SERVICES,1120475,08/10/2019,3326692,"2,146.16",0.00,N/A,N/A
Physical Support,Community Support - Physical Support,Community Support,HOME SUPPORT SERVICES,1120475,08/10/2019,3326765,"2,146.16",0.00,N/A,N/A
Physical Support,Community Support - Physical Support,Community Support,HOME SUPPORT SERVICES,1120475,08/10/2019,3326856,"1,668.72",0.00,N/A,N/A
Physical Support,Community Support - Physical Support,Community Support,HOME SUPPORT SERVICES,1120475,08/10/2019,3327039,"2,146.16",0.00,N/A,N/A
Public Health,Adults,Public Health,HORIZON HEALTHCARE,1030472,08/10/2019,3328615,760.00,0.00,N/A,N/A
Learning Disability Support,Community Support - Learning Disability Support,Community Support,HOUSING 21,1116470,08/10/2019,3326827,989.48,0.00,N/A,N/A
Learning Disability Support,Community Support - Learning Disability Support,Community Support,HOUSING 21,1116470,08/10/2019,3326908,"1,008.92",0.00,N/A,N/A
Learning Disability Support,Community Support - Learning Disability Support,Community Support,HOUSING 21,1116470,08/10/2019,3327006,"1,185.56",0.00,N/A,N/A
Physical Support,Community Support - Physical Support,Community Support,HOUSING 21,1116470,08/10/2019,3326576,683.89,0.00,N/A,N/A
Physical Support,Community Support - Physical Support,Community Support,HOUSING 21,1116470,08/10/2019,3326583,"1,022.36",0.00,N/A,N/A
Physical Support,Community Support - Physical Support,Community Support,HOUSING 21,1116470,08/10/2019,3326584,762.28,0.00,N/A,N/A
Physical Support,Community Support - Physical Support,Community Support,HOUSING 21,1116470,08/10/2019,3326652,"1,276.29",0.00,N/A,N/A
Physical Support,Community Support - Physical Support,Community Support,HOUSING 21,1116470,08/10/2019,3326653,602.68,0.00,N/A,N/A
Physical Support,Community Support - Physical Support,Community Support,HOUSING 21,1116470,08/10/2019,3326657,856.60,0.00,N/A,N/A
Physical Support,Community Support - Physical Support,Community Support,HOUSING 21,1116470,08/10/2019,3326732,687.44,0.00,N/A,N/A
Physical Support,Community Support - Physical Support,Community Support,HOUSING 21,1116470,08/10/2019,3326733,"1,232.13",0.00,N/A,N/A
Physical Support,Community Support - Physical Support,Community Support,HOUSING 21,1116470,08/10/2019,3326996,596.52,0.00,N/A,N/A
Physical Support,Community Support - Physical Support,Community Support,HOUSING 21,1116470,08/10/2019,3326997,856.60,0.00,N/A,N/A
Physical Support,Community Support - Physical Support,Community Support,HOUSING 21,1116470,08/10/2019,3326818,683.89,0.00,N/A,N/A
Physical Support,Community Support - Physical Support,Community Support,HOUSING 21,1116470,08/10/2019,3326825,912.04,0.00,N/A,N/A
Physical Support,Community Support - Physical Support,Community Support,HOUSING 21,1116470,08/10/2019,3326826,953.48,0.00,N/A,N/A
Physical Support,Community Support - Physical Support,Community Support,HOUSING 21,1116470,08/10/2019,3326899,776.12,0.00,N/A,N/A
Physical Support,Community Support - Physical Support,Community Support,HOUSING 21,1116470,08/10/2019,3326900,856.60,0.00,N/A,N/A
Physical Support,Community Support - Physical Support,Community Support,HOUSING 21,1116470,08/10/2019,3326905,932.04,0.00,N/A,N/A
Physical Support,Community Support - Physical Support,Community Support,HOUSING 21,1116470,08/10/2019,3326906,"1,026.03",0.00,N/A,N/A
Physical Support,Community Support - Physical Support,Community Support,HOUSING 21,1116470,08/10/2019,3327003,"1,008.92",0.00,N/A,N/A
Physical Support,Community Support - Physical Support,Community Support,HOUSING 21,1116470,08/10/2019,3327004,"1,020.85",0.00,N/A,N/A
Physical Support,Community Support - Physical Support,Community Support,HOUSING 21,1116470,08/10/2019,3327005,"1,270.08",0.00,N/A,N/A
Physical Support,Community Support - Physical Support,Community Support,HOUSING 21,1116470,08/10/2019,3327086,687.40,0.00,N/A,N/A
Physical Support,Community Support - Physical Support,Community Support,HOUSING 21,1116470,08/10/2019,3327089,937.92,0.00,N/A,N/A
Support with Memory and Cognition,Community Support - Support with Memory and Cognition,Community Support,HOUSING 21,1116470,08/10/2019,3327007,749.80,0.00,N/A,N/A
Mental Health Support,Mental Health - Mental Health Support,Mental Health,HOUSING 21,1116470,08/10/2019,3326736,"1,245.88",0.00,N/A,N/A
Learning Disability Support,Community Support - Learning Disability Support,Community Support,I CARE GB LTD,471255,08/10/2019,3326787,930.84,0.00,N/A,N/A
Learning Disability Support,Community Support - Learning Disability Support,Community Support,I CARE GB LTD,471255,08/10/2019,3327061,930.84,0.00,N/A,N/A
Physical Support,Community Support - Physical Support,Community Support,I CARE GB LTD,471255,08/10/2019,3326458,526.56,0.00,N/A,N/A
Physical Support,Community Support - Physical Support,Community Support,I CARE GB LTD,471255,08/10/2019,3326459,663.56,0.00,N/A,N/A
Physical Support,Community Support - Physical Support,Community Support,I CARE GB LTD,471255,08/10/2019,3326628,619.80,0.00,N/A,N/A
Mental Health Support,Mental Health - Mental Health Support,Mental Health,I CARE GB LTD,471255,08/10/2019,3326967,651.62,0.00,N/A,N/A
Culture & Business Development,Culture & Business Development,"Leisure, Culture and Tourism",INTER-COUNTY PARAMEDIC LTD,10508,08/10/2019,3327312,"1,406.00",0.00,Communities & Place,Healthcare Services
Culture & Business Development,Culture & Business Development,"Leisure, Culture and Tourism",INTER-COUNTY PARAMEDIC LTD,10508,08/10/2019,3327314,"3,628.00",0.00,Communities & Place,Healthcare Services
Communication and Consultation,Communication,Strategic Services and Organisational Development,JOHN E WRIGHT & CO LTD,2190,08/10/2019,3325081,"1,265.50",0.00,Organisation & Governance,Printing and Photographic and Audio and
Culture & Business Development,Culture & Business Development,"Leisure, Culture and Tourism",JOHN E WRIGHT & CO LTD,2190,08/10/2019,3325085,835.00,0.00,Communities & Place,Printing and Photographic and Audio and
Traffic & Transportation,Parking Services,"Strategic Partnerships, Planning & Streetpride",KELTIC,2107,08/10/2019,3324373,"1,888.60",0.00,Communities & Place,Apparel and Luggage and Personal Care Pr
Early Help & Children�s Safeguarding,Integrated and Safeguarding Services Locality 3/4,Non-Schools,KEY 2 FUTURES LTD,473652,08/10/2019,3322170,"3,082.33",0.00,N/A,N/A
Early Help & Children�s Safeguarding,Integrated and Safeguarding Services Locality 3/4,Non-Schools,KEY 2 FUTURES LTD,473652,08/10/2019,3322173,"3,082.33",0.00,N/A,N/A
Leisure,Leisure,"Leisure, Culture and Tourism",KINGS ARMOURED SECURITY SERVICES,2618,08/10/2019,3326243,790.87,0.00,Communities & Place,National Defense and Public Order and Se
Leisure,Leisure,"Leisure, Culture and Tourism",KINGS ARMOURED SECURITY SERVICES,2618,08/10/2019,3327163,"1,300.50",0.00,Communities & Place,National Defense and Public Order and Se
Non Delegated Schools Budget,Non Delegated School Expenditure,Schools Block,LEARNERS TRUST,1123468,08/10/2019,3326295,"107,696.00",0.00,N/A,N/A
Traffic & Transportation,Traffic & Transportation (inc Integrated Pass Transport),"Strategic Partnerships, Planning & Streetpride",LIFE CYCLE UK,149347,08/10/2019,3329028,"6,025.00",0.00,Communities & Place,Engineering and Research and Technology
Learning & Inclusion,Adult Learning - SFA,Non-Schools,LINK ICT SERVICES LTD,154331,08/10/2019,3326214,"3,200.00",0.00,N/A,N/A
Food & Safety & Trading Standards,Food & Safety,"Communities, Environment & Regulatory Services",LJJ CONSULTANCY SERVICES LIMITED,1103479,08/10/2019,3326242,755.00,0.00,N/A,N/A
Grounds Maintenance & Cleansing,Cleansing (inc public conveniences & gullies),"Strategic Partnerships, Planning & Streetpride",MAGFERN RECYCLING 2018 LTD,956474,08/10/2019,3327268,"4,762.39",0.00,N/A,N/A
Culture & Business Development,Culture & Business Development,"Leisure, Culture and Tourism",MASON ELECTRONICS LTD,2440,08/10/2019,3325129,"1,165.00",0.00,Communities & Place,Electronic Components and Supplies
Neighbourhoods,Capital,Capital,MATCHTECH GROUP PLC,2446,08/10/2019,3328389,"1,670.00",0.00,N/A,N/A
Physical Support,Community Support - Physical Support,Community Support,MEARS CARE LIMITED,1052472,08/10/2019,3326509,507.88,0.00,N/A,N/A
Physical Support,Community Support - Physical Support,Community Support,MEARS CARE LIMITED,1052472,08/10/2019,3326470,693.31,0.00,N/A,N/A
Physical Support,Community Support - Physical Support,Community Support,MEARS CARE LIMITED,1052472,08/10/2019,3326471,845.42,0.00,N/A,N/A
Physical Support,Community Support - Physical Support,Community Support,MEARS CARE LIMITED,1052472,08/10/2019,3326472,937.82,0.00,N/A,N/A
Physical Support,Community Support - Physical Support,Community Support,MEARS CARE LIMITED,1052472,08/10/2019,3326478,532.83,0.00,N/A,N/A
Physical Support,Community Support - Physical Support,Community Support,MEARS CARE LIMITED,1052472,08/10/2019,3326479,804.09,0.00,N/A,N/A
Physical Support,Community Support - Physical Support,Community Support,MEARS CARE LIMITED,1052472,08/10/2019,3326480,811.89,0.00,N/A,N/A
Physical Support,Community Support - Physical Support,Community Support,MEARS CARE LIMITED,1052472,08/10/2019,3326558,748.38,0.00,N/A,N/A
Physical Support,Community Support - Physical Support,Community Support,MEARS CARE LIMITED,1052472,08/10/2019,3326559,761.02,0.00,N/A,N/A
Physical Support,Community Support - Physical Support,Community Support,MEARS CARE LIMITED,1052472,08/10/2019,3326567,547.41,0.00,N/A,N/A
Physical Support,Community Support - Physical Support,Community Support,MEARS CARE LIMITED,1052472,08/10/2019,3326568,758.39,0.00,N/A,N/A
Physical Support,Community Support - Physical Support,Community Support,MEARS CARE LIMITED,1052472,08/10/2019,3326569,966.03,0.00,N/A,N/A
Physical Support,Community Support - Physical Support,Community Support,MEARS CARE LIMITED,1052472,08/10/2019,3326603,521.81,0.00,N/A,N/A
Physical Support,Community Support - Physical Support,Community Support,MEARS CARE LIMITED,1052472,08/10/2019,3326641,753.54,0.00,N/A,N/A
Physical Support,Community Support - Physical Support,Community Support,MEARS CARE LIMITED,1052472,08/10/2019,3326648,764.26,0.00,N/A,N/A
Physical Support,Community Support - Physical Support,Community Support,MEARS CARE LIMITED,1052472,08/10/2019,3326716,698.54,0.00,N/A,N/A
Physical Support,Community Support - Physical Support,Community Support,MEARS CARE LIMITED,1052472,08/10/2019,3326718,552.36,0.00,N/A,N/A
Physical Support,Community Support - Physical Support,Community Support,MEARS CARE LIMITED,1052472,08/10/2019,3326721,866.18,0.00,N/A,N/A
Physical Support,Community Support - Physical Support,Community Support,MEARS CARE LIMITED,1052472,08/10/2019,3326975,624.03,0.00,N/A,N/A
Physical Support,Community Support - Physical Support,Community Support,MEARS CARE LIMITED,1052472,08/10/2019,3326976,687.74,0.00,N/A,N/A
Physical Support,Community Support - Physical Support,Community Support,MEARS CARE LIMITED,1052472,08/10/2019,3326977,711.16,0.00,N/A,N/A
Physical Support,Community Support - Physical Support,Community Support,MEARS CARE LIMITED,1052472,08/10/2019,3326978,915.96,0.00,N/A,N/A
Physical Support,Community Support - Physical Support,Community Support,MEARS CARE LIMITED,1052472,08/10/2019,3326979,948.83,0.00,N/A,N/A
Physical Support,Community Support - Physical Support,Community Support,MEARS CARE LIMITED,1052472,08/10/2019,3326789,502.27,0.00,N/A,N/A
Physical Support,Community Support - Physical Support,Community Support,MEARS CARE LIMITED,1052472,08/10/2019,3326790,647.70,0.00,N/A,N/A
Physical Support,Community Support - Physical Support,Community Support,MEARS CARE LIMITED,1052472,08/10/2019,3326796,664.87,0.00,N/A,N/A
Physical Support,Community Support - Physical Support,Community Support,MEARS CARE LIMITED,1052472,08/10/2019,3326797,721.68,0.00,N/A,N/A
Physical Support,Community Support - Physical Support,Community Support,MEARS CARE LIMITED,1052472,08/10/2019,3326798,804.57,0.00,N/A,N/A
Physical Support,Community Support - Physical Support,Community Support,MEARS CARE LIMITED,1052472,08/10/2019,3326799,557.36,0.00,N/A,N/A
Physical Support,Community Support - Physical Support,Community Support,MEARS CARE LIMITED,1052472,08/10/2019,3326800,930.78,0.00,N/A,N/A
Physical Support,Community Support - Physical Support,Community Support,MEARS CARE LIMITED,1052472,08/10/2019,3326810,926.57,0.00,N/A,N/A
Physical Support,Community Support - Physical Support,Community Support,MEARS CARE LIMITED,1052472,08/10/2019,3326848,652.04,0.00,N/A,N/A
Physical Support,Community Support - Physical Support,Community Support,MEARS CARE LIMITED,1052472,08/10/2019,3326879,698.54,0.00,N/A,N/A
Physical Support,Community Support - Physical Support,Community Support,MEARS CARE LIMITED,1052472,08/10/2019,3326880,594.28,0.00,N/A,N/A
Physical Support,Community Support - Physical Support,Community Support,MEARS CARE LIMITED,1052472,08/10/2019,3326881,594.72,0.00,N/A,N/A
Physical Support,Community Support - Physical Support,Community Support,MEARS CARE LIMITED,1052472,08/10/2019,3326887,758.90,0.00,N/A,N/A
Physical Support,Community Support - Physical Support,Community Support,MEARS CARE LIMITED,1052472,08/10/2019,3326888,"1,154.62",0.00,N/A,N/A
Physical Support,Community Support - Physical Support,Community Support,MEARS CARE LIMITED,1052472,08/10/2019,3326895,893.76,0.00,N/A,N/A
Physical Support,Community Support - Physical Support,Community Support,MEARS CARE LIMITED,1052472,08/10/2019,3326969,928.70,0.00,N/A,N/A
Physical Support,Community Support - Physical Support,Community Support,MEARS CARE LIMITED,1052472,08/10/2019,3326971,927.51,0.00,N/A,N/A
Physical Support,Community Support - Physical Support,Community Support,MEARS CARE LIMITED,1052472,08/10/2019,3327063,775.30,0.00,N/A,N/A
Physical Support,Community Support - Physical Support,Community Support,MEARS CARE LIMITED,1052472,08/10/2019,3327064,590.62,0.00,N/A,N/A
Physical Support,Community Support - Physical Support,Community Support,MEARS CARE LIMITED,1052472,08/10/2019,3327073,778.70,0.00,N/A,N/A
Physical Support,Community Support - Physical Support,Community Support,MEARS CARE LIMITED,1052472,08/10/2019,3327074,900.78,0.00,N/A,N/A
Physical Support,Community Support - Physical Support,Community Support,MEARS CARE LIMITED,1052472,08/10/2019,3327075,957.98,0.00,N/A,N/A
Physical Support,Community Support - Physical Support,Community Support,MEARS CARE LIMITED,1052472,08/10/2019,3327108,730.57,0.00,N/A,N/A
Physical Support,Community Support - Physical Support,Community Support,MEARS CARE LIMITED,1052472,08/10/2019,3327109,730.57,0.00,N/A,N/A
Physical Support,Community Support - Physical Support,Community Support,MEARS CARE LIMITED,1052472,08/10/2019,3327114,711.02,0.00,N/A,N/A
Physical Support,Community Support - Physical Support,Community Support,MEARS CARE LIMITED,1052472,08/10/2019,3327118,649.29,0.00,N/A,N/A
Physical Support,Community Support - Physical Support,Community Support,MEARS CARE LIMITED,1052472,08/10/2019,3327119,659.55,0.00,N/A,N/A
Physical Support,Community Support - Physical Support,Community Support,MEARS CARE LIMITED,1052472,08/10/2019,3327025,521.81,0.00,N/A,N/A
Physical Support,Community Support - Physical Support,Community Support,MEARS CARE LIMITED,1052472,08/10/2019,3327028,649.47,0.00,N/A,N/A
Physical Support,Community Support - Physical Support,Community Support,MEARS CARE LIMITED,1052472,08/10/2019,3327076,"1,161.07",0.00,N/A,N/A
Physical Support,Community Support - Physical Support,Community Support,MEARS CARE LIMITED,1052472,08/10/2019,3327079,528.04,0.00,N/A,N/A
Physical Support,Community Support - Physical Support,Community Support,MEARS CARE LIMITED,1052472,08/10/2019,3327080,591.34,0.00,N/A,N/A
Physical Support,Community Support - Physical Support,Community Support,MEARS CARE LIMITED,1052472,08/10/2019,3327081,932.11,0.00,N/A,N/A
Support with Memory and Cognition,Community Support - Support with Memory and Cognition,Community Support,MEARS CARE LIMITED,1052472,08/10/2019,3326897,533.08,0.00,N/A,N/A
Mental Health Support,Mental Health - Mental Health Support,Mental Health,MEARS CARE LIMITED,1052472,08/10/2019,3326485,792.20,0.00,N/A,N/A
Learning Disability Support,Community Support - Learning Disability Support,Community Support,MEDILINE NURSES AND CARERS LTD,388469,08/10/2019,3326840,"1,534.40",0.00,N/A,N/A
Mental Health Support,Community Support - Mental Health Support,Community Support,MEDILINE NURSES AND CARERS LTD,388469,08/10/2019,3326749,"1,008.92",0.00,N/A,N/A
Mental Health Support,Community Support - Mental Health Support,Community Support,MEDILINE NURSES AND CARERS LTD,388469,08/10/2019,3326677,957.36,0.00,N/A,N/A
Mental Health Support,Community Support - Mental Health Support,Community Support,MEDILINE NURSES AND CARERS LTD,388469,08/10/2019,3327105,"1,008.92",0.00,N/A,N/A
Physical Support,Community Support - Physical Support,Community Support,MEDILINE NURSES AND CARERS LTD,388469,08/10/2019,3326466,591.20,0.00,N/A,N/A
Physical Support,Community Support - Physical Support,Community Support,MEDILINE NURSES AND CARERS LTD,388469,08/10/2019,3326467,634.28,0.00,N/A,N/A
Physical Support,Community Support - Physical Support,Community Support,MEDILINE NURSES AND CARERS LTD,388469,08/10/2019,3326468,634.28,0.00,N/A,N/A
Physical Support,Community Support - Physical Support,Community Support,MEDILINE NURSES AND CARERS LTD,388469,08/10/2019,3326469,661.86,0.00,N/A,N/A
Physical Support,Community Support - Physical Support,Community Support,MEDILINE NURSES AND CARERS LTD,388469,08/10/2019,3326474,770.00,0.00,N/A,N/A
Physical Support,Community Support - Physical Support,Community Support,MEDILINE NURSES AND CARERS LTD,388469,08/10/2019,3326475,931.48,0.00,N/A,N/A
Physical Support,Community Support - Physical Support,Community Support,MEDILINE NURSES AND CARERS LTD,388469,08/10/2019,3326476,"1,008.92",0.00,N/A,N/A
Physical Support,Community Support - Physical Support,Community Support,MEDILINE NURSES AND CARERS LTD,388469,08/10/2019,3326481,"1,103.24",0.00,N/A,N/A
Physical Support,Community Support - Physical Support,Community Support,MEDILINE NURSES AND CARERS LTD,388469,08/10/2019,3326482,"1,175.76",0.00,N/A,N/A
Physical Support,Community Support - Physical Support,Community Support,MEDILINE NURSES AND CARERS LTD,388469,08/10/2019,3326494,837.16,0.00,N/A,N/A
Physical Support,Community Support - Physical Support,Community Support,MEDILINE NURSES AND CARERS LTD,388469,08/10/2019,3326495,"1,103.24",0.00,N/A,N/A
Physical Support,Community Support - Physical Support,Community Support,MEDILINE NURSES AND CARERS LTD,388469,08/10/2019,3326498,"1,199.16",0.00,N/A,N/A
Physical Support,Community Support - Physical Support,Community Support,MEDILINE NURSES AND CARERS LTD,388469,08/10/2019,3326503,"1,332.13",0.00,N/A,N/A
Physical Support,Community Support - Physical Support,Community Support,MEDILINE NURSES AND CARERS LTD,388469,08/10/2019,3326735,537.40,0.00,N/A,N/A
Physical Support,Community Support - Physical Support,Community Support,MEDILINE NURSES AND CARERS LTD,388469,08/10/2019,3326738,698.28,0.00,N/A,N/A
Physical Support,Community Support - Physical Support,Community Support,MEDILINE NURSES AND CARERS LTD,388469,08/10/2019,3326739,"1,008.92",0.00,N/A,N/A
Physical Support,Community Support - Physical Support,Community Support,MEDILINE NURSES AND CARERS LTD,388469,08/10/2019,3326740,"1,473.57",0.00,N/A,N/A
Physical Support,Community Support - Physical Support,Community Support,MEDILINE NURSES AND CARERS LTD,388469,08/10/2019,3326742,"1,051.88",0.00,N/A,N/A
Physical Support,Community Support - Physical Support,Community Support,MEDILINE NURSES AND CARERS LTD,388469,08/10/2019,3326743,"1,216.76",0.00,N/A,N/A
Physical Support,Community Support - Physical Support,Community Support,MEDILINE NURSES AND CARERS LTD,388469,08/10/2019,3326556,570.93,0.00,N/A,N/A
Physical Support,Community Support - Physical Support,Community Support,MEDILINE NURSES AND CARERS LTD,388469,08/10/2019,3326557,661.86,0.00,N/A,N/A
Physical Support,Community Support - Physical Support,Community Support,MEDILINE NURSES AND CARERS LTD,388469,08/10/2019,3326560,762.28,0.00,N/A,N/A
Physical Support,Community Support - Physical Support,Community Support,MEDILINE NURSES AND CARERS LTD,388469,08/10/2019,3326561,774.44,0.00,N/A,N/A
Physical Support,Community Support - Physical Support,Community Support,MEDILINE NURSES AND CARERS LTD,388469,08/10/2019,3326562,671.92,0.00,N/A,N/A
Physical Support,Community Support - Physical Support,Community Support,MEDILINE NURSES AND CARERS LTD,388469,08/10/2019,3326563,797.76,0.00,N/A,N/A
Physical Support,Community Support - Physical Support,Community Support,MEDILINE NURSES AND CARERS LTD,388469,08/10/2019,3326570,"1,067.80",0.00,N/A,N/A
Physical Support,Community Support - Physical Support,Community Support,MEDILINE NURSES AND CARERS LTD,388469,08/10/2019,3326571,"1,162.12",0.00,N/A,N/A
Physical Support,Community Support - Physical Support,Community Support,MEDILINE NURSES AND CARERS LTD,388469,08/10/2019,3326581,539.96,0.00,N/A,N/A
Physical Support,Community Support - Physical Support,Community Support,MEDILINE NURSES AND CARERS LTD,388469,08/10/2019,3326586,563.28,0.00,N/A,N/A
Physical Support,Community Support - Physical Support,Community Support,MEDILINE NURSES AND CARERS LTD,388469,08/10/2019,3326587,"1,103.24",0.00,N/A,N/A
Physical Support,Community Support - Physical Support,Community Support,MEDILINE NURSES AND CARERS LTD,388469,08/10/2019,3326592,703.44,0.00,N/A,N/A
Physical Support,Community Support - Physical Support,Community Support,MEDILINE NURSES AND CARERS LTD,388469,08/10/2019,3326593,"1,103.24",0.00,N/A,N/A
Physical Support,Community Support - Physical Support,Community Support,MEDILINE NURSES AND CARERS LTD,388469,08/10/2019,3326639,563.28,0.00,N/A,N/A
Physical Support,Community Support - Physical Support,Community Support,MEDILINE NURSES AND CARERS LTD,388469,08/10/2019,3326640,603.96,0.00,N/A,N/A
Physical Support,Community Support - Physical Support,Community Support,MEDILINE NURSES AND CARERS LTD,388469,08/10/2019,3326643,703.44,0.00,N/A,N/A
Physical Support,Community Support - Physical Support,Community Support,MEDILINE NURSES AND CARERS LTD,388469,08/10/2019,3326644,713.28,0.00,N/A,N/A
Physical Support,Community Support - Physical Support,Community Support,MEDILINE NURSES AND CARERS LTD,388469,08/10/2019,3326645,"1,008.92",0.00,N/A,N/A
Physical Support,Community Support - Physical Support,Community Support,MEDILINE NURSES AND CARERS LTD,388469,08/10/2019,3326646,"1,008.92",0.00,N/A,N/A
Physical Support,Community Support - Physical Support,Community Support,MEDILINE NURSES AND CARERS LTD,388469,08/10/2019,3326649,"1,293.52",0.00,N/A,N/A
Physical Support,Community Support - Physical Support,Community Support,MEDILINE NURSES AND CARERS LTD,388469,08/10/2019,3326650,"1,460.32",0.00,N/A,N/A
Physical Support,Community Support - Physical Support,Community Support,MEDILINE NURSES AND CARERS LTD,388469,08/10/2019,3326658,601.68,0.00,N/A,N/A
Physical Support,Community Support - Physical Support,Community Support,MEDILINE NURSES AND CARERS LTD,388469,08/10/2019,3326659,763.72,0.00,N/A,N/A
Physical Support,Community Support - Physical Support,Community Support,MEDILINE NURSES AND CARERS LTD,388469,08/10/2019,3326660,952.56,0.00,N/A,N/A
Physical Support,Community Support - Physical Support,Community Support,MEDILINE NURSES AND CARERS LTD,388469,08/10/2019,3326661,"1,053.08",0.00,N/A,N/A
Physical Support,Community Support - Physical Support,Community Support,MEDILINE NURSES AND CARERS LTD,388469,08/10/2019,3326662,529.05,0.00,N/A,N/A
Physical Support,Community Support - Physical Support,Community Support,MEDILINE NURSES AND CARERS LTD,388469,08/10/2019,3326663,670.11,0.00,N/A,N/A
Physical Support,Community Support - Physical Support,Community Support,MEDILINE NURSES AND CARERS LTD,388469,08/10/2019,3326664,670.11,0.00,N/A,N/A
Physical Support,Community Support - Physical Support,Community Support,MEDILINE NURSES AND CARERS LTD,388469,08/10/2019,3326666,805.22,0.00,N/A,N/A
Physical Support,Community Support - Physical Support,Community Support,MEDILINE NURSES AND CARERS LTD,388469,08/10/2019,3326667,"1,216.76",0.00,N/A,N/A
Physical Support,Community Support - Physical Support,Community Support,MEDILINE NURSES AND CARERS LTD,388469,08/10/2019,3326720,516.12,0.00,N/A,N/A
Physical Support,Community Support - Physical Support,Community Support,MEDILINE NURSES AND CARERS LTD,388469,08/10/2019,3326724,746.32,0.00,N/A,N/A
Physical Support,Community Support - Physical Support,Community Support,MEDILINE NURSES AND CARERS LTD,388469,08/10/2019,3326725,"1,008.92",0.00,N/A,N/A
Physical Support,Community Support - Physical Support,Community Support,MEDILINE NURSES AND CARERS LTD,388469,08/10/2019,3326728,"1,028.36",0.00,N/A,N/A
Physical Support,Community Support - Physical Support,Community Support,MEDILINE NURSES AND CARERS LTD,388469,08/10/2019,3326729,"1,032.24",0.00,N/A,N/A
Physical Support,Community Support - Physical Support,Community Support,MEDILINE NURSES AND CARERS LTD,388469,08/10/2019,3326974,516.12,0.00,N/A,N/A
Physical Support,Community Support - Physical Support,Community Support,MEDILINE NURSES AND CARERS LTD,388469,08/10/2019,3326980,837.16,0.00,N/A,N/A
Physical Support,Community Support - Physical Support,Community Support,MEDILINE NURSES AND CARERS LTD,388469,08/10/2019,3326985,"1,103.24",0.00,N/A,N/A
Physical Support,Community Support - Physical Support,Community Support,MEDILINE NURSES AND CARERS LTD,388469,08/10/2019,3326986,"1,103.24",0.00,N/A,N/A
Physical Support,Community Support - Physical Support,Community Support,MEDILINE NURSES AND CARERS LTD,388469,08/10/2019,3326987,"1,103.24",0.00,N/A,N/A
Physical Support,Community Support - Physical Support,Community Support,MEDILINE NURSES AND CARERS LTD,388469,08/10/2019,3326988,"1,124.28",0.00,N/A,N/A
Physical Support,Community Support - Physical Support,Community Support,MEDILINE NURSES AND CARERS LTD,388469,08/10/2019,3326989,"1,159.56",0.00,N/A,N/A
Physical Support,Community Support - Physical Support,Community Support,MEDILINE NURSES AND CARERS LTD,388469,08/10/2019,3326990,"1,199.16",0.00,N/A,N/A
Physical Support,Community Support - Physical Support,Community Support,MEDILINE NURSES AND CARERS LTD,388469,08/10/2019,3326991,"1,028.36",0.00,N/A,N/A
Physical Support,Community Support - Physical Support,Community Support,MEDILINE NURSES AND CARERS LTD,388469,08/10/2019,3326992,"1,381.64",0.00,N/A,N/A
Physical Support,Community Support - Physical Support,Community Support,MEDILINE NURSES AND CARERS LTD,388469,08/10/2019,3326993,"1,460.32",0.00,N/A,N/A
Physical Support,Community Support - Physical Support,Community Support,MEDILINE NURSES AND CARERS LTD,388469,08/10/2019,3326994,934.04,0.00,N/A,N/A
Physical Support,Community Support - Physical Support,Community Support,MEDILINE NURSES AND CARERS LTD,388469,08/10/2019,3327000,539.96,0.00,N/A,N/A
Physical Support,Community Support - Physical Support,Community Support,MEDILINE NURSES AND CARERS LTD,388469,08/10/2019,3326794,602.68,0.00,N/A,N/A
Physical Support,Community Support - Physical Support,Community Support,MEDILINE NURSES AND CARERS LTD,388469,08/10/2019,3326795,648.60,0.00,N/A,N/A
Physical Support,Community Support - Physical Support,Community Support,MEDILINE NURSES AND CARERS LTD,388469,08/10/2019,3326801,677.56,0.00,N/A,N/A
Physical Support,Community Support - Physical Support,Community Support,MEDILINE NURSES AND CARERS LTD,388469,08/10/2019,3326802,680.75,0.00,N/A,N/A
Physical Support,Community Support - Physical Support,Community Support,MEDILINE NURSES AND CARERS LTD,388469,08/10/2019,3326803,713.28,0.00,N/A,N/A
Physical Support,Community Support - Physical Support,Community Support,MEDILINE NURSES AND CARERS LTD,388469,08/10/2019,3326804,716.04,0.00,N/A,N/A
Physical Support,Community Support - Physical Support,Community Support,MEDILINE NURSES AND CARERS LTD,388469,08/10/2019,3326805,762.28,0.00,N/A,N/A
Physical Support,Community Support - Physical Support,Community Support,MEDILINE NURSES AND CARERS LTD,388469,08/10/2019,3326806,"1,008.92",0.00,N/A,N/A
Physical Support,Community Support - Physical Support,Community Support,MEDILINE NURSES AND CARERS LTD,388469,08/10/2019,3326811,"1,103.24",0.00,N/A,N/A
Physical Support,Community Support - Physical Support,Community Support,MEDILINE NURSES AND CARERS LTD,388469,08/10/2019,3326812,"1,103.24",0.00,N/A,N/A
Physical Support,Community Support - Physical Support,Community Support,MEDILINE NURSES AND CARERS LTD,388469,08/10/2019,3326824,539.96,0.00,N/A,N/A
Physical Support,Community Support - Physical Support,Community Support,MEDILINE NURSES AND CARERS LTD,388469,08/10/2019,3326830,893.77,0.00,N/A,N/A
Physical Support,Community Support - Physical Support,Community Support,MEDILINE NURSES AND CARERS LTD,388469,08/10/2019,3326831,"1,103.24",0.00,N/A,N/A
Physical Support,Community Support - Physical Support,Community Support,MEDILINE NURSES AND CARERS LTD,388469,08/10/2019,3326832,"1,103.24",0.00,N/A,N/A
Physical Support,Community Support - Physical Support,Community Support,MEDILINE NURSES AND CARERS LTD,388469,08/10/2019,3326833,"1,103.24",0.00,N/A,N/A
Physical Support,Community Support - Physical Support,Community Support,MEDILINE NURSES AND CARERS LTD,388469,08/10/2019,3326835,660.24,0.00,N/A,N/A
Physical Support,Community Support - Physical Support,Community Support,MEDILINE NURSES AND CARERS LTD,388469,08/10/2019,3326836,980.40,0.00,N/A,N/A
Physical Support,Community Support - Physical Support,Community Support,MEDILINE NURSES AND CARERS LTD,388469,08/10/2019,3326837,"1,473.57",0.00,N/A,N/A
Physical Support,Community Support - Physical Support,Community Support,MEDILINE NURSES AND CARERS LTD,388469,08/10/2019,3326838,"1,103.24",0.00,N/A,N/A
Physical Support,Community Support - Physical Support,Community Support,MEDILINE NURSES AND CARERS LTD,388469,08/10/2019,3326886,539.96,0.00,N/A,N/A
Physical Support,Community Support - Physical Support,Community Support,MEDILINE NURSES AND CARERS LTD,388469,08/10/2019,3326889,762.28,0.00,N/A,N/A
Physical Support,Community Support - Physical Support,Community Support,MEDILINE NURSES AND CARERS LTD,388469,08/10/2019,3326890,762.32,0.00,N/A,N/A
Physical Support,Community Support - Physical Support,Community Support,MEDILINE NURSES AND CARERS LTD,388469,08/10/2019,3326891,774.44,0.00,N/A,N/A
Physical Support,Community Support - Physical Support,Community Support,MEDILINE NURSES AND CARERS LTD,388469,08/10/2019,3326892,797.76,0.00,N/A,N/A
Physical Support,Community Support - Physical Support,Community Support,MEDILINE NURSES AND CARERS LTD,388469,08/10/2019,3326893,931.48,0.00,N/A,N/A
Physical Support,Community Support - Physical Support,Community Support,MEDILINE NURSES AND CARERS LTD,388469,08/10/2019,3326894,"1,028.36",0.00,N/A,N/A
Physical Support,Community Support - Physical Support,Community Support,MEDILINE NURSES AND CARERS LTD,388469,08/10/2019,3326904,539.96,0.00,N/A,N/A
Physical Support,Community Support - Physical Support,Community Support,MEDILINE NURSES AND CARERS LTD,388469,08/10/2019,3326909,563.28,0.00,N/A,N/A
Physical Support,Community Support - Physical Support,Community Support,MEDILINE NURSES AND CARERS LTD,388469,08/10/2019,3326910,628.56,0.00,N/A,N/A
Physical Support,Community Support - Physical Support,Community Support,MEDILINE NURSES AND CARERS LTD,388469,08/10/2019,3326911,713.28,0.00,N/A,N/A
Physical Support,Community Support - Physical Support,Community Support,MEDILINE NURSES AND CARERS LTD,388469,08/10/2019,3326912,821.16,0.00,N/A,N/A
Physical Support,Community Support - Physical Support,Community Support,MEDILINE NURSES AND CARERS LTD,388469,08/10/2019,3326913,"1,103.24",0.00,N/A,N/A
Physical Support,Community Support - Physical Support,Community Support,MEDILINE NURSES AND CARERS LTD,388469,08/10/2019,3326914,529.05,0.00,N/A,N/A
Physical Support,Community Support - Physical Support,Community Support,MEDILINE NURSES AND CARERS LTD,388469,08/10/2019,3326915,"1,103.24",0.00,N/A,N/A
Physical Support,Community Support - Physical Support,Community Support,MEDILINE NURSES AND CARERS LTD,388469,08/10/2019,3326916,"1,103.24",0.00,N/A,N/A
Physical Support,Community Support - Physical Support,Community Support,MEDILINE NURSES AND CARERS LTD,388469,08/10/2019,3326917,"1,103.24",0.00,N/A,N/A
Physical Support,Community Support - Physical Support,Community Support,MEDILINE NURSES AND CARERS LTD,388469,08/10/2019,3327071,568.36,0.00,N/A,N/A
Physical Support,Community Support - Physical Support,Community Support,MEDILINE NURSES AND CARERS LTD,388469,08/10/2019,3327072,570.93,0.00,N/A,N/A
Physical Support,Community Support - Physical Support,Community Support,MEDILINE NURSES AND CARERS LTD,388469,08/10/2019,3327002,548.68,0.00,N/A,N/A
Physical Support,Community Support - Physical Support,Community Support,MEDILINE NURSES AND CARERS LTD,388469,08/10/2019,3327008,"1,076.40",0.00,N/A,N/A
Physical Support,Community Support - Physical Support,Community Support,MEDILINE NURSES AND CARERS LTD,388469,08/10/2019,3327009,677.56,0.00,N/A,N/A
Physical Support,Community Support - Physical Support,Community Support,MEDILINE NURSES AND CARERS LTD,388469,08/10/2019,3327010,762.28,0.00,N/A,N/A
Physical Support,Community Support - Physical Support,Community Support,MEDILINE NURSES AND CARERS LTD,388469,08/10/2019,3327011,934.04,0.00,N/A,N/A
Physical Support,Community Support - Physical Support,Community Support,MEDILINE NURSES AND CARERS LTD,388469,08/10/2019,3327012,952.56,0.00,N/A,N/A
Physical Support,Community Support - Physical Support,Community Support,MEDILINE NURSES AND CARERS LTD,388469,08/10/2019,3327013,"1,008.92",0.00,N/A,N/A
Physical Support,Community Support - Physical Support,Community Support,MEDILINE NURSES AND CARERS LTD,388469,08/10/2019,3327014,"1,103.24",0.00,N/A,N/A
Physical Support,Community Support - Physical Support,Community Support,MEDILINE NURSES AND CARERS LTD,388469,08/10/2019,3327015,"1,014.92",0.00,N/A,N/A
Physical Support,Community Support - Physical Support,Community Support,MEDILINE NURSES AND CARERS LTD,388469,08/10/2019,3327018,"1,199.16",0.00,N/A,N/A
Physical Support,Community Support - Physical Support,Community Support,MEDILINE NURSES AND CARERS LTD,388469,08/10/2019,3327077,774.44,0.00,N/A,N/A
Physical Support,Community Support - Physical Support,Community Support,MEDILINE NURSES AND CARERS LTD,388469,08/10/2019,3327078,"1,028.36",0.00,N/A,N/A
Physical Support,Community Support - Physical Support,Community Support,MEDILINE NURSES AND CARERS LTD,388469,08/10/2019,3327083,"1,103.24",0.00,N/A,N/A
Physical Support,Community Support - Physical Support,Community Support,MEDILINE NURSES AND CARERS LTD,388469,08/10/2019,3327084,"1,159.56",0.00,N/A,N/A
Physical Support,Community Support - Physical Support,Community Support,MEDILINE NURSES AND CARERS LTD,388469,08/10/2019,3327088,563.28,0.00,N/A,N/A
Physical Support,Community Support - Physical Support,Community Support,MEDILINE NURSES AND CARERS LTD,388469,08/10/2019,3327091,667.68,0.00,N/A,N/A
Physical Support,Community Support - Physical Support,Community Support,MEDILINE NURSES AND CARERS LTD,388469,08/10/2019,3327092,"1,103.24",0.00,N/A,N/A
Physical Support,Community Support - Physical Support,Community Support,MEDILINE NURSES AND CARERS LTD,388469,08/10/2019,3327093,"1,103.24",0.00,N/A,N/A
Physical Support,Community Support - Physical Support,Community Support,MEDILINE NURSES AND CARERS LTD,388469,08/10/2019,3327095,"1,189.36",0.00,N/A,N/A
Sensory Support,Community Support - Sensory Support,Community Support,MEDILINE NURSES AND CARERS LTD,388469,08/10/2019,3326745,957.36,0.00,N/A,N/A
Sensory Support,Community Support - Sensory Support,Community Support,MEDILINE NURSES AND CARERS LTD,388469,08/10/2019,3326746,"1,103.24",0.00,N/A,N/A
Sensory Support,Community Support - Sensory Support,Community Support,MEDILINE NURSES AND CARERS LTD,388469,08/10/2019,3326668,"1,103.24",0.00,N/A,N/A
Sensory Support,Community Support - Sensory Support,Community Support,MEDILINE NURSES AND CARERS LTD,388469,08/10/2019,3326918,957.36,0.00,N/A,N/A
Sensory Support,Community Support - Sensory Support,Community Support,MEDILINE NURSES AND CARERS LTD,388469,08/10/2019,3327097,592.72,0.00,N/A,N/A
Support with Memory and Cognition,Community Support - Support with Memory and Cognition,Community Support,MEDILINE NURSES AND CARERS LTD,388469,08/10/2019,3326600,837.16,0.00,N/A,N/A
Support with Memory and Cognition,Community Support - Support with Memory and Cognition,Community Support,MEDILINE NURSES AND CARERS LTD,388469,08/10/2019,3326672,500.51,0.00,N/A,N/A
Support with Memory and Cognition,Community Support - Support with Memory and Cognition,Community Support,MEDILINE NURSES AND CARERS LTD,388469,08/10/2019,3326846,"1,162.12",0.00,N/A,N/A
Support with Memory and Cognition,Community Support - Support with Memory and Cognition,Community Support,MEDILINE NURSES AND CARERS LTD,388469,08/10/2019,3326847,"1,028.36",0.00,N/A,N/A
Support with Memory and Cognition,Community Support - Support with Memory and Cognition,Community Support,MEDILINE NURSES AND CARERS LTD,388469,08/10/2019,3327024,980.00,0.00,N/A,N/A
Support with Memory and Cognition,Community Support - Support with Memory and Cognition,Community Support,MEDILINE NURSES AND CARERS LTD,388469,08/10/2019,3327104,"1,125.32",0.00,N/A,N/A
Mental Health Support,Mental Health - Mental Health Support,Mental Health,MEDILINE NURSES AND CARERS LTD,388469,08/10/2019,3326499,"1,103.24",0.00,N/A,N/A
Mental Health Support,Mental Health - Mental Health Support,Mental Health,MEDILINE NURSES AND CARERS LTD,388469,08/10/2019,3326500,"1,167.29",0.00,N/A,N/A
Mental Health Support,Mental Health - Mental Health Support,Mental Health,MEDILINE NURSES AND CARERS LTD,388469,08/10/2019,3326669,"1,103.24",0.00,N/A,N/A
Mental Health Support,Mental Health - Mental Health Support,Mental Health,MEDILINE NURSES AND CARERS LTD,388469,08/10/2019,3326670,527.84,0.00,N/A,N/A
Mental Health Support,Mental Health - Mental Health Support,Mental Health,MEDILINE NURSES AND CARERS LTD,388469,08/10/2019,3327021,"1,022.34",0.00,N/A,N/A
Mental Health Support,Mental Health - Mental Health Support,Mental Health,MEDILINE NURSES AND CARERS LTD,388469,08/10/2019,3326506,539.96,0.00,N/A,N/A
General,Stores Road Depot & Fleet Management,"Strategic Partnerships, Planning & Streetpride",MITCHELL DIESEL LTD,2685,08/10/2019,3328932,"1,418.07",0.00,Communities & Place,Commercial and Military and Private Vehi
Traffic & Transportation,Network Mgmnt & Highway Dev Control,"Strategic Partnerships, Planning & Streetpride",MOTUS TRAFFIC LTD,146383,08/10/2019,3325413,"2,399.09",0.00,Communities & Place,Building and Construction and Maintenanc
Public Health,Drugs and Alcohol,Public Health,N LAD LTD,189363,08/10/2019,3326373,644.00,0.00,N/A,N/A
Integrated Services,Agency Placements,Non-Schools,NATIONAL FOSTERING AGENCY,3496,08/10/2019,3325029,"2,925.00",0.00,People Services - Children & Young People,Organizations and Clubs
